{"text_format":"1","workbook":"xlsx","n_sheets":1,"sheets":["Sheet1"],"not_rendered":{"charts":0,"images":0,"macros":0,"external_links":0,"defined_names":4,"comments":0,"pivot_tables":0},"unopened":[],"bounds":{"document_bytes":16777216,"sheet_cells":100000,"rows_first":2000,"rows_last":500,"rows_between":2000,"halvings":0,"cell_chars":16384,"cell_head_chars":4096},"cells_cut":0,"cells_raw":0,"read":"whole","date_system":"1900"}

{"sheet":"Sheet1","index":0,"n_rows":3693,"n_cols":19,"rows_kept":3693,"cut":false,"hidden":false,"merged":[[3663,6,3663,7],[3664,6,3664,7],[3665,6,3665,7],[3666,6,3666,7],[3667,6,3668,6],[3667,7,3668,7],[3626,6,3627,6],[3626,7,3627,7],[3657,6,3657,7],[3658,6,3658,7],[3659,6,3659,7],[3660,6,3660,7],[3618,6,3618,7],[3619,6,3619,7],[3622,6,3622,7],[3623,6,3623,7],[3624,6,3624,7],[3625,6,3625,7],[3583,6,3583,7],[3584,6,3584,7],[3585,6,3586,6],[3585,7,3586,7],[3616,6,3616,7],[3617,6,3617,7],[3575,6,3575,7],[3576,6,3576,7],[3577,6,3577,7],[3578,6,3578,7],[3581,6,3581,7],[3582,6,3582,7],[3540,6,3540,7],[3541,6,3541,7],[3542,6,3542,7],[3543,6,3543,7],[3544,6,3545,6],[3544,7,3545,7],[3503,6,3504,6],[3503,7,3504,7],[3534,6,3534,7],[3535,6,3535,7],[3536,6,3536,7],[3537,6,3537,7],[3495,6,3495,7],[3496,6,3496,7],[3499,6,3499,7],[3500,6,3500,7],[3501,6,3501,7],[3502,6,3502,7],[3460,6,3460,7],[3461,6,3461,7],[3462,6,3463,6],[3462,7,3463,7],[3493,6,3493,7],[3494,6,3494,7],[3452,6,3452,7],[3453,6,3453,7],[3454,6,3454,7],[3455,6,3455,7],[3458,6,3458,7],[3459,6,3459,7],[3417,6,3417,7],[3418,6,3418,7],[3419,6,3419,7],[3420,6,3420,7],[3421,6,3422,6],[3421,7,3422,7],[3380,6,3381,6],[3380,7,3381,7],[3411,6,3411,7],[3412,6,3412,7],[3413,6,3413,7],[3414,6,3414,7],[3372,6,3372,7],[3373,6,3373,7],[3376,6,3376,7],[3377,6,3377,7],[3378,6,3378,7],[3379,6,3379,7],[3337,6,3337,7],[3338,6,3338,7],[3339,6,3340,6],[3339,7,3340,7],[3370,6,3370,7],[3371,6,3371,7],[3329,6,3329,7],[3330,6,3330,7],[3331,6,3331,7],[3332,6,3332,7],[3335,6,3335,7],[3336,6,3336,7],[3294,6,3294,7],[3295,6,3295,7],[3296,6,3296,7],[3297,6,3297,7],[3298,6,3299,6],[3298,7,3299,7],[3257,6,3258,6],[3257,7,3258,7],[3288,6,3288,7],[3289,6,3289,7],[3290,6,3290,7],[3291,6,3291,7],[3249,6,3249,7],[3250,6,3250,7],[3253,6,3253,7],[3254,6,3254,7],[3255,6,3255,7],[3256,6,3256,7],[3214,6,3214,7],[3215,6,3215,7],[3216,6,3217,6],[3216,7,3217,7],[3247,6,3247,7],[3248,6,3248,7],[3206,6,3206,7],[3207,6,3207,7],[3208,6,3208,7],[3209,6,3209,7],[3212,6,3212,7],[3213,6,3213,7],[3171,6,3171,7],[3172,6,3172,7],[3173,6,3173,7],[3174,6,3174,7],[3175,6,3176,6],[3175,7,3176,7],[3134,6,3135,6],[3134,7,3135,7],[3165,6,3165,7],[3166,6,3166,7],[3167,6,3167,7],[3168,6,3168,7],[3126,6,3126,7],[3127,6,3127,7],[3130,6,3130,7],[3131,6,3131,7],[3132,6,3132,7],[3133,6,3133,7],[3091,6,3091,7],[3092,6,3092,7],[3093,6,3094,6],[3093,7,3094,7],[3124,6,3124,7],[3125,6,3125,7],[3083,6,3083,7],[3084,6,3084,7],[3085,6,3085,7],[3086,6,3086,7],[3089,6,3089,7],[3090,6,3090,7],[3048,6,3048,7],[3049,6,3049,7],[3050,6,3050,7],[3051,6,3051,7],[3052,6,3053,6],[3052,7,3053,7],[3011,6,3012,6],[3011,7,3012,7],[3042,6,3042,7],[3043,6,3043,7],[3044,6,3044,7],[3045,6,3045,7],[3003,6,3003,7],[3004,6,3004,7],[3007,6,3007,7],[3008,6,3008,7],[3009,6,3009,7],[3010,6,3010,7],[2968,6,2968,7],[2969,6,2969,7],[2970,6,2971,6],[2970,7,2971,7],[3001,6,3001,7],[3002,6,3002,7],[2960,6,2960,7],[2961,6,2961,7],[2962,6,2962,7],[2963,6,2963,7],[2966,6,2966,7],[2967,6,2967,7],[2925,6,2925,7],[2926,6,2926,7],[2927,6,2927,7],[2928,6,2928,7],[2929,6,2930,6],[2929,7,2930,7],[2888,6,2889,6],[2888,7,2889,7],[2919,6,2919,7],[2920,6,2920,7],[2921,6,2921,7],[2922,6,2922,7],[2880,6,2880,7],[2881,6,2881,7],[2884,6,2884,7],[2885,6,2885,7],[2886,6,2886,7],[2887,6,2887,7],[2845,6,2845,7],[2846,6,2846,7],[2847,6,2848,6],[2847,7,2848,7],[2878,6,2878,7],[2879,6,2879,7],[2837,6,2837,7],[2838,6,2838,7],[2839,6,2839,7],[2840,6,2840,7],[2843,6,2843,7],[2844,6,2844,7],[2802,6,2802,7],[2803,6,2803,7],[2804,6,2804,7],[2805,6,2805,7],[2806,6,2807,6],[2806,7,2807,7],[2765,6,2766,6],[2765,7,2766,7],[2796,6,2796,7],[2797,6,2797,7],[2798,6,2798,7],[2799,6,2799,7],[2757,6,2757,7],[2758,6,2758,7],[2761,6,2761,7],[2762,6,2762,7],[2763,6,2763,7],[2764,6,2764,7],[2722,6,2722,7],[2723,6,2723,7],[2724,6,2725,6],[2724,7,2725,7],[2755,6,2755,7],[2756,6,2756,7],[2714,6,2714,7],[2715,6,2715,7],[2716,6,2716,7],[2717,6,2717,7],[2720,6,2720,7],[2721,6,2721,7],[2679,6,2679,7],[2680,6,2680,7],[2681,6,2681,7],[2682,6,2682,7],[2683,6,2684,6],[2683,7,2684,7],[2642,6,2643,6],[2642,7,2643,7],[2673,6,2673,7],[2674,6,2674,7],[2675,6,2675,7],[2676,6,2676,7],[2634,6,2634,7],[2635,6,2635,7],[2638,6,2638,7],[2639,6,2639,7],[2640,6,2640,7],[2641,6,2641,7],[2599,6,2599,7],[2600,6,2600,7],[2601,6,2602,6],[2601,7,2602,7],[2632,6,2632,7],[2633,6,2633,7],[2591,6,2591,7],[2592,6,2592,7],[2593,6,2593,7],[2594,6,2594,7],[2597,6,2597,7],[2598,6,2598,7],[2556,6,2556,7],[2557,6,2557,7],[2558,6,2558,7],[2559,6,2559,7],[2560,6,2561,6],[2560,7,2561,7],[2519,6,2520,6],[2519,7,2520,7],[2550,6,2550,7],[2551,6,2551,7],[2552,6,2552,7],[2553,6,2553,7],[2511,6,2511,7],[2512,6,2512,7],[2515,6,2515,7],[2516,6,2516,7],[2517,6,2517,7],[2518,6,2518,7],[2476,6,2476,7],[2477,6,2477,7],[2478,6,2479,6],[2478,7,2479,7],[2509,6,2509,7],[2510,6,2510,7],[2468,6,2468,7],[2469,6,2469,7],[2470,6,2470,7],[2471,6,2471,7],[2474,6,2474,7],[2475,6,2475,7],[2433,6,2433,7],[2434,6,2434,7],[2435,6,2435,7],[2436,6,2436,7],[2437,6,2438,6],[2437,7,2438,7],[2396,6,2397,6],[2396,7,2397,7],[2427,6,2427,7],[2428,6,2428,7],[2429,6,2429,7],[2430,6,2430,7],[2388,6,2388,7],[2389,6,2389,7],[2392,6,2392,7],[2393,6,2393,7],[2394,6,2394,7],[2395,6,2395,7],[2353,6,2353,7],[2354,6,2354,7],[2355,6,2356,6],[2355,7,2356,7],[2386,6,2386,7],[2387,6,2387,7],[2345,6,2345,7],[2346,6,2346,7],[2347,6,2347,7],[2348,6,2348,7],[2351,6,2351,7],[2352,6,2352,7],[2310,6,2310,7],[2311,6,2311,7],[2312,6,2312,7],[2313,6,2313,7],[2314,6,2315,6],[2314,7,2315,7],[2273,6,2274,6],[2273,7,2274,7],[2304,6,2304,7],[2305,6,2305,7],[2306,6,2306,7],[2307,6,2307,7],[2265,6,2265,7],[2266,6,2266,7],[2269,6,2269,7],[2270,6,2270,7],[2271,6,2271,7],[2272,6,2272,7],[2230,6,2230,7],[2231,6,2231,7],[2232,6,2233,6],[2232,7,2233,7],[2263,6,2263,7],[2264,6,2264,7],[2222,6,2222,7],[2223,6,2223,7],[2224,6,2224,7],[2225,6,2225,7],[2228,6,2228,7],[2229,6,2229,7],[2187,6,2187,7],[2188,6,2188,7],[2189,6,2189,7],[2190,6,2190,7],[2191,6,2192,6],[2191,7,2192,7],[2150,6,2151,6],[2150,7,2151,7],[2181,6,2181,7],[2182,6,2182,7],[2183,6,2183,7],[2184,6,2184,7],[2142,6,2142,7],[2143,6,2143,7],[2146,6,2146,7],[2147,6,2147,7],[2148,6,2148,7],[2149,6,2149,7],[2107,6,2107,7],[2108,6,2108,7],[2109,6,2110,6],[2109,7,2110,7],[2140,6,2140,7],[2141,6,2141,7],[2099,6,2099,7],[2100,6,2100,7],[2101,6,2101,7],[2102,6,2102,7],[2105,6,2105,7],[2106,6,2106,7],[2064,6,2064,7],[2065,6,2065,7],[2066,6,2066,7],[2067,6,2067,7],[2068,6,2069,6],[2068,7,2069,7],[2027,6,2028,6],[2027,7,2028,7],[2058,6,2058,7],[2059,6,2059,7],[2060,6,2060,7],[2061,6,2061,7],[2019,6,2019,7],[2020,6,2020,7],[2023,6,2023,7],[2024,6,2024,7],[2025,6,2025,7],[2026,6,2026,7],[1984,6,1984,7],[1985,6,1985,7],[1986,6,1987,6],[1986,7,1987,7],[2017,6,2017,7],[2018,6,2018,7],[1976,6,1976,7],[1977,6,1977,7],[1978,6,1978,7],[1979,6,1979,7],[1982,6,1982,7],[1983,6,1983,7],[1941,6,1941,7],[1942,6,1942,7],[1943,6,1943,7],[1944,6,1944,7],[1945,6,1946,6],[1945,7,1946,7],[1904,6,1905,6],[1904,7,1905,7],[1935,6,1935,7],[1936,6,1936,7],[1937,6,1937,7],[1938,6,1938,7],[1896,6,1896,7],[1897,6,1897,7],[1900,6,1900,7],[1901,6,1901,7],[1902,6,1902,7],[1903,6,1903,7],[1861,6,1861,7],[1862,6,1862,7],[1863,6,1864,6],[1863,7,1864,7],[1894,6,1894,7],[1895,6,1895,7],[1853,6,1853,7],[1854,6,1854,7],[1855,6,1855,7],[1856,6,1856,7],[1859,6,1859,7],[1860,6,1860,7],[1818,6,1818,7],[1819,6,1819,7],[1820,6,1820,7],[1821,6,1821,7],[1822,6,1823,6],[1822,7,1823,7],[1781,6,1782,6],[1781,7,1782,7],[1812,6,1812,7],[1813,6,1813,7],[1814,6,1814,7],[1815,6,1815,7],[1773,6,1773,7],[1774,6,1774,7],[1777,6,1777,7],[1778,6,1778,7],[1779,6,1779,7],[1780,6,1780,7],[1738,6,1738,7],[1739,6,1739,7],[1740,6,1741,6],[1740,7,1741,7],[1771,6,1771,7],[1772,6,1772,7],[1730,6,1730,7],[1731,6,1731,7],[1732,6,1732,7],[1733,6,1733,7],[1736,6,1736,7],[1737,6,1737,7],[1695,6,1695,7],[1696,6,1696,7],[1697,6,1697,7],[1698,6,1698,7],[1699,6,1700,6],[1699,7,1700,7],[1658,6,1659,6],[1658,7,1659,7],[1689,6,1689,7],[1690,6,1690,7],[1691,6,1691,7],[1692,6,1692,7],[1650,6,1650,7],[1651,6,1651,7],[1654,6,1654,7],[1655,6,1655,7],[1656,6,1656,7],[1657,6,1657,7],[1615,6,1615,7],[1616,6,1616,7],[1617,6,1618,6],[1617,7,1618,7],[1648,6,1648,7],[1649,6,1649,7],[1607,6,1607,7],[1608,6,1608,7],[1609,6,1609,7],[1610,6,1610,7],[1613,6,1613,7],[1614,6,1614,7],[1572,6,1572,7],[1573,6,1573,7],[1574,6,1574,7],[1575,6,1575,7],[1576,6,1577,6],[1576,7,1577,7],[1535,6,1536,6],[1535,7,1536,7],[1566,6,1566,7],[1567,6,1567,7],[1568,6,1568,7],[1569,6,1569,7],[1527,6,1527,7],[1528,6,1528,7],[1531,6,1531,7],[1532,6,1532,7],[1533,6,1533,7],[1534,6,1534,7],[1492,6,1492,7],[1493,6,1493,7],[1494,6,1495,6],[1494,7,1495,7],[1525,6,1525,7],[1526,6,1526,7],[1484,6,1484,7],[1485,6,1485,7],[1486,6,1486,7],[1487,6,1487,7],[1490,6,1490,7],[1491,6,1491,7],[1449,6,1449,7],[1450,6,1450,7],[1451,6,1451,7],[1452,6,1452,7],[1453,6,1454,6],[1453,7,1454,7],[1412,6,1413,6],[1412,7,1413,7],[1443,6,1443,7],[1444,6,1444,7],[1445,6,1445,7],[1446,6,1446,7],[1404,6,1404,7],[1405,6,1405,7],[1408,6,1408,7],[1409,6,1409,7],[1410,6,1410,7],[1411,6,1411,7],[1369,6,1369,7],[1370,6,1370,7],[1371,6,1372,6],[1371,7,1372,7],[1402,6,1402,7],[1403,6,1403,7],[1361,6,1361,7],[1362,6,1362,7],[1363,6,1363,7],[1364,6,1364,7],[1367,6,1367,7],[1368,6,1368,7],[1326,6,1326,7],[1327,6,1327,7],[1328,6,1328,7],[1329,6,1329,7],[1330,6,1331,6],[1330,7,1331,7],[1289,6,1290,6],[1289,7,1290,7],[1320,6,1320,7],[1321,6,1321,7],[1322,6,1322,7],[1323,6,1323,7],[1281,6,1281,7],[1282,6,1282,7],[1285,6,1285,7],[1286,6,1286,7],[1287,6,1287,7],[1288,6,1288,7],[1246,6,1246,7],[1247,6,1247,7],[1248,6,1249,6],[1248,7,1249,7],[1279,6,1279,7],[1280,6,1280,7],[1238,6,1238,7],[1239,6,1239,7],[1240,6,1240,7],[1241,6,1241,7],[1244,6,1244,7],[1245,6,1245,7],[1203,6,1203,7],[1204,6,1204,7],[1205,6,1205,7],[1206,6,1206,7],[1207,6,1208,6],[1207,7,1208,7],[1166,6,1167,6],[1166,7,1167,7],[1197,6,1197,7],[1198,6,1198,7],[1199,6,1199,7],[1200,6,1200,7],[1158,6,1158,7],[1159,6,1159,7],[1162,6,1162,7],[1163,6,1163,7],[1164,6,1164,7],[1165,6,1165,7],[1123,6,1123,7],[1124,6,1124,7],[1125,6,1126,6],[1125,7,1126,7],[1156,6,1156,7],[1157,6,1157,7],[1115,6,1115,7],[1116,6,1116,7],[1117,6,1117,7],[1118,6,1118,7],[1121,6,1121,7],[1122,6,1122,7],[1080,6,1080,7],[1081,6,1081,7],[1082,6,1082,7],[1083,6,1083,7],[1084,6,1085,6],[1084,7,1085,7],[1043,6,1044,6],[1043,7,1044,7],[1074,6,1074,7],[1075,6,1075,7],[1076,6,1076,7],[1077,6,1077,7],[1035,6,1035,7],[1036,6,1036,7],[1039,6,1039,7],[1040,6,1040,7],[1041,6,1041,7],[1042,6,1042,7],[1000,6,1000,7],[1001,6,1001,7],[1002,6,1003,6],[1002,7,1003,7],[1033,6,1033,7],[1034,6,1034,7],[992,6,992,7],[993,6,993,7],[994,6,994,7],[995,6,995,7],[998,6,998,7],[999,6,999,7],[957,6,957,7],[958,6,958,7],[959,6,959,7],[960,6,960,7],[961,6,962,6],[961,7,962,7],[920,6,921,6],[920,7,921,7],[951,6,951,7],[952,6,952,7],[953,6,953,7],[954,6,954,7],[912,6,912,7],[913,6,913,7],[916,6,916,7],[917,6,917,7],[918,6,918,7],[919,6,919,7],[877,6,877,7],[878,6,878,7],[879,6,880,6],[879,7,880,7],[910,6,910,7],[911,6,911,7],[869,6,869,7],[870,6,870,7],[871,6,871,7],[872,6,872,7],[875,6,875,7],[876,6,876,7],[834,6,834,7],[835,6,835,7],[836,6,836,7],[837,6,837,7],[838,6,839,6],[838,7,839,7],[797,6,798,6],[797,7,798,7],[828,6,828,7],[829,6,829,7],[830,6,830,7],[831,6,831,7],[789,6,789,7],[790,6,790,7],[793,6,793,7],[794,6,794,7],[795,6,795,7],[796,6,796,7],[754,6,754,7],[755,6,755,7],[756,6,757,6],[756,7,757,7],[787,6,787,7],[788,6,788,7],[746,6,746,7],[747,6,747,7],[748,6,748,7],[749,6,749,7],[752,6,752,7],[753,6,753,7],[711,6,711,7],[712,6,712,7],[713,6,713,7],[714,6,714,7],[715,6,716,6],[715,7,716,7],[674,6,675,6],[674,7,675,7],[705,6,705,7],[706,6,706,7],[707,6,707,7],[708,6,708,7],[666,6,666,7],[667,6,667,7],[670,6,670,7],[671,6,671,7],[672,6,672,7],[673,6,673,7],[631,6,631,7],[632,6,632,7],[633,6,634,6],[633,7,634,7],[664,6,664,7],[665,6,665,7],[623,6,623,7],[624,6,624,7],[625,6,625,7],[626,6,626,7],[629,6,629,7],[630,6,630,7],[588,6,588,7],[589,6,589,7],[590,6,590,7],[591,6,591,7],[592,6,593,6],[592,7,593,7],[551,6,552,6],[551,7,552,7],[582,6,582,7],[583,6,583,7],[584,6,584,7],[585,6,585,7],[543,6,543,7],[544,6,544,7],[547,6,547,7],[548,6,548,7],[549,6,549,7],[550,6,550,7],[508,6,508,7],[509,6,509,7],[510,6,511,6],[510,7,511,7],[541,6,541,7],[542,6,542,7],[500,6,500,7],[501,6,501,7],[502,6,502,7],[503,6,503,7],[506,6,506,7],[507,6,507,7],[465,6,465,7],[466,6,466,7],[467,6,467,7],[468,6,468,7],[469,6,470,6],[469,7,470,7],[428,6,429,6],[428,7,429,7],[459,6,459,7],[460,6,460,7],[461,6,461,7],[462,6,462,7],[420,6,420,7],[421,6,421,7],[424,6,424,7],[425,6,425,7],[426,6,426,7],[427,6,427,7],[385,6,385,7],[386,6,386,7],[387,6,388,6],[387,7,388,7],[418,6,418,7],[419,6,419,7],[377,6,377,7],[378,6,378,7],[379,6,379,7],[380,6,380,7],[383,6,383,7],[384,6,384,7],[342,6,342,7],[343,6,343,7],[344,6,344,7],[345,6,345,7],[346,6,347,6],[346,7,347,7],[305,6,306,6],[305,7,306,7],[336,6,336,7],[337,6,337,7],[338,6,338,7],[339,6,339,7],[297,6,297,7],[298,6,298,7],[301,6,301,7],[302,6,302,7],[303,6,303,7],[304,6,304,7],[262,6,262,7],[263,6,263,7],[264,6,265,6],[264,7,265,7],[295,6,295,7],[296,6,296,7],[254,6,254,7],[255,6,255,7],[256,6,256,7],[257,6,257,7],[260,6,260,7],[261,6,261,7],[219,6,219,7],[220,6,220,7],[221,6,221,7],[222,6,222,7],[223,6,224,6],[223,7,224,7],[182,6,183,6],[182,7,183,7],[213,6,213,7],[214,6,214,7],[215,6,215,7],[216,6,216,7],[174,6,174,7],[175,6,175,7],[178,6,178,7],[179,6,179,7],[180,6,180,7],[181,6,181,7],[139,6,139,7],[140,6,140,7],[141,6,142,6],[141,7,142,7],[172,6,172,7],[173,6,173,7],[131,6,131,7],[132,6,132,7],[133,6,133,7],[134,6,134,7],[137,6,137,7],[138,6,138,7],[96,6,96,7],[97,6,97,7],[98,6,98,7],[99,6,99,7],[100,6,101,6],[100,7,101,7],[59,6,60,6],[59,7,60,7],[90,6,90,7],[91,6,91,7],[92,6,92,7],[93,6,93,7],[51,6,51,7],[52,6,52,7],[55,6,55,7],[56,6,56,7],[57,6,57,7],[58,6,58,7],[16,6,16,7],[17,6,17,7],[18,6,19,6],[18,7,19,7],[49,6,49,7],[50,6,50,7],[8,6,8,7],[9,6,9,7],[10,6,10,7],[11,6,11,7],[14,6,14,7],[15,6,15,7]]}
[]
[]
[]
[]
[null,null,"5 - 1715",null,null,null,"Form 1099-B Proceeds From Broker and Barter Exchange Transactions"]
[null,null,null,null,null,null,null,null,null,null,null,null,"Proceeds","Cost/Basis","Description"]
[null,null,null,null,null,0,null,null,null,null,null,1,{"$f":"INDEX(_xlfn._xlws.FILTER($H$5:$H$3693,$G$5:$G$3693=\"Proceeds:\"),L7)","v":104},{"$f":"INDEX(_xlfn._xlws.FILTER($H$5:$H$3693,$G$5:$G$3693=\"Cost or Basis:\"),L7)","v":84},{"$f":"INDEX(_xlfn._xlws.FILTER($H$5:$H$3693,$G$5:$G$3693=\"Description:\"),L7)","v":"CASTOR MARITIME INC COMMON SH ARES"}]
[null,null,null,null,null,{"$f":"IF(OR(G8=\"Proceeds:\",G8=\"Interest:\"),1+F7,F7)","v":0},"Payer:",null,null,null,null,2,{"$f":"INDEX(_xlfn._xlws.FILTER($H$5:$H$3693,$G$5:$G$3693=\"Proceeds:\"),L8)","v":50},{"$f":"INDEX(_xlfn._xlws.FILTER($H$5:$H$3693,$G$5:$G$3693=\"Cost or Basis:\"),L8)","v":49},{"$f":"INDEX(_xlfn._xlws.FILTER($H$5:$H$3693,$G$5:$G$3693=\"Description:\"),L8)","v":"INTEL CORPORATION COMMON STOCK"}]
[null,null,null,null,null,{"$f":"IF(OR(G9=\"Proceeds:\",G9=\"Interest:\"),1+F8,F8)","v":0},"Payer's Federal Identification Number (FIN):384019216",null,null,null,null,3,{"$f":"INDEX(_xlfn._xlws.FILTER($H$5:$H$3693,$G$5:$G$3693=\"Proceeds:\"),L9)","v":573},{"$f":"INDEX(_xlfn._xlws.FILTER($H$5:$H$3693,$G$5:$G$3693=\"Cost or Basis:\"),L9)","v":609},{"$f":"INDEX(_xlfn._xlws.FILTER($H$5:$H$3693,$G$5:$G$3693=\"Description:\"),L9)","v":"AMC ENTERTAINMENT HOLDINGS IN C"}]
[null,null,null,null,null,0,"ROBINHOOD SECURITIES LLC",null,null,null,null,4,{"$f":"INDEX(_xlfn._xlws.FILTER($H$5:$H$3693,$G$5:$G$3693=\"Proceeds:\"),L10)","v":81},{"$f":"INDEX(_xlfn._xlws.FILTER($H$5:$H$3693,$G$5:$G$3693=\"Cost or Basis:\"),L10)","v":110},{"$f":"INDEX(_xlfn._xlws.FILTER($H$5:$H$3693,$G$5:$G$3693=\"Description:\"),L10)","v":"SENS 02 19 2021 CALL 4 00"}]
[null,null,null,null,null,0,"500 COLONIAL CENTER PARKWAY SUITE 100",null,null,null,null,5,{"$f":"INDEX(_xlfn._xlws.FILTER($H$5:$H$3693,$G$5:$G$3693=\"Proceeds:\"),L11)","v":616},{"$f":"INDEX(_xlfn._xlws.FILTER($H$5:$H$3693,$G$5:$G$3693=\"Cost or Basis:\"),L11)","v":443},{"$f":"INDEX(_xlfn._xlws.FILTER($H$5:$H$3693,$G$5:$G$3693=\"Description:\"),L11)","v":"TESLA INC COMMON STOCK"}]
[null,null,null,null,null,0,"LAKE MARY, FL 32746-0000",null,null,null,null,6,{"$f":"INDEX(_xlfn._xlws.FILTER($H$5:$H$3693,$G$5:$G$3693=\"Proceeds:\"),L12)","v":58},{"$f":"INDEX(_xlfn._xlws.FILTER($H$5:$H$3693,$G$5:$G$3693=\"Cost or Basis:\"),L12)","v":100},{"$f":"INDEX(_xlfn._xlws.FILTER($H$5:$H$3693,$G$5:$G$3693=\"Description:\"),L12)","v":"SENSEONICS HOLDINGS INC"}]
[null,null,null,null,null,0,null,null,null,null,null,7,{"$f":"INDEX(_xlfn._xlws.FILTER($H$5:$H$3693,$G$5:$G$3693=\"Proceeds:\"),L13)","v":64},{"$f":"INDEX(_xlfn._xlws.FILTER($H$5:$H$3693,$G$5:$G$3693=\"Cost or Basis:\"),L13)","v":68},{"$f":"INDEX(_xlfn._xlws.FILTER($H$5:$H$3693,$G$5:$G$3693=\"Description:\"),L13)","v":"AMC ENTERTAINMENT HOLDINGS IN C"}]
[null,null,null,null,null,0,"Recipient:",null,null,null,null,8,{"$f":"INDEX(_xlfn._xlws.FILTER($H$5:$H$3693,$G$5:$G$3693=\"Proceeds:\"),L14)","v":645},{"$f":"INDEX(_xlfn._xlws.FILTER($H$5:$H$3693,$G$5:$G$3693=\"Cost or Basis:\"),L14)","v":626},{"$f":"INDEX(_xlfn._xlws.FILTER($H$5:$H$3693,$G$5:$G$3693=\"Description:\"),L14)","v":"VIRGIN GALACTIC HOLDINGS INC"}]
[null,null,null,null,null,0,"Recipient's Identification Number: 646-04-1329",null,null,null,null,9,{"$f":"INDEX(_xlfn._xlws.FILTER($H$5:$H$3693,$G$5:$G$3693=\"Proceeds:\"),L15)","v":628},{"$f":"INDEX(_xlfn._xlws.FILTER($H$5:$H$3693,$G$5:$G$3693=\"Cost or Basis:\"),L15)","v":685},{"$f":"INDEX(_xlfn._xlws.FILTER($H$5:$H$3693,$G$5:$G$3693=\"Description:\"),L15)","v":"VIRGIN GALACTIC HOLDINGS INC"}]
[null,null,null,null,null,0,"NATHAN TUN",null,null,null,null,10,{"$f":"INDEX(_xlfn._xlws.FILTER($H$5:$H$3693,$G$5:$G$3693=\"Proceeds:\"),L16)","v":634},{"$f":"INDEX(_xlfn._xlws.FILTER($H$5:$H$3693,$G$5:$G$3693=\"Cost or Basis:\"),L16)","v":647},{"$f":"INDEX(_xlfn._xlws.FILTER($H$5:$H$3693,$G$5:$G$3693=\"Description:\"),L16)","v":"ALIBABA GROUP HOLDING LIMITED AMERICAN"}]
[null,null,null,null,null,0,"1416 MICHIGAN ST C2",null,null,null,null,11,{"$f":"INDEX(_xlfn._xlws.FILTER($H$5:$H$3693,$G$5:$G$3693=\"Proceeds:\"),L17)","v":110},{"$f":"INDEX(_xlfn._xlws.FILTER($H$5:$H$3693,$G$5:$G$3693=\"Cost or Basis:\"),L17)","v":96},{"$f":"INDEX(_xlfn._xlws.FILTER($H$5:$H$3693,$G$5:$G$3693=\"Description:\"),L17)","v":"SENSEONICS HOLDINGS INC"}]
[null,null,null,null,null,0,"STORM LAKE, IA 50588-0000",null,null,null,null,12,{"$f":"INDEX(_xlfn._xlws.FILTER($H$5:$H$3693,$G$5:$G$3693=\"Proceeds:\"),L18)","v":102},{"$f":"INDEX(_xlfn._xlws.FILTER($H$5:$H$3693,$G$5:$G$3693=\"Cost or Basis:\"),L18)","v":76},{"$f":"INDEX(_xlfn._xlws.FILTER($H$5:$H$3693,$G$5:$G$3693=\"Description:\"),L18)","v":"SENSEONICS HOLDINGS INC"}]
[null,null,null,null,null,0,null,null,null,null,null,13,{"$f":"INDEX(_xlfn._xlws.FILTER($H$5:$H$3693,$G$5:$G$3693=\"Proceeds:\"),L19)","v":526},{"$f":"INDEX(_xlfn._xlws.FILTER($H$5:$H$3693,$G$5:$G$3693=\"Cost or Basis:\"),L19)","v":531},{"$f":"INDEX(_xlfn._xlws.FILTER($H$5:$H$3693,$G$5:$G$3693=\"Description:\"),L19)","v":"AMC ENTERTAINMENT HOLDINGS IN C"}]
[null,null,null,null,null,0,null,null,null,null,null,14,{"$f":"INDEX(_xlfn._xlws.FILTER($H$5:$H$3693,$G$5:$G$3693=\"Proceeds:\"),L20)","v":453},{"$f":"INDEX(_xlfn._xlws.FILTER($H$5:$H$3693,$G$5:$G$3693=\"Cost or Basis:\"),L20)","v":623},{"$f":"INDEX(_xlfn._xlws.FILTER($H$5:$H$3693,$G$5:$G$3693=\"Description:\"),L20)","v":"FUELCELL ENERGY INC COMMON S TOCK"}]
[null,null,null,null,null,0,"Submission Type:","Original document",null,null,null,15,{"$f":"INDEX(_xlfn._xlws.FILTER($H$5:$H$3693,$G$5:$G$3693=\"Proceeds:\"),L21)","v":111},{"$f":"INDEX(_xlfn._xlws.FILTER($H$5:$H$3693,$G$5:$G$3693=\"Cost or Basis:\"),L21)","v":108},{"$f":"INDEX(_xlfn._xlws.FILTER($H$5:$H$3693,$G$5:$G$3693=\"Description:\"),L21)","v":"ORGANIGRAM HOLDINGS INC COMMO N SHARES"}]
[null,null,null,null,null,0,"Account Number (Optional):","WSC15416451",null,null,null,16,{"$f":"INDEX(_xlfn._xlws.FILTER($H$5:$H$3693,$G$5:$G$3693=\"Proceeds:\"),L22)","v":15},{"$f":"INDEX(_xlfn._xlws.FILTER($H$5:$H$3693,$G$5:$G$3693=\"Cost or Basis:\"),L22)","v":40},{"$f":"INDEX(_xlfn._xlws.FILTER($H$5:$H$3693,$G$5:$G$3693=\"Description:\"),L22)","v":"CASTOR MARITIME INC COMMON SH ARES"}]
[null,null,null,null,null,0,"Date Sold or Disposed:","2021-02-08",null,null,null,17,{"$f":"INDEX(_xlfn._xlws.FILTER($H$5:$H$3693,$G$5:$G$3693=\"Proceeds:\"),L23)","v":618},{"$f":"INDEX(_xlfn._xlws.FILTER($H$5:$H$3693,$G$5:$G$3693=\"Cost or Basis:\"),L23)","v":630},{"$f":"INDEX(_xlfn._xlws.FILTER($H$5:$H$3693,$G$5:$G$3693=\"Description:\"),L23)","v":"AMC ENTERTAINMENT HOLDINGS IN C"}]
[null,null,null,null,null,0,"CUSIP Number:","Y1146L109",null,null,null,18,{"$f":"INDEX(_xlfn._xlws.FILTER($H$5:$H$3693,$G$5:$G$3693=\"Proceeds:\"),L24)","v":669},{"$f":"INDEX(_xlfn._xlws.FILTER($H$5:$H$3693,$G$5:$G$3693=\"Cost or Basis:\"),L24)","v":574},{"$f":"INDEX(_xlfn._xlws.FILTER($H$5:$H$3693,$G$5:$G$3693=\"Description:\"),L24)","v":"AMC ENTERTAINMENT HOLDINGS IN C"}]
[null,null,null,null,null,0,"Gross Proceeds:","Nothing checked",null,null,null,19,{"$f":"INDEX(_xlfn._xlws.FILTER($H$5:$H$3693,$G$5:$G$3693=\"Proceeds:\"),L25)","v":35},{"$f":"INDEX(_xlfn._xlws.FILTER($H$5:$H$3693,$G$5:$G$3693=\"Cost or Basis:\"),L25)","v":81},{"$f":"INDEX(_xlfn._xlws.FILTER($H$5:$H$3693,$G$5:$G$3693=\"Description:\"),L25)","v":"SUNDIAL GROWERS INC COMMON SH ARES"}]
[null,null,null,null,null,0,"Bartering:",0,null,null,null,20,{"$f":"INDEX(_xlfn._xlws.FILTER($H$5:$H$3693,$G$5:$G$3693=\"Proceeds:\"),L26)","v":51},{"$f":"INDEX(_xlfn._xlws.FILTER($H$5:$H$3693,$G$5:$G$3693=\"Cost or Basis:\"),L26)","v":127},{"$f":"INDEX(_xlfn._xlws.FILTER($H$5:$H$3693,$G$5:$G$3693=\"Description:\"),L26)","v":"SUNDIAL GROWERS INC COMMON SH ARES"}]
[null,null,null,null,null,0,"Federal Income Tax Withheld:",0,null,null,null,21,{"$f":"INDEX(_xlfn._xlws.FILTER($H$5:$H$3693,$G$5:$G$3693=\"Proceeds:\"),L27)","v":68},{"$f":"INDEX(_xlfn._xlws.FILTER($H$5:$H$3693,$G$5:$G$3693=\"Cost or Basis:\"),L27)","v":63},{"$f":"INDEX(_xlfn._xlws.FILTER($H$5:$H$3693,$G$5:$G$3693=\"Description:\"),L27)","v":"AGENUS INC COMMON STOCK"}]
[null,null,null,null,null,1,"Proceeds:",104,null,null,null,22,{"$f":"INDEX(_xlfn._xlws.FILTER($H$5:$H$3693,$G$5:$G$3693=\"Proceeds:\"),L28)","v":92},{"$f":"INDEX(_xlfn._xlws.FILTER($H$5:$H$3693,$G$5:$G$3693=\"Cost or Basis:\"),L28)","v":90},{"$f":"INDEX(_xlfn._xlws.FILTER($H$5:$H$3693,$G$5:$G$3693=\"Description:\"),L28)","v":"GENERAL ELECTRIC COMPANY"}]
[null,null,null,null,null,1,"Aggregate Profit or (Loss):",0,null,null,null,23,{"$f":"INDEX(_xlfn._xlws.FILTER($H$5:$H$3693,$G$5:$G$3693=\"Proceeds:\"),L29)","v":49},{"$f":"INDEX(_xlfn._xlws.FILTER($H$5:$H$3693,$G$5:$G$3693=\"Cost or Basis:\"),L29)","v":50},{"$f":"INDEX(_xlfn._xlws.FILTER($H$5:$H$3693,$G$5:$G$3693=\"Description:\"),L29)","v":"TESLA INC COMMON STOCK"}]
[null,null,null,null,null,1,"Realized Profit or (Loss):",0,null,null,null,24,{"$f":"INDEX(_xlfn._xlws.FILTER($H$5:$H$3693,$G$5:$G$3693=\"Proceeds:\"),L30)","v":205},{"$f":"INDEX(_xlfn._xlws.FILTER($H$5:$H$3693,$G$5:$G$3693=\"Cost or Basis:\"),L30)","v":206},{"$f":"INDEX(_xlfn._xlws.FILTER($H$5:$H$3693,$G$5:$G$3693=\"Description:\"),L30)","v":"SENSEONICS HOLDINGS INC"}]
[null,null,null,null,null,1,"Unrealized Profit or (Loss) 12/31 Prior Year:",0,null,null,null,25,{"$f":"INDEX(_xlfn._xlws.FILTER($H$5:$H$3693,$G$5:$G$3693=\"Proceeds:\"),L31)","v":683},{"$f":"INDEX(_xlfn._xlws.FILTER($H$5:$H$3693,$G$5:$G$3693=\"Cost or Basis:\"),L31)","v":670},{"$f":"INDEX(_xlfn._xlws.FILTER($H$5:$H$3693,$G$5:$G$3693=\"Description:\"),L31)","v":"FUELCELL ENERGY INC COMMON S TOCK"}]
[null,null,null,null,null,1,"Unrealized Profit or (Loss) 12/31 Current Year:",0,null,null,null,26,{"$f":"INDEX(_xlfn._xlws.FILTER($H$5:$H$3693,$G$5:$G$3693=\"Proceeds:\"),L32)","v":44},{"$f":"INDEX(_xlfn._xlws.FILTER($H$5:$H$3693,$G$5:$G$3693=\"Cost or Basis:\"),L32)","v":0},{"$f":"INDEX(_xlfn._xlws.FILTER($H$5:$H$3693,$G$5:$G$3693=\"Description:\"),L32)","v":"0.04071868 BITCOIN CASH TO US DOLLAR"}]
[null,null,null,null,null,1,"Cost or Basis:",84,null,null,null,27,{"$f":"INDEX(_xlfn._xlws.FILTER($H$5:$H$3693,$G$5:$G$3693=\"Proceeds:\"),L33)","v":42},{"$f":"INDEX(_xlfn._xlws.FILTER($H$5:$H$3693,$G$5:$G$3693=\"Cost or Basis:\"),L33)","v":0},{"$f":"INDEX(_xlfn._xlws.FILTER($H$5:$H$3693,$G$5:$G$3693=\"Description:\"),L33)","v":"590 DOGECOIN TO US DOLLAR"}]
[null,null,null,null,null,1,"Wash Sale Loss Disallowed:",0,null,null,null,28,{"$f":"INDEX(_xlfn._xlws.FILTER($H$5:$H$3693,$G$5:$G$3693=\"Proceeds:\"),L34)","v":20},{"$f":"INDEX(_xlfn._xlws.FILTER($H$5:$H$3693,$G$5:$G$3693=\"Cost or Basis:\"),L34)","v":0},{"$f":"INDEX(_xlfn._xlws.FILTER($H$5:$H$3693,$G$5:$G$3693=\"Description:\"),L34)","v":"239 DOGECOIN TO US DOLLAR"}]
[null,null,null,null,null,1,"Accrued Market Discount Amount:",0,null,null,null,29,{"$f":"INDEX(_xlfn._xlws.FILTER($H$5:$H$3693,$G$5:$G$3693=\"Proceeds:\"),L35)","v":58},{"$f":"INDEX(_xlfn._xlws.FILTER($H$5:$H$3693,$G$5:$G$3693=\"Cost or Basis:\"),L35)","v":0},{"$f":"INDEX(_xlfn._xlws.FILTER($H$5:$H$3693,$G$5:$G$3693=\"Description:\"),L35)","v":"726 DOGECOIN TO US DOLLAR"}]
[null,null,null,null,null,1,"Description:","CASTOR MARITIME INC COMMON SH ARES",null,null,null,30,{"$f":"INDEX(_xlfn._xlws.FILTER($H$5:$H$3693,$G$5:$G$3693=\"Proceeds:\"),L36)","v":113},{"$f":"INDEX(_xlfn._xlws.FILTER($H$5:$H$3693,$G$5:$G$3693=\"Cost or Basis:\"),L36)","v":0},{"$f":"INDEX(_xlfn._xlws.FILTER($H$5:$H$3693,$G$5:$G$3693=\"Description:\"),L36)","v":"1247 DOGECOIN TO US DOLLAR"}]
[null,null,null,null,null,1,"Second Notice Indicator:","No Second Notice",null,null,null,31,{"$f":"INDEX(_xlfn._xlws.FILTER($H$5:$H$3693,$G$5:$G$3693=\"Proceeds:\"),L37)","v":97},{"$f":"INDEX(_xlfn._xlws.FILTER($H$5:$H$3693,$G$5:$G$3693=\"Cost or Basis:\"),L37)","v":0},{"$f":"INDEX(_xlfn._xlws.FILTER($H$5:$H$3693,$G$5:$G$3693=\"Description:\"),L37)","v":"736 DOGECOIN TO US DOLLAR"}]
[null,null,null,null,null,1,"Date Acquired:","2021-02-04",null,null,null,32,{"$f":"INDEX(_xlfn._xlws.FILTER($H$5:$H$3693,$G$5:$G$3693=\"Proceeds:\"),L38)","v":253},{"$f":"INDEX(_xlfn._xlws.FILTER($H$5:$H$3693,$G$5:$G$3693=\"Cost or Basis:\"),L38)","v":0},{"$f":"INDEX(_xlfn._xlws.FILTER($H$5:$H$3693,$G$5:$G$3693=\"Description:\"),L38)","v":"768 DOGECOIN TO US DOLLAR"}]
[null,null,null,null,null,1,"Noncovered Security Indicator:","Nothing checked",null,null,null,33,{"$f":"INDEX(_xlfn._xlws.FILTER($H$5:$H$3693,$G$5:$G$3693=\"Proceeds:\"),L39)","v":292},{"$f":"INDEX(_xlfn._xlws.FILTER($H$5:$H$3693,$G$5:$G$3693=\"Cost or Basis:\"),L39)","v":0},{"$f":"INDEX(_xlfn._xlws.FILTER($H$5:$H$3693,$G$5:$G$3693=\"Description:\"),L39)","v":"746 DOGECOIN TO US DOLLAR"}]
[null,null,null,null,null,1,"Type of Gain or Loss Code:","Short-term",null,null,null,34,{"$f":"INDEX(_xlfn._xlws.FILTER($H$5:$H$3693,$G$5:$G$3693=\"Proceeds:\"),L40)","v":5},{"$f":"INDEX(_xlfn._xlws.FILTER($H$5:$H$3693,$G$5:$G$3693=\"Cost or Basis:\"),L40)","v":0},{"$f":"INDEX(_xlfn._xlws.FILTER($H$5:$H$3693,$G$5:$G$3693=\"Description:\"),L40)","v":"16 DOGECOIN TO US DOLLAR"}]
[null,null,null,null,null,1,"Applicable Check Box on Form 8949:","Short term transaction for which the cost or other basis is being reported to the IRS",null,null,null,35,{"$f":"INDEX(_xlfn._xlws.FILTER($H$5:$H$3693,$G$5:$G$3693=\"Proceeds:\"),L41)","v":279},{"$f":"INDEX(_xlfn._xlws.FILTER($H$5:$H$3693,$G$5:$G$3693=\"Cost or Basis:\"),L41)","v":0},{"$f":"INDEX(_xlfn._xlws.FILTER($H$5:$H$3693,$G$5:$G$3693=\"Description:\"),L41)","v":"776 DOGECOIN TO US DOLLAR"}]
[null,null,null,null,null,1,"Loss Not Allowed Indicator:",null,null,null,null,36,{"$f":"INDEX(_xlfn._xlws.FILTER($H$5:$H$3693,$G$5:$G$3693=\"Proceeds:\"),L42)","v":135},{"$f":"INDEX(_xlfn._xlws.FILTER($H$5:$H$3693,$G$5:$G$3693=\"Cost or Basis:\"),L42)","v":0},{"$f":"INDEX(_xlfn._xlws.FILTER($H$5:$H$3693,$G$5:$G$3693=\"Description:\"),L42)","v":"259 DOGECOIN TO US DOLLAR"}]
[null,null,null,null,null,1,"FATCA Filing Requirement:","Box not checked no Filing Requirement",null,null,null,37,{"$f":"INDEX(_xlfn._xlws.FILTER($H$5:$H$3693,$G$5:$G$3693=\"Proceeds:\"),L43)","v":440},{"$f":"INDEX(_xlfn._xlws.FILTER($H$5:$H$3693,$G$5:$G$3693=\"Cost or Basis:\"),L43)","v":0},{"$f":"INDEX(_xlfn._xlws.FILTER($H$5:$H$3693,$G$5:$G$3693=\"Description:\"),L43)","v":"720 DOGECOIN TO US DOLLAR"}]
[null,null,null,null,null,1,"Proceeds from:","Box not checked",null,null,null,38,{"$f":"INDEX(_xlfn._xlws.FILTER($H$5:$H$3693,$G$5:$G$3693=\"Proceeds:\"),L44)","v":225},{"$f":"INDEX(_xlfn._xlws.FILTER($H$5:$H$3693,$G$5:$G$3693=\"Cost or Basis:\"),L44)","v":0},{"$f":"INDEX(_xlfn._xlws.FILTER($H$5:$H$3693,$G$5:$G$3693=\"Description:\"),L44)","v":"342 DOGECOIN TO US DOLLAR"}]
[null,null,null,null,null,1,null,null,null,null,null,39,{"$f":"INDEX(_xlfn._xlws.FILTER($H$5:$H$3693,$G$5:$G$3693=\"Proceeds:\"),L45)","v":221},{"$f":"INDEX(_xlfn._xlws.FILTER($H$5:$H$3693,$G$5:$G$3693=\"Cost or Basis:\"),L45)","v":0},{"$f":"INDEX(_xlfn._xlws.FILTER($H$5:$H$3693,$G$5:$G$3693=\"Description:\"),L45)","v":"336 DOGECOIN TO US DOLLAR"}]
[null,null,null,null,null,1,"Form 1099-B Proceeds From Broker and Barter Exchange Transactions",null,null,null,null,40,{"$f":"INDEX(_xlfn._xlws.FILTER($H$5:$H$3693,$G$5:$G$3693=\"Proceeds:\"),L46)","v":163},{"$f":"INDEX(_xlfn._xlws.FILTER($H$5:$H$3693,$G$5:$G$3693=\"Cost or Basis:\"),L46)","v":0},{"$f":"INDEX(_xlfn._xlws.FILTER($H$5:$H$3693,$G$5:$G$3693=\"Description:\"),L46)","v":"241 DOGECOIN TO US DOLLAR"}]
[null,null,null,null,null,1,null,null,null,null,null,41,{"$f":"INDEX(_xlfn._xlws.FILTER($H$5:$H$3693,$G$5:$G$3693=\"Proceeds:\"),L47)","v":293},{"$f":"INDEX(_xlfn._xlws.FILTER($H$5:$H$3693,$G$5:$G$3693=\"Cost or Basis:\"),L47)","v":0},{"$f":"INDEX(_xlfn._xlws.FILTER($H$5:$H$3693,$G$5:$G$3693=\"Description:\"),L47)","v":"433 DOGECOIN TO US DOLLAR"}]
[null,null,null,null,null,1,null,null,null,null,null,42,{"$f":"INDEX(_xlfn._xlws.FILTER($H$5:$H$3693,$G$5:$G$3693=\"Proceeds:\"),L48)","v":367},{"$f":"INDEX(_xlfn._xlws.FILTER($H$5:$H$3693,$G$5:$G$3693=\"Cost or Basis:\"),L48)","v":0},{"$f":"INDEX(_xlfn._xlws.FILTER($H$5:$H$3693,$G$5:$G$3693=\"Description:\"),L48)","v":"624 DOGECOIN TO US DOLLAR"}]
[null,null,null,null,null,1,"Payer:",null,null,null,null,43,{"$f":"INDEX(_xlfn._xlws.FILTER($H$5:$H$3693,$G$5:$G$3693=\"Proceeds:\"),L49)","v":384},{"$f":"INDEX(_xlfn._xlws.FILTER($H$5:$H$3693,$G$5:$G$3693=\"Cost or Basis:\"),L49)","v":0},{"$f":"INDEX(_xlfn._xlws.FILTER($H$5:$H$3693,$G$5:$G$3693=\"Description:\"),L49)","v":"802 DOGECOIN TO US DOLLAR"}]
[null,null,null,null,null,1,"Payer's Federal Identification Number (FIN):384019216",null,null,null,null,44,{"$f":"INDEX(_xlfn._xlws.FILTER($H$5:$H$3693,$G$5:$G$3693=\"Proceeds:\"),L50)","v":141},{"$f":"INDEX(_xlfn._xlws.FILTER($H$5:$H$3693,$G$5:$G$3693=\"Cost or Basis:\"),L50)","v":0},{"$f":"INDEX(_xlfn._xlws.FILTER($H$5:$H$3693,$G$5:$G$3693=\"Description:\"),L50)","v":"294.56 DOGECOIN TO US DOLLAR"}]
[null,null,null,null,null,1,"ROBINHOOD SECURITIES LLC",null,null,null,null,45,{"$f":"INDEX(_xlfn._xlws.FILTER($H$5:$H$3693,$G$5:$G$3693=\"Proceeds:\"),L51)","v":231},{"$f":"INDEX(_xlfn._xlws.FILTER($H$5:$H$3693,$G$5:$G$3693=\"Cost or Basis:\"),L51)","v":0},{"$f":"INDEX(_xlfn._xlws.FILTER($H$5:$H$3693,$G$5:$G$3693=\"Description:\"),L51)","v":"484.27 DOGECOIN TO US DOLLAR"}]
[null,null,null,null,null,1,"500 COLONIAL CENTER PARKWAY SUITE 100",null,null,null,null,46,{"$f":"INDEX(_xlfn._xlws.FILTER($H$5:$H$3693,$G$5:$G$3693=\"Proceeds:\"),L52)","v":37},{"$f":"INDEX(_xlfn._xlws.FILTER($H$5:$H$3693,$G$5:$G$3693=\"Cost or Basis:\"),L52)","v":0},{"$f":"INDEX(_xlfn._xlws.FILTER($H$5:$H$3693,$G$5:$G$3693=\"Description:\"),L52)","v":"115.35 DOGECOIN TO US DOLLAR"}]
[null,null,null,null,null,1,"LAKE MARY, FL 32746-0000",null,null,null,null,47,{"$f":"INDEX(_xlfn._xlws.FILTER($H$5:$H$3693,$G$5:$G$3693=\"Proceeds:\"),L53)","v":5},{"$f":"INDEX(_xlfn._xlws.FILTER($H$5:$H$3693,$G$5:$G$3693=\"Cost or Basis:\"),L53)","v":0},{"$f":"INDEX(_xlfn._xlws.FILTER($H$5:$H$3693,$G$5:$G$3693=\"Description:\"),L53)","v":"0.098217 ETHEREUM CLASSIC TO US DOLLAR"}]
[null,null,null,null,null,1,null,null,null,null,null,48,{"$f":"INDEX(_xlfn._xlws.FILTER($H$5:$H$3693,$G$5:$G$3693=\"Proceeds:\"),L54)","v":275},{"$f":"INDEX(_xlfn._xlws.FILTER($H$5:$H$3693,$G$5:$G$3693=\"Cost or Basis:\"),L54)","v":0},{"$f":"INDEX(_xlfn._xlws.FILTER($H$5:$H$3693,$G$5:$G$3693=\"Description:\"),L54)","v":"5.150000 ETHEREUM CLASSIC TO US DOLLAR"}]
[null,null,null,null,null,1,"Recipient:",null,null,null,null,49,{"$f":"INDEX(_xlfn._xlws.FILTER($H$5:$H$3693,$G$5:$G$3693=\"Proceeds:\"),L55)","v":86},{"$f":"INDEX(_xlfn._xlws.FILTER($H$5:$H$3693,$G$5:$G$3693=\"Cost or Basis:\"),L55)","v":0},{"$f":"INDEX(_xlfn._xlws.FILTER($H$5:$H$3693,$G$5:$G$3693=\"Description:\"),L55)","v":"1.202132 ETHEREUM CLASSIC TO US DOLLAR"}]
[null,null,null,null,null,1,"Recipient's Identification Number: 646-04-1329",null,null,null,null,50,{"$f":"INDEX(_xlfn._xlws.FILTER($H$5:$H$3693,$G$5:$G$3693=\"Proceeds:\"),L56)","v":249},{"$f":"INDEX(_xlfn._xlws.FILTER($H$5:$H$3693,$G$5:$G$3693=\"Cost or Basis:\"),L56)","v":0},{"$f":"INDEX(_xlfn._xlws.FILTER($H$5:$H$3693,$G$5:$G$3693=\"Description:\"),L56)","v":"3.998088 ETHEREUM CLASSIC TO US DOLLAR"}]
[null,null,null,null,null,1,"NATHAN TUN",null,null,null,null,51,{"$f":"INDEX(_xlfn._xlws.FILTER($H$5:$H$3693,$G$5:$G$3693=\"Proceeds:\"),L57)","v":427},{"$f":"INDEX(_xlfn._xlws.FILTER($H$5:$H$3693,$G$5:$G$3693=\"Cost or Basis:\"),L57)","v":0},{"$f":"INDEX(_xlfn._xlws.FILTER($H$5:$H$3693,$G$5:$G$3693=\"Description:\"),L57)","v":"5.000000 ETHEREUM CLASSIC TO US DOLLAR"}]
[null,null,null,null,null,1,"1416 MICHIGAN ST C2",null,null,null,null,52,{"$f":"INDEX(_xlfn._xlws.FILTER($H$5:$H$3693,$G$5:$G$3693=\"Proceeds:\"),L58)","v":14},{"$f":"INDEX(_xlfn._xlws.FILTER($H$5:$H$3693,$G$5:$G$3693=\"Cost or Basis:\"),L58)","v":0},{"$f":"INDEX(_xlfn._xlws.FILTER($H$5:$H$3693,$G$5:$G$3693=\"Description:\"),L58)","v":"0.180177 ETHEREUM CLASSIC TO US DOLLAR"}]
[null,null,null,null,null,1,"STORM LAKE, IA 50588-0000",null,null,null,null,53,{"$f":"INDEX(_xlfn._xlws.FILTER($H$5:$H$3693,$G$5:$G$3693=\"Proceeds:\"),L59)","v":62},{"$f":"INDEX(_xlfn._xlws.FILTER($H$5:$H$3693,$G$5:$G$3693=\"Cost or Basis:\"),L59)","v":0},{"$f":"INDEX(_xlfn._xlws.FILTER($H$5:$H$3693,$G$5:$G$3693=\"Description:\"),L59)","v":"0.648932 ETHEREUM CLASSIC TO US DOLLAR"}]
[null,null,null,null,null,1,null,null,null,null,null,54,{"$f":"INDEX(_xlfn._xlws.FILTER($H$5:$H$3693,$G$5:$G$3693=\"Proceeds:\"),L60)","v":387},{"$f":"INDEX(_xlfn._xlws.FILTER($H$5:$H$3693,$G$5:$G$3693=\"Cost or Basis:\"),L60)","v":0},{"$f":"INDEX(_xlfn._xlws.FILTER($H$5:$H$3693,$G$5:$G$3693=\"Description:\"),L60)","v":"4.050316 ETHEREUM CLASSIC TO US DOLLAR"}]
[null,null,null,null,null,1,null,null,null,null,null,55,{"$f":"INDEX(_xlfn._xlws.FILTER($H$5:$H$3693,$G$5:$G$3693=\"Proceeds:\"),L61)","v":399},{"$f":"INDEX(_xlfn._xlws.FILTER($H$5:$H$3693,$G$5:$G$3693=\"Cost or Basis:\"),L61)","v":0},{"$f":"INDEX(_xlfn._xlws.FILTER($H$5:$H$3693,$G$5:$G$3693=\"Description:\"),L61)","v":"4.072565 ETHEREUM CLASSIC TO US DOLLAR"}]
[null,null,null,null,null,1,"Submission Type:","Original document",null,null,null,56,{"$f":"INDEX(_xlfn._xlws.FILTER($H$5:$H$3693,$G$5:$G$3693=\"Proceeds:\"),L62)","v":490},{"$f":"INDEX(_xlfn._xlws.FILTER($H$5:$H$3693,$G$5:$G$3693=\"Cost or Basis:\"),L62)","v":0},{"$f":"INDEX(_xlfn._xlws.FILTER($H$5:$H$3693,$G$5:$G$3693=\"Description:\"),L62)","v":"3.999394 ETHEREUM CLASSIC TO US DOLLAR"}]
[null,null,null,null,null,1,"Account Number (Optional):","WSC15416452",null,null,null,57,{"$f":"INDEX(_xlfn._xlws.FILTER($H$5:$H$3693,$G$5:$G$3693=\"Proceeds:\"),L63)","v":493},{"$f":"INDEX(_xlfn._xlws.FILTER($H$5:$H$3693,$G$5:$G$3693=\"Cost or Basis:\"),L63)","v":0},{"$f":"INDEX(_xlfn._xlws.FILTER($H$5:$H$3693,$G$5:$G$3693=\"Description:\"),L63)","v":"2.74299 ETHEREUM CLASSIC TO US DOLLAR"}]
[null,null,null,null,null,1,"Date Sold or Disposed:","2021-01-20",null,null,null,58,{"$f":"INDEX(_xlfn._xlws.FILTER($H$5:$H$3693,$G$5:$G$3693=\"Proceeds:\"),L64)","v":267},{"$f":"INDEX(_xlfn._xlws.FILTER($H$5:$H$3693,$G$5:$G$3693=\"Cost or Basis:\"),L64)","v":0},{"$f":"INDEX(_xlfn._xlws.FILTER($H$5:$H$3693,$G$5:$G$3693=\"Description:\"),L64)","v":"1.482858 ETHEREUM CLASSIC TO US DOLLAR"}]
[null,null,null,null,null,1,"CUSIP Number:",458140100,null,null,null,59,{"$f":"INDEX(_xlfn._xlws.FILTER($H$5:$H$3693,$G$5:$G$3693=\"Proceeds:\"),L65)","v":416},{"$f":"INDEX(_xlfn._xlws.FILTER($H$5:$H$3693,$G$5:$G$3693=\"Cost or Basis:\"),L65)","v":0},{"$f":"INDEX(_xlfn._xlws.FILTER($H$5:$H$3693,$G$5:$G$3693=\"Description:\"),L65)","v":"2.380465 ETHEREUM CLASSIC TO US DOLLAR"}]
[null,null,null,null,null,1,"Gross Proceeds:","Nothing checked",null,null,null,60,{"$f":"INDEX(_xlfn._xlws.FILTER($H$5:$H$3693,$G$5:$G$3693=\"Proceeds:\"),L66)","v":332},{"$f":"INDEX(_xlfn._xlws.FILTER($H$5:$H$3693,$G$5:$G$3693=\"Cost or Basis:\"),L66)","v":0},{"$f":"INDEX(_xlfn._xlws.FILTER($H$5:$H$3693,$G$5:$G$3693=\"Description:\"),L66)","v":"1.898000 ETHEREUM CLASSIC TO US DOLLAR"}]
[null,null,null,null,null,1,"Bartering:",0,null,null,null,61,{"$f":"INDEX(_xlfn._xlws.FILTER($H$5:$H$3693,$G$5:$G$3693=\"Proceeds:\"),L67)","v":428},{"$f":"INDEX(_xlfn._xlws.FILTER($H$5:$H$3693,$G$5:$G$3693=\"Cost or Basis:\"),L67)","v":0},{"$f":"INDEX(_xlfn._xlws.FILTER($H$5:$H$3693,$G$5:$G$3693=\"Description:\"),L67)","v":"2.386 ETHEREUM CLASSIC TO US DOLLAR"}]
[null,null,null,null,null,1,"Federal Income Tax Withheld:",0,null,null,null,62,{"$f":"INDEX(_xlfn._xlws.FILTER($H$5:$H$3693,$G$5:$G$3693=\"Proceeds:\"),L68)","v":290},{"$f":"INDEX(_xlfn._xlws.FILTER($H$5:$H$3693,$G$5:$G$3693=\"Cost or Basis:\"),L68)","v":0},{"$f":"INDEX(_xlfn._xlws.FILTER($H$5:$H$3693,$G$5:$G$3693=\"Description:\"),L68)","v":"1.614 ETHEREUM CLASSIC TO US DOLLAR"}]
[null,null,null,null,null,2,"Proceeds:",50,null,null,null,63,{"$f":"INDEX(_xlfn._xlws.FILTER($H$5:$H$3693,$G$5:$G$3693=\"Proceeds:\"),L69)","v":420},{"$f":"INDEX(_xlfn._xlws.FILTER($H$5:$H$3693,$G$5:$G$3693=\"Cost or Basis:\"),L69)","v":0},{"$f":"INDEX(_xlfn._xlws.FILTER($H$5:$H$3693,$G$5:$G$3693=\"Description:\"),L69)","v":"3.072809 ETHEREUM CLASSIC TO US DOLLAR"}]
[null,null,null,null,null,2,"Aggregate Profit or (Loss):",0,null,null,null,64,{"$f":"INDEX(_xlfn._xlws.FILTER($H$5:$H$3693,$G$5:$G$3693=\"Proceeds:\"),L70)","v":259},{"$f":"INDEX(_xlfn._xlws.FILTER($H$5:$H$3693,$G$5:$G$3693=\"Cost or Basis:\"),L70)","v":0},{"$f":"INDEX(_xlfn._xlws.FILTER($H$5:$H$3693,$G$5:$G$3693=\"Description:\"),L70)","v":"1.894000 ETHEREUM CLASSIC TO US DOLLAR"}]
[null,null,null,null,null,2,"Realized Profit or (Loss):",0,null,null,null,65,{"$f":"INDEX(_xlfn._xlws.FILTER($H$5:$H$3693,$G$5:$G$3693=\"Proceeds:\"),L71)","v":277},{"$f":"INDEX(_xlfn._xlws.FILTER($H$5:$H$3693,$G$5:$G$3693=\"Cost or Basis:\"),L71)","v":0},{"$f":"INDEX(_xlfn._xlws.FILTER($H$5:$H$3693,$G$5:$G$3693=\"Description:\"),L71)","v":"2.1675 ETHEREUM CLASSIC TO US DOLLAR"}]
[null,null,null,null,null,2,"Unrealized Profit or (Loss) 12/31 Prior Year:",0,null,null,null,66,{"$f":"INDEX(_xlfn._xlws.FILTER($H$5:$H$3693,$G$5:$G$3693=\"Proceeds:\"),L72)","v":329},{"$f":"INDEX(_xlfn._xlws.FILTER($H$5:$H$3693,$G$5:$G$3693=\"Cost or Basis:\"),L72)","v":0},{"$f":"INDEX(_xlfn._xlws.FILTER($H$5:$H$3693,$G$5:$G$3693=\"Description:\"),L72)","v":"2.567000 ETHEREUM CLASSIC TO US DOLLAR"}]
[null,null,null,null,null,{"$f":"IF(OR(G73=\"Proceeds:\",G73=\"Interest:\"),1+F72,F72)","v":2},"Unrealized Profit or (Loss) 12/31 Current Year:",0,null,null,null,67,{"$f":"INDEX(_xlfn._xlws.FILTER($H$5:$H$3693,$G$5:$G$3693=\"Proceeds:\"),L73)","v":27},{"$f":"INDEX(_xlfn._xlws.FILTER($H$5:$H$3693,$G$5:$G$3693=\"Cost or Basis:\"),L73)","v":0},{"$f":"INDEX(_xlfn._xlws.FILTER($H$5:$H$3693,$G$5:$G$3693=\"Description:\"),L73)","v":"0.216975 ETHEREUM CLASSIC TO US DOLLAR"}]
[null,null,null,null,null,2,"Cost or Basis:",49,null,null,null,68,{"$f":"INDEX(_xlfn._xlws.FILTER($H$5:$H$3693,$G$5:$G$3693=\"Proceeds:\"),L74)","v":55},{"$f":"INDEX(_xlfn._xlws.FILTER($H$5:$H$3693,$G$5:$G$3693=\"Cost or Basis:\"),L74)","v":0},{"$f":"INDEX(_xlfn._xlws.FILTER($H$5:$H$3693,$G$5:$G$3693=\"Description:\"),L74)","v":"0.365967 ETHEREUM CLASSIC TO US DOLLAR"}]
[null,null,null,null,null,2,"Wash Sale Loss Disallowed:",0,null,null,null,69,{"$f":"INDEX(_xlfn._xlws.FILTER($H$5:$H$3693,$G$5:$G$3693=\"Proceeds:\"),L75)","v":402},{"$f":"INDEX(_xlfn._xlws.FILTER($H$5:$H$3693,$G$5:$G$3693=\"Cost or Basis:\"),L75)","v":0},{"$f":"INDEX(_xlfn._xlws.FILTER($H$5:$H$3693,$G$5:$G$3693=\"Description:\"),L75)","v":"2.669000 ETHEREUM CLASSIC TO US DOLLAR"}]
[null,null,null,null,null,2,"Accrued Market Discount Amount:",0,null,null,null,70,{"$f":"INDEX(_xlfn._xlws.FILTER($H$5:$H$3693,$G$5:$G$3693=\"Proceeds:\"),L76)","v":87},{"$f":"INDEX(_xlfn._xlws.FILTER($H$5:$H$3693,$G$5:$G$3693=\"Cost or Basis:\"),L76)","v":0},{"$f":"INDEX(_xlfn._xlws.FILTER($H$5:$H$3693,$G$5:$G$3693=\"Description:\"),L76)","v":"0.577685 ETHEREUM CLASSIC TO US DOLLAR"}]
[null,null,null,null,null,2,"Description:","INTEL CORPORATION COMMON STOCK",null,null,null,71,{"$f":"INDEX(_xlfn._xlws.FILTER($H$5:$H$3693,$G$5:$G$3693=\"Proceeds:\"),L77)","v":116},{"$f":"INDEX(_xlfn._xlws.FILTER($H$5:$H$3693,$G$5:$G$3693=\"Cost or Basis:\"),L77)","v":0},{"$f":"INDEX(_xlfn._xlws.FILTER($H$5:$H$3693,$G$5:$G$3693=\"Description:\"),L77)","v":"0.774444 ETHEREUM CLASSIC TO US DOLLAR"}]
[null,null,null,null,null,2,"Second Notice Indicator:","No Second Notice",null,null,null,72,{"$f":"INDEX(_xlfn._xlws.FILTER($H$5:$H$3693,$G$5:$G$3693=\"Proceeds:\"),L78)","v":178},{"$f":"INDEX(_xlfn._xlws.FILTER($H$5:$H$3693,$G$5:$G$3693=\"Cost or Basis:\"),L78)","v":0},{"$f":"INDEX(_xlfn._xlws.FILTER($H$5:$H$3693,$G$5:$G$3693=\"Description:\"),L78)","v":"1.38416 ETHEREUM CLASSIC TO US DOLLAR"}]
[null,null,null,null,null,2,"Date Acquired:","2021-01-19",null,null,null,73,{"$f":"INDEX(_xlfn._xlws.FILTER($H$5:$H$3693,$G$5:$G$3693=\"Proceeds:\"),L79)","v":95},{"$f":"INDEX(_xlfn._xlws.FILTER($H$5:$H$3693,$G$5:$G$3693=\"Cost or Basis:\"),L79)","v":0},{"$f":"INDEX(_xlfn._xlws.FILTER($H$5:$H$3693,$G$5:$G$3693=\"Description:\"),L79)","v":"0.645375 ETHEREUM CLASSIC TO US DOLLAR"}]
[null,null,null,null,null,2,"Noncovered Security Indicator:","Nothing checked",null,null,null,74,{"$f":"INDEX(_xlfn._xlws.FILTER($H$5:$H$3693,$G$5:$G$3693=\"Proceeds:\"),L80)","v":364},{"$f":"INDEX(_xlfn._xlws.FILTER($H$5:$H$3693,$G$5:$G$3693=\"Cost or Basis:\"),L80)","v":0},{"$f":"INDEX(_xlfn._xlws.FILTER($H$5:$H$3693,$G$5:$G$3693=\"Description:\"),L80)","v":"2.465 ETHEREUM CLASSIC TO US DOLLAR"}]
[null,null,null,null,null,2,"Type of Gain or Loss Code:","Short-term",null,null,null,75,{"$f":"INDEX(_xlfn._xlws.FILTER($H$5:$H$3693,$G$5:$G$3693=\"Proceeds:\"),L81)","v":229},{"$f":"INDEX(_xlfn._xlws.FILTER($H$5:$H$3693,$G$5:$G$3693=\"Cost or Basis:\"),L81)","v":0},{"$f":"INDEX(_xlfn._xlws.FILTER($H$5:$H$3693,$G$5:$G$3693=\"Description:\"),L81)","v":"1.555 ETHEREUM CLASSIC TO US DOLLAR"}]
[null,null,null,null,null,2,"Applicable Check Box on Form 8949:","Short term transaction for which the cost or other basis is being reported to the IRS",null,null,null,76,{"$f":"INDEX(_xlfn._xlws.FILTER($H$5:$H$3693,$G$5:$G$3693=\"Proceeds:\"),L82)","v":426},{"$f":"INDEX(_xlfn._xlws.FILTER($H$5:$H$3693,$G$5:$G$3693=\"Cost or Basis:\"),L82)","v":0},{"$f":"INDEX(_xlfn._xlws.FILTER($H$5:$H$3693,$G$5:$G$3693=\"Description:\"),L82)","v":"3.333333 ETHEREUM CLASSIC TO US DOLLAR"}]
[null,null,null,null,null,2,"Loss Not Allowed Indicator:",null,null,null,null,77,{"$f":"INDEX(_xlfn._xlws.FILTER($H$5:$H$3693,$G$5:$G$3693=\"Proceeds:\"),L83)","v":253},{"$f":"INDEX(_xlfn._xlws.FILTER($H$5:$H$3693,$G$5:$G$3693=\"Cost or Basis:\"),L83)","v":0},{"$f":"INDEX(_xlfn._xlws.FILTER($H$5:$H$3693,$G$5:$G$3693=\"Description:\"),L83)","v":"2.300017 ETHEREUM CLASSIC TO US DOLLAR"}]
[null,null,null,null,null,2,"FATCA Filing Requirement:","Box not checked no Filing Requirement",null,null,null,78,{"$f":"INDEX(_xlfn._xlws.FILTER($H$5:$H$3693,$G$5:$G$3693=\"Proceeds:\"),L84)","v":361},{"$f":"INDEX(_xlfn._xlws.FILTER($H$5:$H$3693,$G$5:$G$3693=\"Cost or Basis:\"),L84)","v":0},{"$f":"INDEX(_xlfn._xlws.FILTER($H$5:$H$3693,$G$5:$G$3693=\"Description:\"),L84)","v":"3.283645 ETHEREUM CLASSIC TO US DOLLAR"}]
[null,null,null,null,null,2,"Proceeds from:","Box not checked",null,null,null,79,{"$f":"INDEX(_xlfn._xlws.FILTER($H$5:$H$3693,$G$5:$G$3693=\"Proceeds:\"),L85)","v":244},{"$f":"INDEX(_xlfn._xlws.FILTER($H$5:$H$3693,$G$5:$G$3693=\"Cost or Basis:\"),L85)","v":0},{"$f":"INDEX(_xlfn._xlws.FILTER($H$5:$H$3693,$G$5:$G$3693=\"Description:\"),L85)","v":"2.22 ETHEREUM CLASSIC TO US DOLLAR"}]
[null,null,null,null,null,2,null,null,null,null,null,80,{"$f":"INDEX(_xlfn._xlws.FILTER($H$5:$H$3693,$G$5:$G$3693=\"Proceeds:\"),L86)","v":331},{"$f":"INDEX(_xlfn._xlws.FILTER($H$5:$H$3693,$G$5:$G$3693=\"Cost or Basis:\"),L86)","v":0},{"$f":"INDEX(_xlfn._xlws.FILTER($H$5:$H$3693,$G$5:$G$3693=\"Description:\"),L86)","v":"3.007888 ETHEREUM CLASSIC TO US DOLLAR"}]
[null,null,null,null,null,2,"Form 1099-B Proceeds From Broker and Barter Exchange Transactions",null,null,null,null,81,{"$f":"INDEX(_xlfn._xlws.FILTER($H$5:$H$3693,$G$5:$G$3693=\"Proceeds:\"),L87)","v":529},{"$f":"INDEX(_xlfn._xlws.FILTER($H$5:$H$3693,$G$5:$G$3693=\"Cost or Basis:\"),L87)","v":0},{"$f":"INDEX(_xlfn._xlws.FILTER($H$5:$H$3693,$G$5:$G$3693=\"Description:\"),L87)","v":"7.702071 ETHEREUM CLASSIC TO US DOLLAR"}]
[null,null,null,null,null,2,null,null,null,null,null,82,{"$f":"INDEX(_xlfn._xlws.FILTER($H$5:$H$3693,$G$5:$G$3693=\"Proceeds:\"),L88)","v":571},{"$f":"INDEX(_xlfn._xlws.FILTER($H$5:$H$3693,$G$5:$G$3693=\"Cost or Basis:\"),L88)","v":0},{"$f":"INDEX(_xlfn._xlws.FILTER($H$5:$H$3693,$G$5:$G$3693=\"Description:\"),L88)","v":"9.546732 ETHEREUM CLASSIC TO US DOLLAR"}]
[null,null,null,null,null,2,null,null,null,null,null,83,{"$f":"INDEX(_xlfn._xlws.FILTER($H$5:$H$3693,$G$5:$G$3693=\"Proceeds:\"),L89)","v":601},{"$f":"INDEX(_xlfn._xlws.FILTER($H$5:$H$3693,$G$5:$G$3693=\"Cost or Basis:\"),L89)","v":0},{"$f":"INDEX(_xlfn._xlws.FILTER($H$5:$H$3693,$G$5:$G$3693=\"Description:\"),L89)","v":"10.68947 ETHEREUM CLASSIC TO US DOLLAR"}]
[null,null,null,null,null,2,"Payer:",null,null,null,null,84,{"$f":"INDEX(_xlfn._xlws.FILTER($H$5:$H$3693,$G$5:$G$3693=\"Proceeds:\"),L90)","v":564},{"$f":"INDEX(_xlfn._xlws.FILTER($H$5:$H$3693,$G$5:$G$3693=\"Cost or Basis:\"),L90)","v":0},{"$f":"INDEX(_xlfn._xlws.FILTER($H$5:$H$3693,$G$5:$G$3693=\"Description:\"),L90)","v":"10.636312 ETHEREUM CLASSIC TO US DOLLAR"}]
[null,null,null,null,null,2,"Payer's Federal Identification Number (FIN):384019216",null,null,null,null,85,{"$f":"INDEX(_xlfn._xlws.FILTER($H$5:$H$3693,$G$5:$G$3693=\"Proceeds:\"),L91)","v":443},{"$f":"INDEX(_xlfn._xlws.FILTER($H$5:$H$3693,$G$5:$G$3693=\"Cost or Basis:\"),L91)","v":0},{"$f":"INDEX(_xlfn._xlws.FILTER($H$5:$H$3693,$G$5:$G$3693=\"Description:\"),L91)","v":"6.549127 ETHEREUM CLASSIC TO US DOLLAR"}]
[null,null,null,null,null,2,"ROBINHOOD SECURITIES LLC",null,null,null,null,86,{"$f":"INDEX(_xlfn._xlws.FILTER($H$5:$H$3693,$G$5:$G$3693=\"Proceeds:\"),L92)","v":306},{"$f":"INDEX(_xlfn._xlws.FILTER($H$5:$H$3693,$G$5:$G$3693=\"Cost or Basis:\"),L92)","v":0},{"$f":"INDEX(_xlfn._xlws.FILTER($H$5:$H$3693,$G$5:$G$3693=\"Description:\"),L92)","v":"0.97619486 LITECOIN TO US DOLLAR"}]
[null,null,null,null,null,2,"500 COLONIAL CENTER PARKWAY SUITE 100",null,null,null,null,87,{"$f":"INDEX(_xlfn._xlws.FILTER($H$5:$H$3693,$G$5:$G$3693=\"Proceeds:\"),L93)","v":40},{"$f":"INDEX(_xlfn._xlws.FILTER($H$5:$H$3693,$G$5:$G$3693=\"Cost or Basis:\"),L93)","v":0},{"$f":"INDEX(_xlfn._xlws.FILTER($H$5:$H$3693,$G$5:$G$3693=\"Description:\"),L93)","v":"0.14312294 LITECOIN TO US DOLLAR"}]
[null,null,null,null,null,2,"LAKE MARY, FL 32746-0000",null,null,null,null,88,{"$f":"INDEX(_xlfn._xlws.FILTER($H$5:$H$3693,$G$5:$G$3693=\"Proceeds:\"),L94)","v":5},{"$f":"INDEX(_xlfn._xlws.FILTER($H$5:$H$3693,$G$5:$G$3693=\"Cost or Basis:\"),L94)","v":0},{"$f":"INDEX(_xlfn._xlws.FILTER($H$5:$H$3693,$G$5:$G$3693=\"Description:\"),L94)","v":"0.01530315 LITECOIN TO US DOLLAR"}]
[null,null,null,null,null,2,null,null,null,null,null,89,{"$f":"INDEX(_xlfn._xlws.FILTER($H$5:$H$3693,$G$5:$G$3693=\"Proceeds:\"),L95)","v":394},{"$f":"INDEX(_xlfn._xlws.FILTER($H$5:$H$3693,$G$5:$G$3693=\"Cost or Basis:\"),L95)","v":0},{"$f":"INDEX(_xlfn._xlws.FILTER($H$5:$H$3693,$G$5:$G$3693=\"Description:\"),L95)","v":"1.15516793 LITECOIN TO US DOLLAR"}]
[null,null,null,null,null,2,"Recipient:",null,null,null,null,90,{"$f":"INDEX(_xlfn._xlws.FILTER($H$5:$H$3693,$G$5:$G$3693=\"Proceeds:\"),L96)","v":1811},{"$f":"INDEX(_xlfn._xlws.FILTER($H$5:$H$3693,$G$5:$G$3693=\"Cost or Basis:\"),L96)","v":1619},{"$f":"INDEX(_xlfn._xlws.FILTER($H$5:$H$3693,$G$5:$G$3693=\"Description:\"),L96)","v":"STOCK DISTRIBUTION / SALE"}]
[null,null,null,null,null,2,"Recipient's Identification Number: 646-04-1329"]
[null,null,null,null,null,2,"NATHAN TUN",null,null,null,null,null,{"$f":"SUM(M7:M97)","v":25417},{"$f":"SUM(N7:N97)","v":9005}]
[null,null,null,null,null,2,"1416 MICHIGAN ST C2"]
[null,null,null,null,null,2,"STORM LAKE, IA 50588-0000",null,null,null,null,null,"Net:",{"$f":"M98-N98","v":16412}]
[null,null,null,null,null,2,null,null,null,null,null,null,null,null,null,null,null,null,0.22]
[null,null,null,null,null,2,null,null,null,null,null,null,null,null,null,null,"Taxable",80358,{"$f":"R102*S101","v":17678.759999999998}]
[null,null,null,null,null,2,"Submission Type:","Original document",null,null,null,null,null,null,null,null,"Add'l",16412,{"$f":"R103*0.23","v":3774.76}]
[null,null,null,null,null,2,"Account Number (Optional):","WSC15416453",null,null,null,null,null,null,null,null,"Tax Report",13431]
[null,null,null,null,null,2,"Date Sold or Disposed:","2021-07-02"]
[null,null,null,null,null,2,"CUSIP Number:","00165C104"]
[null,null,null,null,null,2,"Gross Proceeds:","Nothing checked"]
[null,null,null,null,null,2,"Bartering:",0]
[null,null,null,null,null,2,"Federal Income Tax Withheld:",0,null,null,null,null,null,null,{"$f":"3816/16412","v":0.23251279551547649}]
[null,null,null,null,null,3,"Proceeds:",573]
[null,null,null,null,null,3,"Aggregate Profit or (Loss):",0]
[null,null,null,null,null,3,"Realized Profit or (Loss):",0]
[null,null,null,null,null,3,"Unrealized Profit or (Loss) 12/31 Prior Year:",0]
[null,null,null,null,null,3,"Unrealized Profit or (Loss) 12/31 Current Year:",0]
[null,null,null,null,null,3,"Cost or Basis:",609]
[null,null,null,null,null,3,"Wash Sale Loss Disallowed:",0]
[null,null,null,null,null,3,"Accrued Market Discount Amount:",0]
[null,null,null,null,null,3,"Description:","AMC ENTERTAINMENT HOLDINGS IN C"]
[null,null,null,null,null,3,"Second Notice Indicator:","No Second Notice"]
[null,null,null,null,null,3,"Date Acquired:","00-00-0000"]
[null,null,null,null,null,3,"Noncovered Security Indicator:","Nothing checked"]
[null,null,null,null,null,3,"Type of Gain or Loss Code:","Short-term"]
[null,null,null,null,null,3,"Applicable Check Box on Form 8949:","Short term transaction for which the cost or other basis is being reported to the IRS"]
[null,null,null,null,null,3,"Loss Not Allowed Indicator:"]
[null,null,null,null,null,3,"FATCA Filing Requirement:","Box not checked no Filing Requirement"]
[null,null,null,null,null,3,"Proceeds from:","Box not checked"]
[null,null,null,null,null,3]
[null,null,null,null,null,3,"Form 1099-B Proceeds From Broker and Barter Exchange Transactions"]
[null,null,null,null,null,3]
[null,null,null,null,null,3]
[null,null,null,null,null,3,"Payer:"]
[null,null,null,null,null,3,"Payer's Federal Identification Number (FIN):384019216"]
[null,null,null,null,null,3,"ROBINHOOD SECURITIES LLC"]
[null,null,null,null,null,3,"500 COLONIAL CENTER PARKWAY SUITE 100"]
[null,null,null,null,null,3,"LAKE MARY, FL 32746-0000"]
[null,null,null,null,null,3]
[null,null,null,null,null,{"$f":"IF(OR(G137=\"Proceeds:\",G137=\"Interest:\"),1+F136,F136)","v":3},"Recipient:"]
[null,null,null,null,null,3,"Recipient's Identification Number: 646-04-1329"]
[null,null,null,null,null,3,"NATHAN TUN"]
[null,null,null,null,null,3,"1416 MICHIGAN ST C2"]
[null,null,null,null,null,3,"STORM LAKE, IA 50588-0000"]
[null,null,null,null,null,3]
[null,null,null,null,null,3]
[null,null,null,null,null,3,"Submission Type:","Original document"]
[null,null,null,null,null,3,"Account Number (Optional):","WSC15416454"]
[null,null,null,null,null,3,"Date Sold or Disposed:","2021-02-11"]
[null,null,null,null,null,3,"CUSIP Number:"]
[null,null,null,null,null,3,"Gross Proceeds:","Nothing checked"]
[null,null,null,null,null,3,"Bartering:",0]
[null,null,null,null,null,3,"Federal Income Tax Withheld:",0]
[null,null,null,null,null,4,"Proceeds:",81]
[null,null,null,null,null,4,"Aggregate Profit or (Loss):",0]
[null,null,null,null,null,4,"Realized Profit or (Loss):",0]
[null,null,null,null,null,4,"Unrealized Profit or (Loss) 12/31 Prior Year:",0]
[null,null,null,null,null,4,"Unrealized Profit or (Loss) 12/31 Current Year:",0]
[null,null,null,null,null,4,"Cost or Basis:",110]
[null,null,null,null,null,4,"Wash Sale Loss Disallowed:",0]
[null,null,null,null,null,4,"Accrued Market Discount Amount:",0]
[null,null,null,null,null,4,"Description:","SENS 02 19 2021 CALL 4 00"]
[null,null,null,null,null,4,"Second Notice Indicator:","No Second Notice"]
[null,null,null,null,null,4,"Date Acquired:","2021-02-09"]
[null,null,null,null,null,4,"Noncovered Security Indicator:","Nothing checked"]
[null,null,null,null,null,4,"Type of Gain or Loss Code:","Short-term"]
[null,null,null,null,null,4,"Applicable Check Box on Form 8949:","Short term transaction for which the cost or other basis is being reported to the IRS"]
[null,null,null,null,null,4,"Loss Not Allowed Indicator:"]
[null,null,null,null,null,4,"FATCA Filing Requirement:","Box not checked no Filing Requirement"]
[null,null,null,null,null,4,"Proceeds from:","Box not checked"]
[null,null,null,null,null,4]
[null,null,null,null,null,4,"Form 1099-B Proceeds From Broker and Barter Exchange Transactions"]
[null,null,null,null,null,4]
[null,null,null,null,null,4]
[null,null,null,null,null,4,"Payer:"]
[null,null,null,null,null,4,"Payer's Federal Identification Number (FIN):384019216"]
[null,null,null,null,null,4,"ROBINHOOD SECURITIES LLC"]
[null,null,null,null,null,4,"500 COLONIAL CENTER PARKWAY SUITE 100"]
[null,null,null,null,null,4,"LAKE MARY, FL 32746-0000"]
[null,null,null,null,null,4]
[null,null,null,null,null,4,"Recipient:"]
[null,null,null,null,null,4,"Recipient's Identification Number: 646-04-1329"]
[null,null,null,null,null,4,"NATHAN TUN"]
[null,null,null,null,null,4,"1416 MICHIGAN ST C2"]
[null,null,null,null,null,4,"STORM LAKE, IA 50588-0000"]
[null,null,null,null,null,4]
[null,null,null,null,null,4]
[null,null,null,null,null,4,"Submission Type:","Original document"]
[null,null,null,null,null,4,"Account Number (Optional):","WSC15416455"]
[null,null,null,null,null,4,"Date Sold or Disposed:","2021-10-25"]
[null,null,null,null,null,4,"CUSIP Number:","88160R101"]
[null,null,null,null,null,4,"Gross Proceeds:","Nothing checked"]
[null,null,null,null,null,4,"Bartering:",0]
[null,null,null,null,null,4,"Federal Income Tax Withheld:",0]
[null,null,null,null,null,5,"Proceeds:",616]
[null,null,null,null,null,5,"Aggregate Profit or (Loss):",0]
[null,null,null,null,null,5,"Realized Profit or (Loss):",0]
[null,null,null,null,null,5,"Unrealized Profit or (Loss) 12/31 Prior Year:",0]
[null,null,null,null,null,5,"Unrealized Profit or (Loss) 12/31 Current Year:",0]
[null,null,null,null,null,5,"Cost or Basis:",443]
[null,null,null,null,null,5,"Wash Sale Loss Disallowed:",0]
[null,null,null,null,null,5,"Accrued Market Discount Amount:",0]
[null,null,null,null,null,5,"Description:","TESLA INC COMMON STOCK"]
[null,null,null,null,null,{"$f":"IF(OR(G201=\"Proceeds:\",G201=\"Interest:\"),1+F200,F200)","v":5},"Second Notice Indicator:","No Second Notice"]
[null,null,null,null,null,5,"Date Acquired:","00-00-0000"]
[null,null,null,null,null,5,"Noncovered Security Indicator:","Nothing checked"]
[null,null,null,null,null,5,"Type of Gain or Loss Code:","Short-term"]
[null,null,null,null,null,5,"Applicable Check Box on Form 8949:","Short term transaction for which the cost or other basis is being reported to the IRS"]
[null,null,null,null,null,5,"Loss Not Allowed Indicator:"]
[null,null,null,null,null,5,"FATCA Filing Requirement:","Box not checked no Filing Requirement"]
[null,null,null,null,null,5,"Proceeds from:","Box not checked"]
[null,null,null,null,null,5]
[null,null,null,null,null,5,"Form 1099-B Proceeds From Broker and Barter Exchange Transactions"]
[null,null,null,null,null,5]
[null,null,null,null,null,5]
[null,null,null,null,null,5,"Payer:"]
[null,null,null,null,null,5,"Payer's Federal Identification Number (FIN):384019216"]
[null,null,null,null,null,5,"ROBINHOOD SECURITIES LLC"]
[null,null,null,null,null,5,"500 COLONIAL CENTER PARKWAY SUITE 100"]
[null,null,null,null,null,5,"LAKE MARY, FL 32746-0000"]
[null,null,null,null,null,5]
[null,null,null,null,null,5,"Recipient:"]
[null,null,null,null,null,5,"Recipient's Identification Number: 646-04-1329"]
[null,null,null,null,null,5,"NATHAN TUN"]
[null,null,null,null,null,5,"1416 MICHIGAN ST C2"]
[null,null,null,null,null,5,"STORM LAKE, IA 50588-0000"]
[null,null,null,null,null,5]
[null,null,null,null,null,5]
[null,null,null,null,null,5,"Submission Type:","Original document"]
[null,null,null,null,null,5,"Account Number (Optional):","WSC15416456"]
[null,null,null,null,null,5,"Date Sold or Disposed:","2021-04-13"]
[null,null,null,null,null,5,"CUSIP Number:","81727U105"]
[null,null,null,null,null,5,"Gross Proceeds:","Nothing checked"]
[null,null,null,null,null,5,"Bartering:",0]
[null,null,null,null,null,5,"Federal Income Tax Withheld:",0]
[null,null,null,null,null,6,"Proceeds:",58]
[null,null,null,null,null,6,"Aggregate Profit or (Loss):",0]
[null,null,null,null,null,6,"Realized Profit or (Loss):",0]
[null,null,null,null,null,6,"Unrealized Profit or (Loss) 12/31 Prior Year:",0]
[null,null,null,null,null,6,"Unrealized Profit or (Loss) 12/31 Current Year:",0]
[null,null,null,null,null,6,"Cost or Basis:",100]
[null,null,null,null,null,6,"Wash Sale Loss Disallowed:",0]
[null,null,null,null,null,6,"Accrued Market Discount Amount:",0]
[null,null,null,null,null,6,"Description:","SENSEONICS HOLDINGS INC"]
[null,null,null,null,null,6,"Second Notice Indicator:","No Second Notice"]
[null,null,null,null,null,6,"Date Acquired:","00-00-0000"]
[null,null,null,null,null,6,"Noncovered Security Indicator:","Nothing checked"]
[null,null,null,null,null,6,"Type of Gain or Loss Code:","Short-term"]
[null,null,null,null,null,6,"Applicable Check Box on Form 8949:","Short term transaction for which the cost or other basis is being reported to the IRS"]
[null,null,null,null,null,6,"Loss Not Allowed Indicator:"]
[null,null,null,null,null,6,"FATCA Filing Requirement:","Box not checked no Filing Requirement"]
[null,null,null,null,null,6,"Proceeds from:","Box not checked"]
[null,null,null,null,null,6]
[null,null,null,null,null,6,"Form 1099-B Proceeds From Broker and Barter Exchange Transactions"]
[null,null,null,null,null,6]
[null,null,null,null,null,6]
[null,null,null,null,null,6,"Payer:"]
[null,null,null,null,null,6,"Payer's Federal Identification Number (FIN):384019216"]
[null,null,null,null,null,6,"ROBINHOOD SECURITIES LLC"]
[null,null,null,null,null,6,"500 COLONIAL CENTER PARKWAY SUITE 100"]
[null,null,null,null,null,6,"LAKE MARY, FL 32746-0000"]
[null,null,null,null,null,6]
[null,null,null,null,null,6,"Recipient:"]
[null,null,null,null,null,6,"Recipient's Identification Number: 646-04-1329"]
[null,null,null,null,null,6,"NATHAN TUN"]
[null,null,null,null,null,6,"1416 MICHIGAN ST C2"]
[null,null,null,null,null,6,"STORM LAKE, IA 50588-0000"]
[null,null,null,null,null,{"$f":"IF(OR(G265=\"Proceeds:\",G265=\"Interest:\"),1+F264,F264)","v":6}]
[null,null,null,null,null,6]
[null,null,null,null,null,6,"Submission Type:","Original document"]
[null,null,null,null,null,6,"Account Number (Optional):","WSC15416457"]
[null,null,null,null,null,6,"Date Sold or Disposed:","2021-02-08"]
[null,null,null,null,null,6,"CUSIP Number:","00165C104"]
[null,null,null,null,null,6,"Gross Proceeds:","Nothing checked"]
[null,null,null,null,null,6,"Bartering:",0]
[null,null,null,null,null,6,"Federal Income Tax Withheld:",0]
[null,null,null,null,null,7,"Proceeds:",64]
[null,null,null,null,null,7,"Aggregate Profit or (Loss):",0]
[null,null,null,null,null,7,"Realized Profit or (Loss):",0]
[null,null,null,null,null,7,"Unrealized Profit or (Loss) 12/31 Prior Year:",0]
[null,null,null,null,null,7,"Unrealized Profit or (Loss) 12/31 Current Year:",0]
[null,null,null,null,null,7,"Cost or Basis:",68]
[null,null,null,null,null,7,"Wash Sale Loss Disallowed:",0]
[null,null,null,null,null,7,"Accrued Market Discount Amount:",0]
[null,null,null,null,null,7,"Description:","AMC ENTERTAINMENT HOLDINGS IN C"]
[null,null,null,null,null,7,"Second Notice Indicator:","No Second Notice"]
[null,null,null,null,null,7,"Date Acquired:","2021-02-08"]
[null,null,null,null,null,7,"Noncovered Security Indicator:","Nothing checked"]
[null,null,null,null,null,7,"Type of Gain or Loss Code:","Short-term"]
[null,null,null,null,null,7,"Applicable Check Box on Form 8949:","Short term transaction for which the cost or other basis is being reported to the IRS"]
[null,null,null,null,null,7,"Loss Not Allowed Indicator:"]
[null,null,null,null,null,7,"FATCA Filing Requirement:","Box not checked no Filing Requirement"]
[null,null,null,null,null,7,"Proceeds from:","Box not checked"]
[null,null,null,null,null,7]
[null,null,null,null,null,7,"Form 1099-B Proceeds From Broker and Barter Exchange Transactions"]
[null,null,null,null,null,7]
[null,null,null,null,null,7]
[null,null,null,null,null,7,"Payer:"]
[null,null,null,null,null,7,"Payer's Federal Identification Number (FIN):384019216"]
[null,null,null,null,null,7,"ROBINHOOD SECURITIES LLC"]
[null,null,null,null,null,7,"500 COLONIAL CENTER PARKWAY SUITE 100"]
[null,null,null,null,null,7,"LAKE MARY, FL 32746-0000"]
[null,null,null,null,null,7]
[null,null,null,null,null,7,"Recipient:"]
[null,null,null,null,null,7,"Recipient's Identification Number: 646-04-1329"]
[null,null,null,null,null,7,"NATHAN TUN"]
[null,null,null,null,null,7,"1416 MICHIGAN ST C2"]
[null,null,null,null,null,7,"STORM LAKE, IA 50588-0000"]
[null,null,null,null,null,7]
[null,null,null,null,null,7]
[null,null,null,null,null,7,"Submission Type:","Original document"]
[null,null,null,null,null,7,"Account Number (Optional):","WSC15416458"]
[null,null,null,null,null,7,"Date Sold or Disposed:","2021-07-08"]
[null,null,null,null,null,7,"CUSIP Number:","92766K106"]
[null,null,null,null,null,7,"Gross Proceeds:","Nothing checked"]
[null,null,null,null,null,7,"Bartering:",0]
[null,null,null,null,null,7,"Federal Income Tax Withheld:",0]
[null,null,null,null,null,8,"Proceeds:",645]
[null,null,null,null,null,8,"Aggregate Profit or (Loss):",0]
[null,null,null,null,null,8,"Realized Profit or (Loss):",0]
[null,null,null,null,null,8,"Unrealized Profit or (Loss) 12/31 Prior Year:",0]
[null,null,null,null,null,8,"Unrealized Profit or (Loss) 12/31 Current Year:",0]
[null,null,null,null,null,8,"Cost or Basis:",626]
[null,null,null,null,null,8,"Wash Sale Loss Disallowed:",0]
[null,null,null,null,null,8,"Accrued Market Discount Amount:",0]
[null,null,null,null,null,8,"Description:","VIRGIN GALACTIC HOLDINGS INC"]
[null,null,null,null,null,8,"Second Notice Indicator:","No Second Notice"]
[null,null,null,null,null,8,"Date Acquired:","00-00-0000"]
[null,null,null,null,null,8,"Noncovered Security Indicator:","Nothing checked"]
[null,null,null,null,null,8,"Type of Gain or Loss Code:","Short-term"]
[null,null,null,null,null,8,"Applicable Check Box on Form 8949:","Short term transaction for which the cost or other basis is being reported to the IRS"]
[null,null,null,null,null,{"$f":"IF(OR(G329=\"Proceeds:\",G329=\"Interest:\"),1+F328,F328)","v":8},"Loss Not Allowed Indicator:"]
[null,null,null,null,null,8,"FATCA Filing Requirement:","Box not checked no Filing Requirement"]
[null,null,null,null,null,8,"Proceeds from:","Box not checked"]
[null,null,null,null,null,8]
[null,null,null,null,null,8,"Form 1099-B Proceeds From Broker and Barter Exchange Transactions"]
[null,null,null,null,null,8]
[null,null,null,null,null,8]
[null,null,null,null,null,8,"Payer:"]
[null,null,null,null,null,8,"Payer's Federal Identification Number (FIN):384019216"]
[null,null,null,null,null,8,"ROBINHOOD SECURITIES LLC"]
[null,null,null,null,null,8,"500 COLONIAL CENTER PARKWAY SUITE 100"]
[null,null,null,null,null,8,"LAKE MARY, FL 32746-0000"]
[null,null,null,null,null,8]
[null,null,null,null,null,8,"Recipient:"]
[null,null,null,null,null,8,"Recipient's Identification Number: 646-04-1329"]
[null,null,null,null,null,8,"NATHAN TUN"]
[null,null,null,null,null,8,"1416 MICHIGAN ST C2"]
[null,null,null,null,null,8,"STORM LAKE, IA 50588-0000"]
[null,null,null,null,null,8]
[null,null,null,null,null,8]
[null,null,null,null,null,8,"Submission Type:","Original document"]
[null,null,null,null,null,8,"Account Number (Optional):","WSC15416459"]
[null,null,null,null,null,8,"Date Sold or Disposed:","2021-06-29"]
[null,null,null,null,null,8,"CUSIP Number:","92766K106"]
[null,null,null,null,null,8,"Gross Proceeds:","Nothing checked"]
[null,null,null,null,null,8,"Bartering:",0]
[null,null,null,null,null,8,"Federal Income Tax Withheld:",0]
[null,null,null,null,null,9,"Proceeds:",628]
[null,null,null,null,null,9,"Aggregate Profit or (Loss):",0]
[null,null,null,null,null,9,"Realized Profit or (Loss):",0]
[null,null,null,null,null,9,"Unrealized Profit or (Loss) 12/31 Prior Year:",0]
[null,null,null,null,null,9,"Unrealized Profit or (Loss) 12/31 Current Year:",0]
[null,null,null,null,null,9,"Cost or Basis:",685]
[null,null,null,null,null,9,"Wash Sale Loss Disallowed:",56]
[null,null,null,null,null,9,"Accrued Market Discount Amount:",0]
[null,null,null,null,null,9,"Description:","VIRGIN GALACTIC HOLDINGS INC"]
[null,null,null,null,null,9,"Second Notice Indicator:","No Second Notice"]
[null,null,null,null,null,9,"Date Acquired:","00-00-0000"]
[null,null,null,null,null,9,"Noncovered Security Indicator:","Nothing checked"]
[null,null,null,null,null,9,"Type of Gain or Loss Code:","Short-term"]
[null,null,null,null,null,9,"Applicable Check Box on Form 8949:","Short term transaction for which the cost or other basis is being reported to the IRS"]
[null,null,null,null,null,9,"Loss Not Allowed Indicator:"]
[null,null,null,null,null,9,"FATCA Filing Requirement:","Box not checked no Filing Requirement"]
[null,null,null,null,null,9,"Proceeds from:","Box not checked"]
[null,null,null,null,null,9]
[null,null,null,null,null,9,"Form 1099-B Proceeds From Broker and Barter Exchange Transactions"]
[null,null,null,null,null,9]
[null,null,null,null,null,9]
[null,null,null,null,null,9,"Payer:"]
[null,null,null,null,null,9,"Payer's Federal Identification Number (FIN):384019216"]
[null,null,null,null,null,9,"ROBINHOOD SECURITIES LLC"]
[null,null,null,null,null,9,"500 COLONIAL CENTER PARKWAY SUITE 100"]
[null,null,null,null,null,9,"LAKE MARY, FL 32746-0000"]
[null,null,null,null,null,9]
[null,null,null,null,null,9,"Recipient:"]
[null,null,null,null,null,9,"Recipient's Identification Number: 646-04-1329"]
[null,null,null,null,null,9,"NATHAN TUN"]
[null,null,null,null,null,9,"1416 MICHIGAN ST C2"]
[null,null,null,null,null,9,"STORM LAKE, IA 50588-0000"]
[null,null,null,null,null,9]
[null,null,null,null,null,9]
[null,null,null,null,null,9,"Submission Type:","Original document"]
[null,null,null,null,null,9,"Account Number (Optional):","WSC15416460"]
[null,null,null,null,null,9,"Date Sold or Disposed:","2021-08-05"]
[null,null,null,null,null,{"$f":"IF(OR(G393=\"Proceeds:\",G393=\"Interest:\"),1+F392,F392)","v":9},"CUSIP Number:","01609W102"]
[null,null,null,null,null,9,"Gross Proceeds:","Nothing checked"]
[null,null,null,null,null,9,"Bartering:",0]
[null,null,null,null,null,9,"Federal Income Tax Withheld:",0]
[null,null,null,null,null,10,"Proceeds:",634]
[null,null,null,null,null,10,"Aggregate Profit or (Loss):",0]
[null,null,null,null,null,10,"Realized Profit or (Loss):",0]
[null,null,null,null,null,10,"Unrealized Profit or (Loss) 12/31 Prior Year:",0]
[null,null,null,null,null,10,"Unrealized Profit or (Loss) 12/31 Current Year:",0]
[null,null,null,null,null,10,"Cost or Basis:",647]
[null,null,null,null,null,10,"Wash Sale Loss Disallowed:",0]
[null,null,null,null,null,10,"Accrued Market Discount Amount:",0]
[null,null,null,null,null,10,"Description:","ALIBABA GROUP HOLDING LIMITED AMERICAN"]
[null,null,null,null,null,10,"Second Notice Indicator:","No Second Notice"]
[null,null,null,null,null,10,"Date Acquired:","00-00-0000"]
[null,null,null,null,null,10,"Noncovered Security Indicator:","Nothing checked"]
[null,null,null,null,null,10,"Type of Gain or Loss Code:","Short-term"]
[null,null,null,null,null,10,"Applicable Check Box on Form 8949:","Short term transaction for which the cost or other basis is being reported to the IRS"]
[null,null,null,null,null,10,"Loss Not Allowed Indicator:"]
[null,null,null,null,null,10,"FATCA Filing Requirement:","Box not checked no Filing Requirement"]
[null,null,null,null,null,10,"Proceeds from:","Box not checked"]
[null,null,null,null,null,10]
[null,null,null,null,null,10,"Form 1099-B Proceeds From Broker and Barter Exchange Transactions"]
[null,null,null,null,null,10]
[null,null,null,null,null,10]
[null,null,null,null,null,10,"Payer:"]
[null,null,null,null,null,10,"Payer's Federal Identification Number (FIN):384019216"]
[null,null,null,null,null,10,"ROBINHOOD SECURITIES LLC"]
[null,null,null,null,null,10,"500 COLONIAL CENTER PARKWAY SUITE 100"]
[null,null,null,null,null,10,"LAKE MARY, FL 32746-0000"]
[null,null,null,null,null,10]
[null,null,null,null,null,10,"Recipient:"]
[null,null,null,null,null,10,"Recipient's Identification Number: 646-04-1329"]
[null,null,null,null,null,10,"NATHAN TUN"]
[null,null,null,null,null,10,"1416 MICHIGAN ST C2"]
[null,null,null,null,null,10,"STORM LAKE, IA 50588-0000"]
[null,null,null,null,null,10]
[null,null,null,null,null,10]
[null,null,null,null,null,10,"Submission Type:","Original document"]
[null,null,null,null,null,10,"Account Number (Optional):","WSC15416461"]
[null,null,null,null,null,10,"Date Sold or Disposed:","2021-02-09"]
[null,null,null,null,null,10,"CUSIP Number:","81727U105"]
[null,null,null,null,null,10,"Gross Proceeds:","Nothing checked"]
[null,null,null,null,null,10,"Bartering:",0]
[null,null,null,null,null,10,"Federal Income Tax Withheld:",0]
[null,null,null,null,null,11,"Proceeds:",110]
[null,null,null,null,null,11,"Aggregate Profit or (Loss):",0]
[null,null,null,null,null,11,"Realized Profit or (Loss):",0]
[null,null,null,null,null,11,"Unrealized Profit or (Loss) 12/31 Prior Year:",0]
[null,null,null,null,null,11,"Unrealized Profit or (Loss) 12/31 Current Year:",0]
[null,null,null,null,null,11,"Cost or Basis:",96]
[null,null,null,null,null,11,"Wash Sale Loss Disallowed:",0]
[null,null,null,null,null,11,"Accrued Market Discount Amount:",0]
[null,null,null,null,null,11,"Description:","SENSEONICS HOLDINGS INC"]
[null,null,null,null,null,11,"Second Notice Indicator:","No Second Notice"]
[null,null,null,null,null,11,"Date Acquired:","00-00-0000"]
[null,null,null,null,null,11,"Noncovered Security Indicator:","Nothing checked"]
[null,null,null,null,null,11,"Type of Gain or Loss Code:","Short-term"]
[null,null,null,null,null,11,"Applicable Check Box on Form 8949:","Short term transaction for which the cost or other basis is being reported to the IRS"]
[null,null,null,null,null,11,"Loss Not Allowed Indicator:"]
[null,null,null,null,null,11,"FATCA Filing Requirement:","Box not checked no Filing Requirement"]
[null,null,null,null,null,11,"Proceeds from:","Box not checked"]
[null,null,null,null,null,11]
[null,null,null,null,null,11,"Form 1099-B Proceeds From Broker and Barter Exchange Transactions"]
[null,null,null,null,null,{"$f":"IF(OR(G457=\"Proceeds:\",G457=\"Interest:\"),1+F456,F456)","v":11}]
[null,null,null,null,null,11]
[null,null,null,null,null,11,"Payer:"]
[null,null,null,null,null,11,"Payer's Federal Identification Number (FIN):384019216"]
[null,null,null,null,null,11,"ROBINHOOD SECURITIES LLC"]
[null,null,null,null,null,11,"500 COLONIAL CENTER PARKWAY SUITE 100"]
[null,null,null,null,null,11,"LAKE MARY, FL 32746-0000"]
[null,null,null,null,null,11]
[null,null,null,null,null,11,"Recipient:"]
[null,null,null,null,null,11,"Recipient's Identification Number: 646-04-1329"]
[null,null,null,null,null,11,"NATHAN TUN"]
[null,null,null,null,null,11,"1416 MICHIGAN ST C2"]
[null,null,null,null,null,11,"STORM LAKE, IA 50588-0000"]
[null,null,null,null,null,11]
[null,null,null,null,null,11]
[null,null,null,null,null,11,"Submission Type:","Original document"]
[null,null,null,null,null,11,"Account Number (Optional):","WSC15416462"]
[null,null,null,null,null,11,"Date Sold or Disposed:","2021-02-08"]
[null,null,null,null,null,11,"CUSIP Number:","81727U105"]
[null,null,null,null,null,11,"Gross Proceeds:","Nothing checked"]
[null,null,null,null,null,11,"Bartering:",0]
[null,null,null,null,null,11,"Federal Income Tax Withheld:",0]
[null,null,null,null,null,12,"Proceeds:",102]
[null,null,null,null,null,12,"Aggregate Profit or (Loss):",0]
[null,null,null,null,null,12,"Realized Profit or (Loss):",0]
[null,null,null,null,null,12,"Unrealized Profit or (Loss) 12/31 Prior Year:",0]
[null,null,null,null,null,12,"Unrealized Profit or (Loss) 12/31 Current Year:",0]
[null,null,null,null,null,12,"Cost or Basis:",76]
[null,null,null,null,null,12,"Wash Sale Loss Disallowed:",0]
[null,null,null,null,null,12,"Accrued Market Discount Amount:",0]
[null,null,null,null,null,12,"Description:","SENSEONICS HOLDINGS INC"]
[null,null,null,null,null,12,"Second Notice Indicator:","No Second Notice"]
[null,null,null,null,null,12,"Date Acquired:","00-00-0000"]
[null,null,null,null,null,12,"Noncovered Security Indicator:","Nothing checked"]
[null,null,null,null,null,12,"Type of Gain or Loss Code:","Short-term"]
[null,null,null,null,null,12,"Applicable Check Box on Form 8949:","Short term transaction for which the cost or other basis is being reported to the IRS"]
[null,null,null,null,null,12,"Loss Not Allowed Indicator:"]
[null,null,null,null,null,12,"FATCA Filing Requirement:","Box not checked no Filing Requirement"]
[null,null,null,null,null,12,"Proceeds from:","Box not checked"]
[null,null,null,null,null,12]
[null,null,null,null,null,12,"Form 1099-B Proceeds From Broker and Barter Exchange Transactions"]
[null,null,null,null,null,12]
[null,null,null,null,null,12]
[null,null,null,null,null,12,"Payer:"]
[null,null,null,null,null,12,"Payer's Federal Identification Number (FIN):384019216"]
[null,null,null,null,null,12,"ROBINHOOD SECURITIES LLC"]
[null,null,null,null,null,12,"500 COLONIAL CENTER PARKWAY SUITE 100"]
[null,null,null,null,null,12,"LAKE MARY, FL 32746-0000"]
[null,null,null,null,null,12]
[null,null,null,null,null,12,"Recipient:"]
[null,null,null,null,null,12,"Recipient's Identification Number: 646-04-1329"]
[null,null,null,null,null,12,"NATHAN TUN"]
[null,null,null,null,null,12,"1416 MICHIGAN ST C2"]
[null,null,null,null,null,12,"STORM LAKE, IA 50588-0000"]
[null,null,null,null,null,12]
[null,null,null,null,null,12]
[null,null,null,null,null,12,"Submission Type:","Original document"]
[null,null,null,null,null,12,"Account Number (Optional):","WSC15416463"]
[null,null,null,null,null,12,"Date Sold or Disposed:","2021-06-09"]
[null,null,null,null,null,12,"CUSIP Number:","00165C104"]
[null,null,null,null,null,12,"Gross Proceeds:","Nothing checked"]
[null,null,null,null,null,12,"Bartering:",0]
[null,null,null,null,null,12,"Federal Income Tax Withheld:",0]
[null,null,null,null,null,13,"Proceeds:",526]
[null,null,null,null,null,{"$f":"IF(OR(G521=\"Proceeds:\",G521=\"Interest:\"),1+F520,F520)","v":13},"Aggregate Profit or (Loss):",0]
[null,null,null,null,null,13,"Realized Profit or (Loss):",0]
[null,null,null,null,null,13,"Unrealized Profit or (Loss) 12/31 Prior Year:",0]
[null,null,null,null,null,13,"Unrealized Profit or (Loss) 12/31 Current Year:",0]
[null,null,null,null,null,13,"Cost or Basis:",531]
[null,null,null,null,null,13,"Wash Sale Loss Disallowed:",4]
[null,null,null,null,null,13,"Accrued Market Discount Amount:",0]
[null,null,null,null,null,13,"Description:","AMC ENTERTAINMENT HOLDINGS IN C"]
[null,null,null,null,null,13,"Second Notice Indicator:","No Second Notice"]
[null,null,null,null,null,13,"Date Acquired:","00-00-0000"]
[null,null,null,null,null,13,"Noncovered Security Indicator:","Nothing checked"]
[null,null,null,null,null,13,"Type of Gain or Loss Code:","Short-term"]
[null,null,null,null,null,13,"Applicable Check Box on Form 8949:","Short term transaction for which the cost or other basis is being reported to the IRS"]
[null,null,null,null,null,13,"Loss Not Allowed Indicator:"]
[null,null,null,null,null,13,"FATCA Filing Requirement:","Box not checked no Filing Requirement"]
[null,null,null,null,null,13,"Proceeds from:","Box not checked"]
[null,null,null,null,null,13]
[null,null,null,null,null,13,"Form 1099-B Proceeds From Broker and Barter Exchange Transactions"]
[null,null,null,null,null,13]
[null,null,null,null,null,13]
[null,null,null,null,null,13,"Payer:"]
[null,null,null,null,null,13,"Payer's Federal Identification Number (FIN):384019216"]
[null,null,null,null,null,13,"ROBINHOOD SECURITIES LLC"]
[null,null,null,null,null,13,"500 COLONIAL CENTER PARKWAY SUITE 100"]
[null,null,null,null,null,13,"LAKE MARY, FL 32746-0000"]
[null,null,null,null,null,13]
[null,null,null,null,null,13,"Recipient:"]
[null,null,null,null,null,13,"Recipient's Identification Number: 646-04-1329"]
[null,null,null,null,null,13,"NATHAN TUN"]
[null,null,null,null,null,13,"1416 MICHIGAN ST C2"]
[null,null,null,null,null,13,"STORM LAKE, IA 50588-0000"]
[null,null,null,null,null,13]
[null,null,null,null,null,13]
[null,null,null,null,null,13,"Submission Type:","Original document"]
[null,null,null,null,null,13,"Account Number (Optional):","WSC15416464"]
[null,null,null,null,null,13,"Date Sold or Disposed:","2021-08-20"]
[null,null,null,null,null,13,"CUSIP Number:","35952H601"]
[null,null,null,null,null,13,"Gross Proceeds:","Nothing checked"]
[null,null,null,null,null,13,"Bartering:",0]
[null,null,null,null,null,13,"Federal Income Tax Withheld:",0]
[null,null,null,null,null,14,"Proceeds:",453]
[null,null,null,null,null,14,"Aggregate Profit or (Loss):",0]
[null,null,null,null,null,14,"Realized Profit or (Loss):",0]
[null,null,null,null,null,14,"Unrealized Profit or (Loss) 12/31 Prior Year:",0]
[null,null,null,null,null,14,"Unrealized Profit or (Loss) 12/31 Current Year:",0]
[null,null,null,null,null,14,"Cost or Basis:",623]
[null,null,null,null,null,14,"Wash Sale Loss Disallowed:",0]
[null,null,null,null,null,14,"Accrued Market Discount Amount:",0]
[null,null,null,null,null,14,"Description:","FUELCELL ENERGY INC COMMON S TOCK"]
[null,null,null,null,null,14,"Second Notice Indicator:","No Second Notice"]
[null,null,null,null,null,14,"Date Acquired:","00-00-0000"]
[null,null,null,null,null,14,"Noncovered Security Indicator:","Nothing checked"]
[null,null,null,null,null,14,"Type of Gain or Loss Code:","Short-term"]
[null,null,null,null,null,14,"Applicable Check Box on Form 8949:","Short term transaction for which the cost or other basis is being reported to the IRS"]
[null,null,null,null,null,14,"Loss Not Allowed Indicator:"]
[null,null,null,null,null,14,"FATCA Filing Requirement:","Box not checked no Filing Requirement"]
[null,null,null,null,null,14,"Proceeds from:","Box not checked"]
[null,null,null,null,null,14]
[null,null,null,null,null,14,"Form 1099-B Proceeds From Broker and Barter Exchange Transactions"]
[null,null,null,null,null,14]
[null,null,null,null,null,14]
[null,null,null,null,null,14,"Payer:"]
[null,null,null,null,null,14,"Payer's Federal Identification Number (FIN):384019216"]
[null,null,null,null,null,14,"ROBINHOOD SECURITIES LLC"]
[null,null,null,null,null,{"$f":"IF(OR(G585=\"Proceeds:\",G585=\"Interest:\"),1+F584,F584)","v":14},"500 COLONIAL CENTER PARKWAY SUITE 100"]
[null,null,null,null,null,14,"LAKE MARY, FL 32746-0000"]
[null,null,null,null,null,14]
[null,null,null,null,null,14,"Recipient:"]
[null,null,null,null,null,14,"Recipient's Identification Number: 646-04-1329"]
[null,null,null,null,null,14,"NATHAN TUN"]
[null,null,null,null,null,14,"1416 MICHIGAN ST C2"]
[null,null,null,null,null,14,"STORM LAKE, IA 50588-0000"]
[null,null,null,null,null,14]
[null,null,null,null,null,14]
[null,null,null,null,null,14,"Submission Type:","Original document"]
[null,null,null,null,null,14,"Account Number (Optional):","WSC15416465"]
[null,null,null,null,null,14,"Date Sold or Disposed:","2021-02-08"]
[null,null,null,null,null,14,"CUSIP Number:","68620P101"]
[null,null,null,null,null,14,"Gross Proceeds:","Nothing checked"]
[null,null,null,null,null,14,"Bartering:",0]
[null,null,null,null,null,14,"Federal Income Tax Withheld:",0]
[null,null,null,null,null,15,"Proceeds:",111]
[null,null,null,null,null,15,"Aggregate Profit or (Loss):",0]
[null,null,null,null,null,15,"Realized Profit or (Loss):",0]
[null,null,null,null,null,15,"Unrealized Profit or (Loss) 12/31 Prior Year:",0]
[null,null,null,null,null,15,"Unrealized Profit or (Loss) 12/31 Current Year:",0]
[null,null,null,null,null,15,"Cost or Basis:",108]
[null,null,null,null,null,15,"Wash Sale Loss Disallowed:",0]
[null,null,null,null,null,15,"Accrued Market Discount Amount:",0]
[null,null,null,null,null,15,"Description:","ORGANIGRAM HOLDINGS INC COMMO N SHARES"]
[null,null,null,null,null,15,"Second Notice Indicator:","No Second Notice"]
[null,null,null,null,null,15,"Date Acquired:","00-00-0000"]
[null,null,null,null,null,15,"Noncovered Security Indicator:","Nothing checked"]
[null,null,null,null,null,15,"Type of Gain or Loss Code:","Short-term"]
[null,null,null,null,null,15,"Applicable Check Box on Form 8949:","Short term transaction for which the cost or other basis is being reported to the IRS"]
[null,null,null,null,null,15,"Loss Not Allowed Indicator:"]
[null,null,null,null,null,15,"FATCA Filing Requirement:","Box not checked no Filing Requirement"]
[null,null,null,null,null,15,"Proceeds from:","Box not checked"]
[null,null,null,null,null,15]
[null,null,null,null,null,15,"Form 1099-B Proceeds From Broker and Barter Exchange Transactions"]
[null,null,null,null,null,15]
[null,null,null,null,null,15]
[null,null,null,null,null,15,"Payer:"]
[null,null,null,null,null,15,"Payer's Federal Identification Number (FIN):384019216"]
[null,null,null,null,null,15,"ROBINHOOD SECURITIES LLC"]
[null,null,null,null,null,15,"500 COLONIAL CENTER PARKWAY SUITE 100"]
[null,null,null,null,null,15,"LAKE MARY, FL 32746-0000"]
[null,null,null,null,null,15]
[null,null,null,null,null,15,"Recipient:"]
[null,null,null,null,null,15,"Recipient's Identification Number: 646-04-1329"]
[null,null,null,null,null,15,"NATHAN TUN"]
[null,null,null,null,null,15,"1416 MICHIGAN ST C2"]
[null,null,null,null,null,15,"STORM LAKE, IA 50588-0000"]
[null,null,null,null,null,15]
[null,null,null,null,null,15]
[null,null,null,null,null,15,"Submission Type:","Original document"]
[null,null,null,null,null,15,"Account Number (Optional):","WSC15416466"]
[null,null,null,null,null,15,"Date Sold or Disposed:","2021-04-13"]
[null,null,null,null,null,15,"CUSIP Number:","Y1146L109"]
[null,null,null,null,null,15,"Gross Proceeds:","Nothing checked"]
[null,null,null,null,null,15,"Bartering:",0]
[null,null,null,null,null,15,"Federal Income Tax Withheld:",0]
[null,null,null,null,null,16,"Proceeds:",15]
[null,null,null,null,null,16,"Aggregate Profit or (Loss):",0]
[null,null,null,null,null,16,"Realized Profit or (Loss):",0]
[null,null,null,null,null,16,"Unrealized Profit or (Loss) 12/31 Prior Year:",0]
[null,null,null,null,null,16,"Unrealized Profit or (Loss) 12/31 Current Year:",0]
[null,null,null,null,null,16,"Cost or Basis:",40]
[null,null,null,null,null,{"$f":"IF(OR(G649=\"Proceeds:\",G649=\"Interest:\"),1+F648,F648)","v":16},"Wash Sale Loss Disallowed:",0]
[null,null,null,null,null,16,"Accrued Market Discount Amount:",0]
[null,null,null,null,null,16,"Description:","CASTOR MARITIME INC COMMON SH ARES"]
[null,null,null,null,null,16,"Second Notice Indicator:","No Second Notice"]
[null,null,null,null,null,16,"Date Acquired:","2021-02-24"]
[null,null,null,null,null,16,"Noncovered Security Indicator:","Nothing checked"]
[null,null,null,null,null,16,"Type of Gain or Loss Code:","Short-term"]
[null,null,null,null,null,16,"Applicable Check Box on Form 8949:","Short term transaction for which the cost or other basis is being reported to the IRS"]
[null,null,null,null,null,16,"Loss Not Allowed Indicator:"]
[null,null,null,null,null,16,"FATCA Filing Requirement:","Box not checked no Filing Requirement"]
[null,null,null,null,null,16,"Proceeds from:","Box not checked"]
[null,null,null,null,null,16]
[null,null,null,null,null,16,"Form 1099-B Proceeds From Broker and Barter Exchange Transactions"]
[null,null,null,null,null,16]
[null,null,null,null,null,16]
[null,null,null,null,null,16,"Payer:"]
[null,null,null,null,null,16,"Payer's Federal Identification Number (FIN):384019216"]
[null,null,null,null,null,16,"ROBINHOOD SECURITIES LLC"]
[null,null,null,null,null,16,"500 COLONIAL CENTER PARKWAY SUITE 100"]
[null,null,null,null,null,16,"LAKE MARY, FL 32746-0000"]
[null,null,null,null,null,16]
[null,null,null,null,null,16,"Recipient:"]
[null,null,null,null,null,16,"Recipient's Identification Number: 646-04-1329"]
[null,null,null,null,null,16,"NATHAN TUN"]
[null,null,null,null,null,16,"1416 MICHIGAN ST C2"]
[null,null,null,null,null,16,"STORM LAKE, IA 50588-0000"]
[null,null,null,null,null,16]
[null,null,null,null,null,16]
[null,null,null,null,null,16,"Submission Type:","Original document"]
[null,null,null,null,null,16,"Account Number (Optional):","WSC15416467"]
[null,null,null,null,null,16,"Date Sold or Disposed:","2021-08-05"]
[null,null,null,null,null,16,"CUSIP Number:","00165C104"]
[null,null,null,null,null,16,"Gross Proceeds:","Nothing checked"]
[null,null,null,null,null,16,"Bartering:",0]
[null,null,null,null,null,16,"Federal Income Tax Withheld:",0]
[null,null,null,null,null,17,"Proceeds:",618]
[null,null,null,null,null,17,"Aggregate Profit or (Loss):",0]
[null,null,null,null,null,17,"Realized Profit or (Loss):",0]
[null,null,null,null,null,17,"Unrealized Profit or (Loss) 12/31 Prior Year:",0]
[null,null,null,null,null,17,"Unrealized Profit or (Loss) 12/31 Current Year:",0]
[null,null,null,null,null,17,"Cost or Basis:",630]
[null,null,null,null,null,17,"Wash Sale Loss Disallowed:",0]
[null,null,null,null,null,17,"Accrued Market Discount Amount:",0]
[null,null,null,null,null,17,"Description:","AMC ENTERTAINMENT HOLDINGS IN C"]
[null,null,null,null,null,17,"Second Notice Indicator:","No Second Notice"]
[null,null,null,null,null,17,"Date Acquired:","00-00-0000"]
[null,null,null,null,null,17,"Noncovered Security Indicator:","Nothing checked"]
[null,null,null,null,null,17,"Type of Gain or Loss Code:","Short-term"]
[null,null,null,null,null,17,"Applicable Check Box on Form 8949:","Short term transaction for which the cost or other basis is being reported to the IRS"]
[null,null,null,null,null,17,"Loss Not Allowed Indicator:"]
[null,null,null,null,null,17,"FATCA Filing Requirement:","Box not checked no Filing Requirement"]
[null,null,null,null,null,17,"Proceeds from:","Box not checked"]
[null,null,null,null,null,17]
[null,null,null,null,null,17,"Form 1099-B Proceeds From Broker and Barter Exchange Transactions"]
[null,null,null,null,null,17]
[null,null,null,null,null,17]
[null,null,null,null,null,17,"Payer:"]
[null,null,null,null,null,17,"Payer's Federal Identification Number (FIN):384019216"]
[null,null,null,null,null,17,"ROBINHOOD SECURITIES LLC"]
[null,null,null,null,null,17,"500 COLONIAL CENTER PARKWAY SUITE 100"]
[null,null,null,null,null,17,"LAKE MARY, FL 32746-0000"]
[null,null,null,null,null,17]
[null,null,null,null,null,17,"Recipient:"]
[null,null,null,null,null,17,"Recipient's Identification Number: 646-04-1329"]
[null,null,null,null,null,{"$f":"IF(OR(G713=\"Proceeds:\",G713=\"Interest:\"),1+F712,F712)","v":17},"NATHAN TUN"]
[null,null,null,null,null,17,"1416 MICHIGAN ST C2"]
[null,null,null,null,null,17,"STORM LAKE, IA 50588-0000"]
[null,null,null,null,null,17]
[null,null,null,null,null,17]
[null,null,null,null,null,17,"Submission Type:","Original document"]
[null,null,null,null,null,17,"Account Number (Optional):","WSC15416468"]
[null,null,null,null,null,17,"Date Sold or Disposed:","2021-06-21"]
[null,null,null,null,null,17,"CUSIP Number:","00165C104"]
[null,null,null,null,null,17,"Gross Proceeds:","Nothing checked"]
[null,null,null,null,null,17,"Bartering:",0]
[null,null,null,null,null,17,"Federal Income Tax Withheld:",0]
[null,null,null,null,null,18,"Proceeds:",669]
[null,null,null,null,null,18,"Aggregate Profit or (Loss):",0]
[null,null,null,null,null,18,"Realized Profit or (Loss):",0]
[null,null,null,null,null,18,"Unrealized Profit or (Loss) 12/31 Prior Year:",0]
[null,null,null,null,null,18,"Unrealized Profit or (Loss) 12/31 Current Year:",0]
[null,null,null,null,null,18,"Cost or Basis:",574]
[null,null,null,null,null,18,"Wash Sale Loss Disallowed:",0]
[null,null,null,null,null,18,"Accrued Market Discount Amount:",0]
[null,null,null,null,null,18,"Description:","AMC ENTERTAINMENT HOLDINGS IN C"]
[null,null,null,null,null,18,"Second Notice Indicator:","No Second Notice"]
[null,null,null,null,null,18,"Date Acquired:","00-00-0000"]
[null,null,null,null,null,18,"Noncovered Security Indicator:","Nothing checked"]
[null,null,null,null,null,18,"Type of Gain or Loss Code:","Short-term"]
[null,null,null,null,null,18,"Applicable Check Box on Form 8949:","Short term transaction for which the cost or other basis is being reported to the IRS"]
[null,null,null,null,null,18,"Loss Not Allowed Indicator:"]
[null,null,null,null,null,18,"FATCA Filing Requirement:","Box not checked no Filing Requirement"]
[null,null,null,null,null,18,"Proceeds from:","Box not checked"]
[null,null,null,null,null,18]
[null,null,null,null,null,18,"Form 1099-B Proceeds From Broker and Barter Exchange Transactions"]
[null,null,null,null,null,18]
[null,null,null,null,null,18]
[null,null,null,null,null,18,"Payer:"]
[null,null,null,null,null,18,"Payer's Federal Identification Number (FIN):384019216"]
[null,null,null,null,null,18,"ROBINHOOD SECURITIES LLC"]
[null,null,null,null,null,18,"500 COLONIAL CENTER PARKWAY SUITE 100"]
[null,null,null,null,null,18,"LAKE MARY, FL 32746-0000"]
[null,null,null,null,null,18]
[null,null,null,null,null,18,"Recipient:"]
[null,null,null,null,null,18,"Recipient's Identification Number: 646-04-1329"]
[null,null,null,null,null,18,"NATHAN TUN"]
[null,null,null,null,null,18,"1416 MICHIGAN ST C2"]
[null,null,null,null,null,18,"STORM LAKE, IA 50588-0000"]
[null,null,null,null,null,18]
[null,null,null,null,null,18]
[null,null,null,null,null,18,"Submission Type:","Original document"]
[null,null,null,null,null,18,"Account Number (Optional):","WSC15416469"]
[null,null,null,null,null,18,"Date Sold or Disposed:","2021-02-23"]
[null,null,null,null,null,18,"CUSIP Number:","86730L109"]
[null,null,null,null,null,18,"Gross Proceeds:","Nothing checked"]
[null,null,null,null,null,18,"Bartering:",0]
[null,null,null,null,null,18,"Federal Income Tax Withheld:",0]
[null,null,null,null,null,19,"Proceeds:",35]
[null,null,null,null,null,19,"Aggregate Profit or (Loss):",0]
[null,null,null,null,null,19,"Realized Profit or (Loss):",0]
[null,null,null,null,null,19,"Unrealized Profit or (Loss) 12/31 Prior Year:",0]
[null,null,null,null,null,19,"Unrealized Profit or (Loss) 12/31 Current Year:",0]
[null,null,null,null,null,19,"Cost or Basis:",81]
[null,null,null,null,null,19,"Wash Sale Loss Disallowed:",46]
[null,null,null,null,null,19,"Accrued Market Discount Amount:",0]
[null,null,null,null,null,19,"Description:","SUNDIAL GROWERS INC COMMON SH ARES"]
[null,null,null,null,null,19,"Second Notice Indicator:","No Second Notice"]
[null,null,null,null,null,19,"Date Acquired:","00-00-0000"]
[null,null,null,null,null,{"$f":"IF(OR(G777=\"Proceeds:\",G777=\"Interest:\"),1+F776,F776)","v":19},"Noncovered Security Indicator:","Nothing checked"]
[null,null,null,null,null,19,"Type of Gain or Loss Code:","Short-term"]
[null,null,null,null,null,19,"Applicable Check Box on Form 8949:","Short term transaction for which the cost or other basis is being reported to the IRS"]
[null,null,null,null,null,19,"Loss Not Allowed Indicator:"]
[null,null,null,null,null,19,"FATCA Filing Requirement:","Box not checked no Filing Requirement"]
[null,null,null,null,null,19,"Proceeds from:","Box not checked"]
[null,null,null,null,null,19]
[null,null,null,null,null,19,"Form 1099-B Proceeds From Broker and Barter Exchange Transactions"]
[null,null,null,null,null,19]
[null,null,null,null,null,19]
[null,null,null,null,null,19,"Payer:"]
[null,null,null,null,null,19,"Payer's Federal Identification Number (FIN):384019216"]
[null,null,null,null,null,19,"ROBINHOOD SECURITIES LLC"]
[null,null,null,null,null,19,"500 COLONIAL CENTER PARKWAY SUITE 100"]
[null,null,null,null,null,19,"LAKE MARY, FL 32746-0000"]
[null,null,null,null,null,19]
[null,null,null,null,null,19,"Recipient:"]
[null,null,null,null,null,19,"Recipient's Identification Number: 646-04-1329"]
[null,null,null,null,null,19,"NATHAN TUN"]
[null,null,null,null,null,19,"1416 MICHIGAN ST C2"]
[null,null,null,null,null,19,"STORM LAKE, IA 50588-0000"]
[null,null,null,null,null,19]
[null,null,null,null,null,19]
[null,null,null,null,null,19,"Submission Type:","Original document"]
[null,null,null,null,null,19,"Account Number (Optional):","WSC15416470"]
[null,null,null,null,null,19,"Date Sold or Disposed:","2021-04-13"]
[null,null,null,null,null,19,"CUSIP Number:","86730L109"]
[null,null,null,null,null,19,"Gross Proceeds:","Nothing checked"]
[null,null,null,null,null,19,"Bartering:",0]
[null,null,null,null,null,19,"Federal Income Tax Withheld:",0]
[null,null,null,null,null,20,"Proceeds:",51]
[null,null,null,null,null,20,"Aggregate Profit or (Loss):",0]
[null,null,null,null,null,20,"Realized Profit or (Loss):",0]
[null,null,null,null,null,20,"Unrealized Profit or (Loss) 12/31 Prior Year:",0]
[null,null,null,null,null,20,"Unrealized Profit or (Loss) 12/31 Current Year:",0]
[null,null,null,null,null,20,"Cost or Basis:",127]
[null,null,null,null,null,20,"Wash Sale Loss Disallowed:",0]
[null,null,null,null,null,20,"Accrued Market Discount Amount:",0]
[null,null,null,null,null,20,"Description:","SUNDIAL GROWERS INC COMMON SH ARES"]
[null,null,null,null,null,20,"Second Notice Indicator:","No Second Notice"]
[null,null,null,null,null,20,"Date Acquired:","00-00-0000"]
[null,null,null,null,null,20,"Noncovered Security Indicator:","Nothing checked"]
[null,null,null,null,null,20,"Type of Gain or Loss Code:","Short-term"]
[null,null,null,null,null,20,"Applicable Check Box on Form 8949:","Short term transaction for which the cost or other basis is being reported to the IRS"]
[null,null,null,null,null,20,"Loss Not Allowed Indicator:"]
[null,null,null,null,null,20,"FATCA Filing Requirement:","Box not checked no Filing Requirement"]
[null,null,null,null,null,20,"Proceeds from:","Box not checked"]
[null,null,null,null,null,20]
[null,null,null,null,null,20,"Form 1099-B Proceeds From Broker and Barter Exchange Transactions"]
[null,null,null,null,null,20]
[null,null,null,null,null,20]
[null,null,null,null,null,20,"Payer:"]
[null,null,null,null,null,20,"Payer's Federal Identification Number (FIN):384019216"]
[null,null,null,null,null,20,"ROBINHOOD SECURITIES LLC"]
[null,null,null,null,null,20,"500 COLONIAL CENTER PARKWAY SUITE 100"]
[null,null,null,null,null,20,"LAKE MARY, FL 32746-0000"]
[null,null,null,null,null,20]
[null,null,null,null,null,20,"Recipient:"]
[null,null,null,null,null,20,"Recipient's Identification Number: 646-04-1329"]
[null,null,null,null,null,20,"NATHAN TUN"]
[null,null,null,null,null,20,"1416 MICHIGAN ST C2"]
[null,null,null,null,null,20,"STORM LAKE, IA 50588-0000"]
[null,null,null,null,null,20]
[null,null,null,null,null,20]
[null,null,null,null,null,{"$f":"IF(OR(G841=\"Proceeds:\",G841=\"Interest:\"),1+F840,F840)","v":20},"Submission Type:","Original document"]
[null,null,null,null,null,20,"Account Number (Optional):","WSC15416471"]
[null,null,null,null,null,20,"Date Sold or Disposed:","2021-02-08"]
[null,null,null,null,null,20,"CUSIP Number:","00847G705"]
[null,null,null,null,null,20,"Gross Proceeds:","Nothing checked"]
[null,null,null,null,null,20,"Bartering:",0]
[null,null,null,null,null,20,"Federal Income Tax Withheld:",0]
[null,null,null,null,null,21,"Proceeds:",68]
[null,null,null,null,null,21,"Aggregate Profit or (Loss):",0]
[null,null,null,null,null,21,"Realized Profit or (Loss):",0]
[null,null,null,null,null,21,"Unrealized Profit or (Loss) 12/31 Prior Year:",0]
[null,null,null,null,null,21,"Unrealized Profit or (Loss) 12/31 Current Year:",0]
[null,null,null,null,null,21,"Cost or Basis:",63]
[null,null,null,null,null,21,"Wash Sale Loss Disallowed:",0]
[null,null,null,null,null,21,"Accrued Market Discount Amount:",0]
[null,null,null,null,null,21,"Description:","AGENUS INC COMMON STOCK"]
[null,null,null,null,null,21,"Second Notice Indicator:","No Second Notice"]
[null,null,null,null,null,21,"Date Acquired:","00-00-0000"]
[null,null,null,null,null,21,"Noncovered Security Indicator:","Nothing checked"]
[null,null,null,null,null,21,"Type of Gain or Loss Code:","Short-term"]
[null,null,null,null,null,21,"Applicable Check Box on Form 8949:","Short term transaction for which the cost or other basis is being reported to the IRS"]
[null,null,null,null,null,21,"Loss Not Allowed Indicator:"]
[null,null,null,null,null,21,"FATCA Filing Requirement:","Box not checked no Filing Requirement"]
[null,null,null,null,null,21,"Proceeds from:","Box not checked"]
[null,null,null,null,null,21]
[null,null,null,null,null,21,"Form 1099-B Proceeds From Broker and Barter Exchange Transactions"]
[null,null,null,null,null,21]
[null,null,null,null,null,21]
[null,null,null,null,null,21,"Payer:"]
[null,null,null,null,null,21,"Payer's Federal Identification Number (FIN):384019216"]
[null,null,null,null,null,21,"ROBINHOOD SECURITIES LLC"]
[null,null,null,null,null,21,"500 COLONIAL CENTER PARKWAY SUITE 100"]
[null,null,null,null,null,21,"LAKE MARY, FL 32746-0000"]
[null,null,null,null,null,21]
[null,null,null,null,null,21,"Recipient:"]
[null,null,null,null,null,21,"Recipient's Identification Number: 646-04-1329"]
[null,null,null,null,null,21,"NATHAN TUN"]
[null,null,null,null,null,21,"1416 MICHIGAN ST C2"]
[null,null,null,null,null,21,"STORM LAKE, IA 50588-0000"]
[null,null,null,null,null,21]
[null,null,null,null,null,21]
[null,null,null,null,null,21,"Submission Type:","Original document"]
[null,null,null,null,null,21,"Account Number (Optional):","WSC15416472"]
[null,null,null,null,null,21,"Date Sold or Disposed:","2021-04-15"]
[null,null,null,null,null,21,"CUSIP Number:",369604103]
[null,null,null,null,null,21,"Gross Proceeds:","Nothing checked"]
[null,null,null,null,null,21,"Bartering:",0]
[null,null,null,null,null,21,"Federal Income Tax Withheld:",0]
[null,null,null,null,null,22,"Proceeds:",92]
[null,null,null,null,null,22,"Aggregate Profit or (Loss):",0]
[null,null,null,null,null,22,"Realized Profit or (Loss):",0]
[null,null,null,null,null,22,"Unrealized Profit or (Loss) 12/31 Prior Year:",0]
[null,null,null,null,null,22,"Unrealized Profit or (Loss) 12/31 Current Year:",0]
[null,null,null,null,null,22,"Cost or Basis:",90]
[null,null,null,null,null,22,"Wash Sale Loss Disallowed:",0]
[null,null,null,null,null,22,"Accrued Market Discount Amount:",0]
[null,null,null,null,null,22,"Description:","GENERAL ELECTRIC COMPANY"]
[null,null,null,null,null,22,"Second Notice Indicator:","No Second Notice"]
[null,null,null,null,null,22,"Date Acquired:","2021-04-14"]
[null,null,null,null,null,22,"Noncovered Security Indicator:","Nothing checked"]
[null,null,null,null,null,22,"Type of Gain or Loss Code:","Short-term"]
[null,null,null,null,null,22,"Applicable Check Box on Form 8949:","Short term transaction for which the cost or other basis is being reported to the IRS"]
[null,null,null,null,null,22,"Loss Not Allowed Indicator:"]
[null,null,null,null,null,22,"FATCA Filing Requirement:","Box not checked no Filing Requirement"]
[null,null,null,null,null,{"$f":"IF(OR(G905=\"Proceeds:\",G905=\"Interest:\"),1+F904,F904)","v":22},"Proceeds from:","Box not checked"]
[null,null,null,null,null,22]
[null,null,null,null,null,22,"Form 1099-B Proceeds From Broker and Barter Exchange Transactions"]
[null,null,null,null,null,22]
[null,null,null,null,null,22]
[null,null,null,null,null,22,"Payer:"]
[null,null,null,null,null,22,"Payer's Federal Identification Number (FIN):384019216"]
[null,null,null,null,null,22,"ROBINHOOD SECURITIES LLC"]
[null,null,null,null,null,22,"500 COLONIAL CENTER PARKWAY SUITE 100"]
[null,null,null,null,null,22,"LAKE MARY, FL 32746-0000"]
[null,null,null,null,null,22]
[null,null,null,null,null,22,"Recipient:"]
[null,null,null,null,null,22,"Recipient's Identification Number: 646-04-1329"]
[null,null,null,null,null,22,"NATHAN TUN"]
[null,null,null,null,null,22,"1416 MICHIGAN ST C2"]
[null,null,null,null,null,22,"STORM LAKE, IA 50588-0000"]
[null,null,null,null,null,22]
[null,null,null,null,null,22]
[null,null,null,null,null,22,"Submission Type:","Original document"]
[null,null,null,null,null,22,"Account Number (Optional):","WSC15416473"]
[null,null,null,null,null,22,"Date Sold or Disposed:","2021-01-12"]
[null,null,null,null,null,22,"CUSIP Number:","88160R101"]
[null,null,null,null,null,22,"Gross Proceeds:","Nothing checked"]
[null,null,null,null,null,22,"Bartering:",0]
[null,null,null,null,null,22,"Federal Income Tax Withheld:",0]
[null,null,null,null,null,23,"Proceeds:",49]
[null,null,null,null,null,23,"Aggregate Profit or (Loss):",0]
[null,null,null,null,null,23,"Realized Profit or (Loss):",0]
[null,null,null,null,null,23,"Unrealized Profit or (Loss) 12/31 Prior Year:",0]
[null,null,null,null,null,23,"Unrealized Profit or (Loss) 12/31 Current Year:",0]
[null,null,null,null,null,23,"Cost or Basis:",50]
[null,null,null,null,null,23,"Wash Sale Loss Disallowed:",0]
[null,null,null,null,null,23,"Accrued Market Discount Amount:",0]
[null,null,null,null,null,23,"Description:","TESLA INC COMMON STOCK"]
[null,null,null,null,null,23,"Second Notice Indicator:","No Second Notice"]
[null,null,null,null,null,23,"Date Acquired:","2021-01-08"]
[null,null,null,null,null,23,"Noncovered Security Indicator:","Nothing checked"]
[null,null,null,null,null,23,"Type of Gain or Loss Code:","Short-term"]
[null,null,null,null,null,23,"Applicable Check Box on Form 8949:","Short term transaction for which the cost or other basis is being reported to the IRS"]
[null,null,null,null,null,23,"Loss Not Allowed Indicator:"]
[null,null,null,null,null,23,"FATCA Filing Requirement:","Box not checked no Filing Requirement"]
[null,null,null,null,null,23,"Proceeds from:","Box not checked"]
[null,null,null,null,null,23]
[null,null,null,null,null,23,"Form 1099-B Proceeds From Broker and Barter Exchange Transactions"]
[null,null,null,null,null,23]
[null,null,null,null,null,23]
[null,null,null,null,null,23,"Payer:"]
[null,null,null,null,null,23,"Payer's Federal Identification Number (FIN):384019216"]
[null,null,null,null,null,23,"ROBINHOOD SECURITIES LLC"]
[null,null,null,null,null,23,"500 COLONIAL CENTER PARKWAY SUITE 100"]
[null,null,null,null,null,23,"LAKE MARY, FL 32746-0000"]
[null,null,null,null,null,23]
[null,null,null,null,null,23,"Recipient:"]
[null,null,null,null,null,23,"Recipient's Identification Number: 646-04-1329"]
[null,null,null,null,null,23,"NATHAN TUN"]
[null,null,null,null,null,23,"1416 MICHIGAN ST C2"]
[null,null,null,null,null,23,"STORM LAKE, IA 50588-0000"]
[null,null,null,null,null,23]
[null,null,null,null,null,23]
[null,null,null,null,null,23,"Submission Type:","Original document"]
[null,null,null,null,null,23,"Account Number (Optional):","WSC15416474"]
[null,null,null,null,null,23,"Date Sold or Disposed:","2021-02-23"]
[null,null,null,null,null,23,"CUSIP Number:","81727U105"]
[null,null,null,null,null,23,"Gross Proceeds:","Nothing checked"]
[null,null,null,null,null,{"$f":"IF(OR(G969=\"Proceeds:\",G969=\"Interest:\"),1+F968,F968)","v":23},"Bartering:",0]
[null,null,null,null,null,23,"Federal Income Tax Withheld:",0]
[null,null,null,null,null,24,"Proceeds:",205]
[null,null,null,null,null,24,"Aggregate Profit or (Loss):",0]
[null,null,null,null,null,24,"Realized Profit or (Loss):",0]
[null,null,null,null,null,24,"Unrealized Profit or (Loss) 12/31 Prior Year:",0]
[null,null,null,null,null,24,"Unrealized Profit or (Loss) 12/31 Current Year:",0]
[null,null,null,null,null,24,"Cost or Basis:",206]
[null,null,null,null,null,24,"Wash Sale Loss Disallowed:",0]
[null,null,null,null,null,24,"Accrued Market Discount Amount:",0]
[null,null,null,null,null,24,"Description:","SENSEONICS HOLDINGS INC"]
[null,null,null,null,null,24,"Second Notice Indicator:","No Second Notice"]
[null,null,null,null,null,24,"Date Acquired:","00-00-0000"]
[null,null,null,null,null,24,"Noncovered Security Indicator:","Nothing checked"]
[null,null,null,null,null,24,"Type of Gain or Loss Code:","Short-term"]
[null,null,null,null,null,24,"Applicable Check Box on Form 8949:","Short term transaction for which the cost or other basis is being reported to the IRS"]
[null,null,null,null,null,24,"Loss Not Allowed Indicator:"]
[null,null,null,null,null,24,"FATCA Filing Requirement:","Box not checked no Filing Requirement"]
[null,null,null,null,null,24,"Proceeds from:","Box not checked"]
[null,null,null,null,null,24]
[null,null,null,null,null,24,"Form 1099-B Proceeds From Broker and Barter Exchange Transactions"]
[null,null,null,null,null,24]
[null,null,null,null,null,24]
[null,null,null,null,null,24,"Payer:"]
[null,null,null,null,null,24,"Payer's Federal Identification Number (FIN):384019216"]
[null,null,null,null,null,24,"ROBINHOOD SECURITIES LLC"]
[null,null,null,null,null,24,"500 COLONIAL CENTER PARKWAY SUITE 100"]
[null,null,null,null,null,24,"LAKE MARY, FL 32746-0000"]
[null,null,null,null,null,24]
[null,null,null,null,null,24,"Recipient:"]
[null,null,null,null,null,24,"Recipient's Identification Number: 646-04-1329"]
[null,null,null,null,null,24,"NATHAN TUN"]
[null,null,null,null,null,24,"1416 MICHIGAN ST C2"]
[null,null,null,null,null,24,"STORM LAKE, IA 50588-0000"]
[null,null,null,null,null,24]
[null,null,null,null,null,24]
[null,null,null,null,null,24,"Submission Type:","Original document"]
[null,null,null,null,null,24,"Account Number (Optional):","WSC15416475"]
[null,null,null,null,null,24,"Date Sold or Disposed:","2021-06-23"]
[null,null,null,null,null,24,"CUSIP Number:","35952H601"]
[null,null,null,null,null,24,"Gross Proceeds:","Nothing checked"]
[null,null,null,null,null,24,"Bartering:",0]
[null,null,null,null,null,24,"Federal Income Tax Withheld:",0]
[null,null,null,null,null,25,"Proceeds:",683]
[null,null,null,null,null,25,"Aggregate Profit or (Loss):",0]
[null,null,null,null,null,25,"Realized Profit or (Loss):",0]
[null,null,null,null,null,25,"Unrealized Profit or (Loss) 12/31 Prior Year:",0]
[null,null,null,null,null,25,"Unrealized Profit or (Loss) 12/31 Current Year:",0]
[null,null,null,null,null,25,"Cost or Basis:",670]
[null,null,null,null,null,25,"Wash Sale Loss Disallowed:",0]
[null,null,null,null,null,25,"Accrued Market Discount Amount:",0]
[null,null,null,null,null,25,"Description:","FUELCELL ENERGY INC COMMON S TOCK"]
[null,null,null,null,null,25,"Second Notice Indicator:","No Second Notice"]
[null,null,null,null,null,25,"Date Acquired:","00-00-0000"]
[null,null,null,null,null,25,"Noncovered Security Indicator:","Nothing checked"]
[null,null,null,null,null,25,"Type of Gain or Loss Code:","Short-term"]
[null,null,null,null,null,25,"Applicable Check Box on Form 8949:","Short term transaction for which the cost or other basis is being reported to the IRS"]
[null,null,null,null,null,25,"Loss Not Allowed Indicator:"]
[null,null,null,null,null,25,"FATCA Filing Requirement:","Box not checked no Filing Requirement"]
[null,null,null,null,null,25,"Proceeds from:","Box not checked"]
[null,null,null,null,null,25]
[null,null,null,null,null,25,"Form 1099-B Proceeds From Broker and Barter Exchange Transactions"]
[null,null,null,null,null,25]
[null,null,null,null,null,25]
[null,null,null,null,null,{"$f":"IF(OR(G1033=\"Proceeds:\",G1033=\"Interest:\"),1+F1032,F1032)","v":25},"Payer:"]
[null,null,null,null,null,25,"Payer's Federal Identification Number (FIN):464364776"]
[null,null,null,null,null,25,"ROBINHOOD CRYPTO LLC"]
[null,null,null,null,null,25,"85 WILLOW ROAD"]
[null,null,null,null,null,25,"MENLO PARK, CA 94025-0000"]
[null,null,null,null,null,25]
[null,null,null,null,null,25,"Recipient:"]
[null,null,null,null,null,25,"Recipient's Identification Number: 646-04-1329"]
[null,null,null,null,null,25,"NATHAN TUN"]
[null,null,null,null,null,25,"1416 MICHIGAN ST C2"]
[null,null,null,null,null,25,"STORM LAKE, IA 50588-0000"]
[null,null,null,null,null,25]
[null,null,null,null,null,25]
[null,null,null,null,null,25,"Submission Type:","Original document"]
[null,null,null,null,null,25,"Account Number (Optional):",188180192]
[null,null,null,null,null,25,"Date Sold or Disposed:","2021-05-05"]
[null,null,null,null,null,25,"CUSIP Number:","BCHUSD"]
[null,null,null,null,null,25,"Gross Proceeds:","Net Proceeds"]
[null,null,null,null,null,25,"Bartering:",0]
[null,null,null,null,null,25,"Federal Income Tax Withheld:",0]
[null,null,null,null,null,26,"Proceeds:",44]
[null,null,null,null,null,26,"Aggregate Profit or (Loss):",0]
[null,null,null,null,null,26,"Realized Profit or (Loss):",0]
[null,null,null,null,null,26,"Unrealized Profit or (Loss) 12/31 Prior Year:",0]
[null,null,null,null,null,26,"Unrealized Profit or (Loss) 12/31 Current Year:",0]
[null,null,null,null,null,26,"Cost or Basis:",0]
[null,null,null,null,null,26,"Wash Sale Loss Disallowed:",0]
[null,null,null,null,null,26,"Accrued Market Discount Amount:",0]
[null,null,null,null,null,26,"Description:","0.04071868 BITCOIN CASH TO US DOLLAR"]
[null,null,null,null,null,26,"Second Notice Indicator:","No Second Notice"]
[null,null,null,null,null,26,"Date Acquired:","00-00-0000"]
[null,null,null,null,null,26,"Noncovered Security Indicator:","Noncovered Security Basis not reported to IRS"]
[null,null,null,null,null,26,"Type of Gain or Loss Code:","Short-term"]
[null,null,null,null,null,26,"Applicable Check Box on Form 8949:","Short term transaction for which the cost or other basis is not being reported to the IRS"]
[null,null,null,null,null,26,"Loss Not Allowed Indicator:"]
[null,null,null,null,null,26,"FATCA Filing Requirement:","Box not checked no Filing Requirement"]
[null,null,null,null,null,26,"Proceeds from:","Box not checked"]
[null,null,null,null,null,26]
[null,null,null,null,null,26,"Form 1099-B Proceeds From Broker and Barter Exchange Transactions"]
[null,null,null,null,null,26]
[null,null,null,null,null,26]
[null,null,null,null,null,26,"Payer:"]
[null,null,null,null,null,26,"Payer's Federal Identification Number (FIN):464364776"]
[null,null,null,null,null,26,"ROBINHOOD CRYPTO LLC"]
[null,null,null,null,null,26,"85 WILLOW ROAD"]
[null,null,null,null,null,26,"MENLO PARK, CA 94025-0000"]
[null,null,null,null,null,26]
[null,null,null,null,null,26,"Recipient:"]
[null,null,null,null,null,26,"Recipient's Identification Number: 646-04-1329"]
[null,null,null,null,null,26,"NATHAN TUN"]
[null,null,null,null,null,26,"1416 MICHIGAN ST C2"]
[null,null,null,null,null,26,"STORM LAKE, IA 50588-0000"]
[null,null,null,null,null,26]
[null,null,null,null,null,26]
[null,null,null,null,null,26,"Submission Type:","Original document"]
[null,null,null,null,null,26,"Account Number (Optional):",188180194]
[null,null,null,null,null,26,"Date Sold or Disposed:","2021-02-08"]
[null,null,null,null,null,26,"CUSIP Number:","DOGEUSD"]
[null,null,null,null,null,26,"Gross Proceeds:","Net Proceeds"]
[null,null,null,null,null,26,"Bartering:",0]
[null,null,null,null,null,26,"Federal Income Tax Withheld:",0]
[null,null,null,null,null,27,"Proceeds:",42]
[null,null,null,null,null,27,"Aggregate Profit or (Loss):",0]
[null,null,null,null,null,27,"Realized Profit or (Loss):",0]
[null,null,null,null,null,{"$f":"IF(OR(G1097=\"Proceeds:\",G1097=\"Interest:\"),1+F1096,F1096)","v":27},"Unrealized Profit or (Loss) 12/31 Prior Year:",0]
[null,null,null,null,null,27,"Unrealized Profit or (Loss) 12/31 Current Year:",0]
[null,null,null,null,null,27,"Cost or Basis:",0]
[null,null,null,null,null,27,"Wash Sale Loss Disallowed:",0]
[null,null,null,null,null,27,"Accrued Market Discount Amount:",0]
[null,null,null,null,null,27,"Description:","590 DOGECOIN TO US DOLLAR"]
[null,null,null,null,null,27,"Second Notice Indicator:","No Second Notice"]
[null,null,null,null,null,27,"Date Acquired:","00-00-0000"]
[null,null,null,null,null,27,"Noncovered Security Indicator:","Noncovered Security Basis not reported to IRS"]
[null,null,null,null,null,27,"Type of Gain or Loss Code:","Short-term"]
[null,null,null,null,null,27,"Applicable Check Box on Form 8949:","Short term transaction for which the cost or other basis is not being reported to the IRS"]
[null,null,null,null,null,27,"Loss Not Allowed Indicator:"]
[null,null,null,null,null,27,"FATCA Filing Requirement:","Box not checked no Filing Requirement"]
[null,null,null,null,null,27,"Proceeds from:","Box not checked"]
[null,null,null,null,null,27]
[null,null,null,null,null,27,"Form 1099-B Proceeds From Broker and Barter Exchange Transactions"]
[null,null,null,null,null,27]
[null,null,null,null,null,27]
[null,null,null,null,null,27,"Payer:"]
[null,null,null,null,null,27,"Payer's Federal Identification Number (FIN):464364776"]
[null,null,null,null,null,27,"ROBINHOOD CRYPTO LLC"]
[null,null,null,null,null,27,"85 WILLOW ROAD"]
[null,null,null,null,null,27,"MENLO PARK, CA 94025-0000"]
[null,null,null,null,null,27]
[null,null,null,null,null,27,"Recipient:"]
[null,null,null,null,null,27,"Recipient's Identification Number: 646-04-1329"]
[null,null,null,null,null,27,"NATHAN TUN"]
[null,null,null,null,null,27,"1416 MICHIGAN ST C2"]
[null,null,null,null,null,27,"STORM LAKE, IA 50588-0000"]
[null,null,null,null,null,27]
[null,null,null,null,null,27]
[null,null,null,null,null,27,"Submission Type:","Original document"]
[null,null,null,null,null,27,"Account Number (Optional):",188180195]
[null,null,null,null,null,27,"Date Sold or Disposed:","2021-02-08"]
[null,null,null,null,null,27,"CUSIP Number:","DOGEUSD"]
[null,null,null,null,null,27,"Gross Proceeds:","Net Proceeds"]
[null,null,null,null,null,27,"Bartering:",0]
[null,null,null,null,null,27,"Federal Income Tax Withheld:",0]
[null,null,null,null,null,28,"Proceeds:",20]
[null,null,null,null,null,28,"Aggregate Profit or (Loss):",0]
[null,null,null,null,null,28,"Realized Profit or (Loss):",0]
[null,null,null,null,null,28,"Unrealized Profit or (Loss) 12/31 Prior Year:",0]
[null,null,null,null,null,28,"Unrealized Profit or (Loss) 12/31 Current Year:",0]
[null,null,null,null,null,28,"Cost or Basis:",0]
[null,null,null,null,null,28,"Wash Sale Loss Disallowed:",0]
[null,null,null,null,null,28,"Accrued Market Discount Amount:",0]
[null,null,null,null,null,28,"Description:","239 DOGECOIN TO US DOLLAR"]
[null,null,null,null,null,28,"Second Notice Indicator:","No Second Notice"]
[null,null,null,null,null,28,"Date Acquired:","00-00-0000"]
[null,null,null,null,null,28,"Noncovered Security Indicator:","Noncovered Security Basis not reported to IRS"]
[null,null,null,null,null,28,"Type of Gain or Loss Code:","Short-term"]
[null,null,null,null,null,28,"Applicable Check Box on Form 8949:","Short term transaction for which the cost or other basis is not being reported to the IRS"]
[null,null,null,null,null,28,"Loss Not Allowed Indicator:"]
[null,null,null,null,null,28,"FATCA Filing Requirement:","Box not checked no Filing Requirement"]
[null,null,null,null,null,28,"Proceeds from:","Box not checked"]
[null,null,null,null,null,28]
[null,null,null,null,null,28,"Form 1099-B Proceeds From Broker and Barter Exchange Transactions"]
[null,null,null,null,null,28]
[null,null,null,null,null,28]
[null,null,null,null,null,28,"Payer:"]
[null,null,null,null,null,28,"Payer's Federal Identification Number (FIN):464364776"]
[null,null,null,null,null,28,"ROBINHOOD CRYPTO LLC"]
[null,null,null,null,null,28,"85 WILLOW ROAD"]
[null,null,null,null,null,28,"MENLO PARK, CA 94025-0000"]
[null,null,null,null,null,{"$f":"IF(OR(G1161=\"Proceeds:\",G1161=\"Interest:\"),1+F1160,F1160)","v":28}]
[null,null,null,null,null,28,"Recipient:"]
[null,null,null,null,null,28,"Recipient's Identification Number: 646-04-1329"]
[null,null,null,null,null,28,"NATHAN TUN"]
[null,null,null,null,null,28,"1416 MICHIGAN ST C2"]
[null,null,null,null,null,28,"STORM LAKE, IA 50588-0000"]
[null,null,null,null,null,28]
[null,null,null,null,null,28]
[null,null,null,null,null,28,"Submission Type:","Original document"]
[null,null,null,null,null,28,"Account Number (Optional):",188180196]
[null,null,null,null,null,28,"Date Sold or Disposed:","2021-04-13"]
[null,null,null,null,null,28,"CUSIP Number:","DOGEUSD"]
[null,null,null,null,null,28,"Gross Proceeds:","Net Proceeds"]
[null,null,null,null,null,28,"Bartering:",0]
[null,null,null,null,null,28,"Federal Income Tax Withheld:",0]
[null,null,null,null,null,29,"Proceeds:",58]
[null,null,null,null,null,29,"Aggregate Profit or (Loss):",0]
[null,null,null,null,null,29,"Realized Profit or (Loss):",0]
[null,null,null,null,null,29,"Unrealized Profit or (Loss) 12/31 Prior Year:",0]
[null,null,null,null,null,29,"Unrealized Profit or (Loss) 12/31 Current Year:",0]
[null,null,null,null,null,29,"Cost or Basis:",0]
[null,null,null,null,null,29,"Wash Sale Loss Disallowed:",0]
[null,null,null,null,null,29,"Accrued Market Discount Amount:",0]
[null,null,null,null,null,29,"Description:","726 DOGECOIN TO US DOLLAR"]
[null,null,null,null,null,29,"Second Notice Indicator:","No Second Notice"]
[null,null,null,null,null,29,"Date Acquired:","00-00-0000"]
[null,null,null,null,null,29,"Noncovered Security Indicator:","Noncovered Security Basis not reported to IRS"]
[null,null,null,null,null,29,"Type of Gain or Loss Code:","Short-term"]
[null,null,null,null,null,29,"Applicable Check Box on Form 8949:","Short term transaction for which the cost or other basis is not being reported to the IRS"]
[null,null,null,null,null,29,"Loss Not Allowed Indicator:"]
[null,null,null,null,null,29,"FATCA Filing Requirement:","Box not checked no Filing Requirement"]
[null,null,null,null,null,29,"Proceeds from:","Box not checked"]
[null,null,null,null,null,29]
[null,null,null,null,null,29,"Form 1099-B Proceeds From Broker and Barter Exchange Transactions"]
[null,null,null,null,null,29]
[null,null,null,null,null,29]
[null,null,null,null,null,29,"Payer:"]
[null,null,null,null,null,29,"Payer's Federal Identification Number (FIN):464364776"]
[null,null,null,null,null,29,"ROBINHOOD CRYPTO LLC"]
[null,null,null,null,null,29,"85 WILLOW ROAD"]
[null,null,null,null,null,29,"MENLO PARK, CA 94025-0000"]
[null,null,null,null,null,29]
[null,null,null,null,null,29,"Recipient:"]
[null,null,null,null,null,29,"Recipient's Identification Number: 646-04-1329"]
[null,null,null,null,null,29,"NATHAN TUN"]
[null,null,null,null,null,29,"1416 MICHIGAN ST C2"]
[null,null,null,null,null,29,"STORM LAKE, IA 50588-0000"]
[null,null,null,null,null,29]
[null,null,null,null,null,29]
[null,null,null,null,null,29,"Submission Type:","Original document"]
[null,null,null,null,null,29,"Account Number (Optional):",188180198]
[null,null,null,null,null,29,"Date Sold or Disposed:","2021-04-13"]
[null,null,null,null,null,29,"CUSIP Number:","DOGEUSD"]
[null,null,null,null,null,29,"Gross Proceeds:","Net Proceeds"]
[null,null,null,null,null,29,"Bartering:",0]
[null,null,null,null,null,29,"Federal Income Tax Withheld:",0]
[null,null,null,null,null,30,"Proceeds:",113]
[null,null,null,null,null,30,"Aggregate Profit or (Loss):",0]
[null,null,null,null,null,30,"Realized Profit or (Loss):",0]
[null,null,null,null,null,30,"Unrealized Profit or (Loss) 12/31 Prior Year:",0]
[null,null,null,null,null,30,"Unrealized Profit or (Loss) 12/31 Current Year:",0]
[null,null,null,null,null,30,"Cost or Basis:",0]
[null,null,null,null,null,30,"Wash Sale Loss Disallowed:",0]
[null,null,null,null,null,30,"Accrued Market Discount Amount:",0]
[null,null,null,null,null,{"$f":"IF(OR(G1225=\"Proceeds:\",G1225=\"Interest:\"),1+F1224,F1224)","v":30},"Description:","1247 DOGECOIN TO US DOLLAR"]
[null,null,null,null,null,30,"Second Notice Indicator:","No Second Notice"]
[null,null,null,null,null,30,"Date Acquired:","00-00-0000"]
[null,null,null,null,null,30,"Noncovered Security Indicator:","Noncovered Security Basis not reported to IRS"]
[null,null,null,null,null,30,"Type of Gain or Loss Code:","Short-term"]
[null,null,null,null,null,30,"Applicable Check Box on Form 8949:","Short term transaction for which the cost or other basis is not being reported to the IRS"]
[null,null,null,null,null,30,"Loss Not Allowed Indicator:"]
[null,null,null,null,null,30,"FATCA Filing Requirement:","Box not checked no Filing Requirement"]
[null,null,null,null,null,30,"Proceeds from:","Box not checked"]
[null,null,null,null,null,30]
[null,null,null,null,null,30,"Form 1099-B Proceeds From Broker and Barter Exchange Transactions"]
[null,null,null,null,null,30]
[null,null,null,null,null,30]
[null,null,null,null,null,30,"Payer:"]
[null,null,null,null,null,30,"Payer's Federal Identification Number (FIN):464364776"]
[null,null,null,null,null,30,"ROBINHOOD CRYPTO LLC"]
[null,null,null,null,null,30,"85 WILLOW ROAD"]
[null,null,null,null,null,30,"MENLO PARK, CA 94025-0000"]
[null,null,null,null,null,30]
[null,null,null,null,null,30,"Recipient:"]
[null,null,null,null,null,30,"Recipient's Identification Number: 646-04-1329"]
[null,null,null,null,null,30,"NATHAN TUN"]
[null,null,null,null,null,30,"1416 MICHIGAN ST C2"]
[null,null,null,null,null,30,"STORM LAKE, IA 50588-0000"]
[null,null,null,null,null,30]
[null,null,null,null,null,30]
[null,null,null,null,null,30,"Submission Type:","Original document"]
[null,null,null,null,null,30,"Account Number (Optional):",188180199]
[null,null,null,null,null,30,"Date Sold or Disposed:","2021-04-15"]
[null,null,null,null,null,30,"CUSIP Number:","DOGEUSD"]
[null,null,null,null,null,30,"Gross Proceeds:","Net Proceeds"]
[null,null,null,null,null,30,"Bartering:",0]
[null,null,null,null,null,30,"Federal Income Tax Withheld:",0]
[null,null,null,null,null,31,"Proceeds:",97]
[null,null,null,null,null,31,"Aggregate Profit or (Loss):",0]
[null,null,null,null,null,31,"Realized Profit or (Loss):",0]
[null,null,null,null,null,31,"Unrealized Profit or (Loss) 12/31 Prior Year:",0]
[null,null,null,null,null,31,"Unrealized Profit or (Loss) 12/31 Current Year:",0]
[null,null,null,null,null,31,"Cost or Basis:",0]
[null,null,null,null,null,31,"Wash Sale Loss Disallowed:",0]
[null,null,null,null,null,31,"Accrued Market Discount Amount:",0]
[null,null,null,null,null,31,"Description:","736 DOGECOIN TO US DOLLAR"]
[null,null,null,null,null,31,"Second Notice Indicator:","No Second Notice"]
[null,null,null,null,null,31,"Date Acquired:","00-00-0000"]
[null,null,null,null,null,31,"Noncovered Security Indicator:","Noncovered Security Basis not reported to IRS"]
[null,null,null,null,null,31,"Type of Gain or Loss Code:","Short-term"]
[null,null,null,null,null,31,"Applicable Check Box on Form 8949:","Short term transaction for which the cost or other basis is not being reported to the IRS"]
[null,null,null,null,null,31,"Loss Not Allowed Indicator:"]
[null,null,null,null,null,31,"FATCA Filing Requirement:","Box not checked no Filing Requirement"]
[null,null,null,null,null,31,"Proceeds from:","Box not checked"]
[null,null,null,null,null,31]
[null,null,null,null,null,31,"Form 1099-B Proceeds From Broker and Barter Exchange Transactions"]
[null,null,null,null,null,31]
[null,null,null,null,null,31]
[null,null,null,null,null,31,"Payer:"]
[null,null,null,null,null,31,"Payer's Federal Identification Number (FIN):464364776"]
[null,null,null,null,null,31,"ROBINHOOD CRYPTO LLC"]
[null,null,null,null,null,31,"85 WILLOW ROAD"]
[null,null,null,null,null,31,"MENLO PARK, CA 94025-0000"]
[null,null,null,null,null,31]
[null,null,null,null,null,31,"Recipient:"]
[null,null,null,null,null,31,"Recipient's Identification Number: 646-04-1329"]
[null,null,null,null,null,31,"NATHAN TUN"]
[null,null,null,null,null,31,"1416 MICHIGAN ST C2"]
[null,null,null,null,null,{"$f":"IF(OR(G1289=\"Proceeds:\",G1289=\"Interest:\"),1+F1288,F1288)","v":31},"STORM LAKE, IA 50588-0000"]
[null,null,null,null,null,31]
[null,null,null,null,null,31]
[null,null,null,null,null,31,"Submission Type:","Original document"]
[null,null,null,null,null,31,"Account Number (Optional):",188180201]
[null,null,null,null,null,31,"Date Sold or Disposed:","2021-04-17"]
[null,null,null,null,null,31,"CUSIP Number:","DOGEUSD"]
[null,null,null,null,null,31,"Gross Proceeds:","Net Proceeds"]
[null,null,null,null,null,31,"Bartering:",0]
[null,null,null,null,null,31,"Federal Income Tax Withheld:",0]
[null,null,null,null,null,32,"Proceeds:",253]
[null,null,null,null,null,32,"Aggregate Profit or (Loss):",0]
[null,null,null,null,null,32,"Realized Profit or (Loss):",0]
[null,null,null,null,null,32,"Unrealized Profit or (Loss) 12/31 Prior Year:",0]
[null,null,null,null,null,32,"Unrealized Profit or (Loss) 12/31 Current Year:",0]
[null,null,null,null,null,32,"Cost or Basis:",0]
[null,null,null,null,null,32,"Wash Sale Loss Disallowed:",0]
[null,null,null,null,null,32,"Accrued Market Discount Amount:",0]
[null,null,null,null,null,32,"Description:","768 DOGECOIN TO US DOLLAR"]
[null,null,null,null,null,32,"Second Notice Indicator:","No Second Notice"]
[null,null,null,null,null,32,"Date Acquired:","00-00-0000"]
[null,null,null,null,null,32,"Noncovered Security Indicator:","Noncovered Security Basis not reported to IRS"]
[null,null,null,null,null,32,"Type of Gain or Loss Code:","Short-term"]
[null,null,null,null,null,32,"Applicable Check Box on Form 8949:","Short term transaction for which the cost or other basis is not being reported to the IRS"]
[null,null,null,null,null,32,"Loss Not Allowed Indicator:"]
[null,null,null,null,null,32,"FATCA Filing Requirement:","Box not checked no Filing Requirement"]
[null,null,null,null,null,32,"Proceeds from:","Box not checked"]
[null,null,null,null,null,32]
[null,null,null,null,null,32,"Form 1099-B Proceeds From Broker and Barter Exchange Transactions"]
[null,null,null,null,null,32]
[null,null,null,null,null,32]
[null,null,null,null,null,32,"Payer:"]
[null,null,null,null,null,32,"Payer's Federal Identification Number (FIN):464364776"]
[null,null,null,null,null,32,"ROBINHOOD CRYPTO LLC"]
[null,null,null,null,null,32,"85 WILLOW ROAD"]
[null,null,null,null,null,32,"MENLO PARK, CA 94025-0000"]
[null,null,null,null,null,32]
[null,null,null,null,null,32,"Recipient:"]
[null,null,null,null,null,32,"Recipient's Identification Number: 646-04-1329"]
[null,null,null,null,null,32,"NATHAN TUN"]
[null,null,null,null,null,32,"1416 MICHIGAN ST C2"]
[null,null,null,null,null,32,"STORM LAKE, IA 50588-0000"]
[null,null,null,null,null,32]
[null,null,null,null,null,32]
[null,null,null,null,null,32,"Submission Type:","Original document"]
[null,null,null,null,null,32,"Account Number (Optional):",188180202]
[null,null,null,null,null,32,"Date Sold or Disposed:","2021-04-20"]
[null,null,null,null,null,32,"CUSIP Number:","DOGEUSD"]
[null,null,null,null,null,32,"Gross Proceeds:","Net Proceeds"]
[null,null,null,null,null,32,"Bartering:",0]
[null,null,null,null,null,32,"Federal Income Tax Withheld:",0]
[null,null,null,null,null,33,"Proceeds:",292]
[null,null,null,null,null,33,"Aggregate Profit or (Loss):",0]
[null,null,null,null,null,33,"Realized Profit or (Loss):",0]
[null,null,null,null,null,33,"Unrealized Profit or (Loss) 12/31 Prior Year:",0]
[null,null,null,null,null,33,"Unrealized Profit or (Loss) 12/31 Current Year:",0]
[null,null,null,null,null,33,"Cost or Basis:",0]
[null,null,null,null,null,33,"Wash Sale Loss Disallowed:",0]
[null,null,null,null,null,33,"Accrued Market Discount Amount:",0]
[null,null,null,null,null,33,"Description:","746 DOGECOIN TO US DOLLAR"]
[null,null,null,null,null,33,"Second Notice Indicator:","No Second Notice"]
[null,null,null,null,null,33,"Date Acquired:","00-00-0000"]
[null,null,null,null,null,33,"Noncovered Security Indicator:","Noncovered Security Basis not reported to IRS"]
[null,null,null,null,null,33,"Type of Gain or Loss Code:","Short-term"]
[null,null,null,null,null,{"$f":"IF(OR(G1353=\"Proceeds:\",G1353=\"Interest:\"),1+F1352,F1352)","v":33},"Applicable Check Box on Form 8949:","Short term transaction for which the cost or other basis is not being reported to the IRS"]
[null,null,null,null,null,33,"Loss Not Allowed Indicator:"]
[null,null,null,null,null,33,"FATCA Filing Requirement:","Box not checked no Filing Requirement"]
[null,null,null,null,null,33,"Proceeds from:","Box not checked"]
[null,null,null,null,null,33]
[null,null,null,null,null,33,"Form 1099-B Proceeds From Broker and Barter Exchange Transactions"]
[null,null,null,null,null,33]
[null,null,null,null,null,33]
[null,null,null,null,null,33,"Payer:"]
[null,null,null,null,null,33,"Payer's Federal Identification Number (FIN):464364776"]
[null,null,null,null,null,33,"ROBINHOOD CRYPTO LLC"]
[null,null,null,null,null,33,"85 WILLOW ROAD"]
[null,null,null,null,null,33,"MENLO PARK, CA 94025-0000"]
[null,null,null,null,null,33]
[null,null,null,null,null,33,"Recipient:"]
[null,null,null,null,null,33,"Recipient's Identification Number: 646-04-1329"]
[null,null,null,null,null,33,"NATHAN TUN"]
[null,null,null,null,null,33,"1416 MICHIGAN ST C2"]
[null,null,null,null,null,33,"STORM LAKE, IA 50588-0000"]
[null,null,null,null,null,33]
[null,null,null,null,null,33]
[null,null,null,null,null,33,"Submission Type:","Original document"]
[null,null,null,null,null,33,"Account Number (Optional):",188180203]
[null,null,null,null,null,33,"Date Sold or Disposed:","2021-05-01"]
[null,null,null,null,null,33,"CUSIP Number:","DOGEUSD"]
[null,null,null,null,null,33,"Gross Proceeds:","Net Proceeds"]
[null,null,null,null,null,33,"Bartering:",0]
[null,null,null,null,null,33,"Federal Income Tax Withheld:",0]
[null,null,null,null,null,34,"Proceeds:",5]
[null,null,null,null,null,34,"Aggregate Profit or (Loss):",0]
[null,null,null,null,null,34,"Realized Profit or (Loss):",0]
[null,null,null,null,null,34,"Unrealized Profit or (Loss) 12/31 Prior Year:",0]
[null,null,null,null,null,34,"Unrealized Profit or (Loss) 12/31 Current Year:",0]
[null,null,null,null,null,34,"Cost or Basis:",0]
[null,null,null,null,null,34,"Wash Sale Loss Disallowed:",0]
[null,null,null,null,null,34,"Accrued Market Discount Amount:",0]
[null,null,null,null,null,34,"Description:","16 DOGECOIN TO US DOLLAR"]
[null,null,null,null,null,34,"Second Notice Indicator:","No Second Notice"]
[null,null,null,null,null,34,"Date Acquired:","00-00-0000"]
[null,null,null,null,null,34,"Noncovered Security Indicator:","Noncovered Security Basis not reported to IRS"]
[null,null,null,null,null,34,"Type of Gain or Loss Code:","Short-term"]
[null,null,null,null,null,34,"Applicable Check Box on Form 8949:","Short term transaction for which the cost or other basis is not being reported to the IRS"]
[null,null,null,null,null,34,"Loss Not Allowed Indicator:"]
[null,null,null,null,null,34,"FATCA Filing Requirement:","Box not checked no Filing Requirement"]
[null,null,null,null,null,34,"Proceeds from:","Box not checked"]
[null,null,null,null,null,34]
[null,null,null,null,null,34,"Form 1099-B Proceeds From Broker and Barter Exchange Transactions"]
[null,null,null,null,null,34]
[null,null,null,null,null,34]
[null,null,null,null,null,34,"Payer:"]
[null,null,null,null,null,34,"Payer's Federal Identification Number (FIN):464364776"]
[null,null,null,null,null,34,"ROBINHOOD CRYPTO LLC"]
[null,null,null,null,null,34,"85 WILLOW ROAD"]
[null,null,null,null,null,34,"MENLO PARK, CA 94025-0000"]
[null,null,null,null,null,34]
[null,null,null,null,null,34,"Recipient:"]
[null,null,null,null,null,34,"Recipient's Identification Number: 646-04-1329"]
[null,null,null,null,null,34,"NATHAN TUN"]
[null,null,null,null,null,34,"1416 MICHIGAN ST C2"]
[null,null,null,null,null,34,"STORM LAKE, IA 50588-0000"]
[null,null,null,null,null,34]
[null,null,null,null,null,34]
[null,null,null,null,null,34,"Submission Type:","Original document"]
[null,null,null,null,null,34,"Account Number (Optional):",188180204]
[null,null,null,null,null,{"$f":"IF(OR(G1417=\"Proceeds:\",G1417=\"Interest:\"),1+F1416,F1416)","v":34},"Date Sold or Disposed:","2021-05-01"]
[null,null,null,null,null,34,"CUSIP Number:","DOGEUSD"]
[null,null,null,null,null,34,"Gross Proceeds:","Net Proceeds"]
[null,null,null,null,null,34,"Bartering:",0]
[null,null,null,null,null,34,"Federal Income Tax Withheld:",0]
[null,null,null,null,null,35,"Proceeds:",279]
[null,null,null,null,null,35,"Aggregate Profit or (Loss):",0]
[null,null,null,null,null,35,"Realized Profit or (Loss):",0]
[null,null,null,null,null,35,"Unrealized Profit or (Loss) 12/31 Prior Year:",0]
[null,null,null,null,null,35,"Unrealized Profit or (Loss) 12/31 Current Year:",0]
[null,null,null,null,null,35,"Cost or Basis:",0]
[null,null,null,null,null,35,"Wash Sale Loss Disallowed:",0]
[null,null,null,null,null,35,"Accrued Market Discount Amount:",0]
[null,null,null,null,null,35,"Description:","776 DOGECOIN TO US DOLLAR"]
[null,null,null,null,null,35,"Second Notice Indicator:","No Second Notice"]
[null,null,null,null,null,35,"Date Acquired:","00-00-0000"]
[null,null,null,null,null,35,"Noncovered Security Indicator:","Noncovered Security Basis not reported to IRS"]
[null,null,null,null,null,35,"Type of Gain or Loss Code:","Short-term"]
[null,null,null,null,null,35,"Applicable Check Box on Form 8949:","Short term transaction for which the cost or other basis is not being reported to the IRS"]
[null,null,null,null,null,35,"Loss Not Allowed Indicator:"]
[null,null,null,null,null,35,"FATCA Filing Requirement:","Box not checked no Filing Requirement"]
[null,null,null,null,null,35,"Proceeds from:","Box not checked"]
[null,null,null,null,null,35]
[null,null,null,null,null,35,"Form 1099-B Proceeds From Broker and Barter Exchange Transactions"]
[null,null,null,null,null,35]
[null,null,null,null,null,35]
[null,null,null,null,null,35,"Payer:"]
[null,null,null,null,null,35,"Payer's Federal Identification Number (FIN):464364776"]
[null,null,null,null,null,35,"ROBINHOOD CRYPTO LLC"]
[null,null,null,null,null,35,"85 WILLOW ROAD"]
[null,null,null,null,null,35,"MENLO PARK, CA 94025-0000"]
[null,null,null,null,null,35]
[null,null,null,null,null,35,"Recipient:"]
[null,null,null,null,null,35,"Recipient's Identification Number: 646-04-1329"]
[null,null,null,null,null,35,"NATHAN TUN"]
[null,null,null,null,null,35,"1416 MICHIGAN ST C2"]
[null,null,null,null,null,35,"STORM LAKE, IA 50588-0000"]
[null,null,null,null,null,35]
[null,null,null,null,null,35]
[null,null,null,null,null,35,"Submission Type:","Original document"]
[null,null,null,null,null,35,"Account Number (Optional):",188180205]
[null,null,null,null,null,35,"Date Sold or Disposed:","2021-05-04"]
[null,null,null,null,null,35,"CUSIP Number:","DOGEUSD"]
[null,null,null,null,null,35,"Gross Proceeds:","Net Proceeds"]
[null,null,null,null,null,35,"Bartering:",0]
[null,null,null,null,null,35,"Federal Income Tax Withheld:",0]
[null,null,null,null,null,36,"Proceeds:",135]
[null,null,null,null,null,36,"Aggregate Profit or (Loss):",0]
[null,null,null,null,null,36,"Realized Profit or (Loss):",0]
[null,null,null,null,null,36,"Unrealized Profit or (Loss) 12/31 Prior Year:",0]
[null,null,null,null,null,36,"Unrealized Profit or (Loss) 12/31 Current Year:",0]
[null,null,null,null,null,36,"Cost or Basis:",0]
[null,null,null,null,null,36,"Wash Sale Loss Disallowed:",0]
[null,null,null,null,null,36,"Accrued Market Discount Amount:",0]
[null,null,null,null,null,36,"Description:","259 DOGECOIN TO US DOLLAR"]
[null,null,null,null,null,36,"Second Notice Indicator:","No Second Notice"]
[null,null,null,null,null,36,"Date Acquired:","00-00-0000"]
[null,null,null,null,null,36,"Noncovered Security Indicator:","Noncovered Security Basis not reported to IRS"]
[null,null,null,null,null,36,"Type of Gain or Loss Code:","Short-term"]
[null,null,null,null,null,36,"Applicable Check Box on Form 8949:","Short term transaction for which the cost or other basis is not being reported to the IRS"]
[null,null,null,null,null,36,"Loss Not Allowed Indicator:"]
[null,null,null,null,null,36,"FATCA Filing Requirement:","Box not checked no Filing Requirement"]
[null,null,null,null,null,36,"Proceeds from:","Box not checked"]
[null,null,null,null,null,36]
[null,null,null,null,null,{"$f":"IF(OR(G1481=\"Proceeds:\",G1481=\"Interest:\"),1+F1480,F1480)","v":36},"Form 1099-B Proceeds From Broker and Barter Exchange Transactions"]
[null,null,null,null,null,36]
[null,null,null,null,null,36]
[null,null,null,null,null,36,"Payer:"]
[null,null,null,null,null,36,"Payer's Federal Identification Number (FIN):464364776"]
[null,null,null,null,null,36,"ROBINHOOD CRYPTO LLC"]
[null,null,null,null,null,36,"85 WILLOW ROAD"]
[null,null,null,null,null,36,"MENLO PARK, CA 94025-0000"]
[null,null,null,null,null,36]
[null,null,null,null,null,36,"Recipient:"]
[null,null,null,null,null,36,"Recipient's Identification Number: 646-04-1329"]
[null,null,null,null,null,36,"NATHAN TUN"]
[null,null,null,null,null,36,"1416 MICHIGAN ST C2"]
[null,null,null,null,null,36,"STORM LAKE, IA 50588-0000"]
[null,null,null,null,null,36]
[null,null,null,null,null,36]
[null,null,null,null,null,36,"Submission Type:","Original document"]
[null,null,null,null,null,36,"Account Number (Optional):",188180206]
[null,null,null,null,null,36,"Date Sold or Disposed:","2021-05-05"]
[null,null,null,null,null,36,"CUSIP Number:","DOGEUSD"]
[null,null,null,null,null,36,"Gross Proceeds:","Net Proceeds"]
[null,null,null,null,null,36,"Bartering:",0]
[null,null,null,null,null,36,"Federal Income Tax Withheld:",0]
[null,null,null,null,null,37,"Proceeds:",440]
[null,null,null,null,null,37,"Aggregate Profit or (Loss):",0]
[null,null,null,null,null,37,"Realized Profit or (Loss):",0]
[null,null,null,null,null,37,"Unrealized Profit or (Loss) 12/31 Prior Year:",0]
[null,null,null,null,null,37,"Unrealized Profit or (Loss) 12/31 Current Year:",0]
[null,null,null,null,null,37,"Cost or Basis:",0]
[null,null,null,null,null,37,"Wash Sale Loss Disallowed:",0]
[null,null,null,null,null,37,"Accrued Market Discount Amount:",0]
[null,null,null,null,null,37,"Description:","720 DOGECOIN TO US DOLLAR"]
[null,null,null,null,null,37,"Second Notice Indicator:","No Second Notice"]
[null,null,null,null,null,37,"Date Acquired:","00-00-0000"]
[null,null,null,null,null,37,"Noncovered Security Indicator:","Noncovered Security Basis not reported to IRS"]
[null,null,null,null,null,37,"Type of Gain or Loss Code:","Short-term"]
[null,null,null,null,null,37,"Applicable Check Box on Form 8949:","Short term transaction for which the cost or other basis is not being reported to the IRS"]
[null,null,null,null,null,37,"Loss Not Allowed Indicator:"]
[null,null,null,null,null,37,"FATCA Filing Requirement:","Box not checked no Filing Requirement"]
[null,null,null,null,null,37,"Proceeds from:","Box not checked"]
[null,null,null,null,null,37]
[null,null,null,null,null,37,"Form 1099-B Proceeds From Broker and Barter Exchange Transactions"]
[null,null,null,null,null,37]
[null,null,null,null,null,37]
[null,null,null,null,null,37,"Payer:"]
[null,null,null,null,null,37,"Payer's Federal Identification Number (FIN):464364776"]
[null,null,null,null,null,37,"ROBINHOOD CRYPTO LLC"]
[null,null,null,null,null,37,"85 WILLOW ROAD"]
[null,null,null,null,null,37,"MENLO PARK, CA 94025-0000"]
[null,null,null,null,null,37]
[null,null,null,null,null,37,"Recipient:"]
[null,null,null,null,null,37,"Recipient's Identification Number: 646-04-1329"]
[null,null,null,null,null,37,"NATHAN TUN"]
[null,null,null,null,null,37,"1416 MICHIGAN ST C2"]
[null,null,null,null,null,37,"STORM LAKE, IA 50588-0000"]
[null,null,null,null,null,37]
[null,null,null,null,null,37]
[null,null,null,null,null,37,"Submission Type:","Original document"]
[null,null,null,null,null,37,"Account Number (Optional):",188180207]
[null,null,null,null,null,37,"Date Sold or Disposed:","2021-05-05"]
[null,null,null,null,null,37,"CUSIP Number:","DOGEUSD"]
[null,null,null,null,null,37,"Gross Proceeds:","Net Proceeds"]
[null,null,null,null,null,37,"Bartering:",0]
[null,null,null,null,null,37,"Federal Income Tax Withheld:",0]
[null,null,null,null,null,{"$f":"IF(OR(G1545=\"Proceeds:\",G1545=\"Interest:\"),1+F1544,F1544)","v":38},"Proceeds:",225]
[null,null,null,null,null,38,"Aggregate Profit or (Loss):",0]
[null,null,null,null,null,38,"Realized Profit or (Loss):",0]
[null,null,null,null,null,38,"Unrealized Profit or (Loss) 12/31 Prior Year:",0]
[null,null,null,null,null,38,"Unrealized Profit or (Loss) 12/31 Current Year:",0]
[null,null,null,null,null,38,"Cost or Basis:",0]
[null,null,null,null,null,38,"Wash Sale Loss Disallowed:",0]
[null,null,null,null,null,38,"Accrued Market Discount Amount:",0]
[null,null,null,null,null,38,"Description:","342 DOGECOIN TO US DOLLAR"]
[null,null,null,null,null,38,"Second Notice Indicator:","No Second Notice"]
[null,null,null,null,null,38,"Date Acquired:","00-00-0000"]
[null,null,null,null,null,38,"Noncovered Security Indicator:","Noncovered Security Basis not reported to IRS"]
[null,null,null,null,null,38,"Type of Gain or Loss Code:","Short-term"]
[null,null,null,null,null,38,"Applicable Check Box on Form 8949:","Short term transaction for which the cost or other basis is not being reported to the IRS"]
[null,null,null,null,null,38,"Loss Not Allowed Indicator:"]
[null,null,null,null,null,38,"FATCA Filing Requirement:","Box not checked no Filing Requirement"]
[null,null,null,null,null,38,"Proceeds from:","Box not checked"]
[null,null,null,null,null,38]
[null,null,null,null,null,38,"Form 1099-B Proceeds From Broker and Barter Exchange Transactions"]
[null,null,null,null,null,38]
[null,null,null,null,null,38]
[null,null,null,null,null,38,"Payer:"]
[null,null,null,null,null,38,"Payer's Federal Identification Number (FIN):464364776"]
[null,null,null,null,null,38,"ROBINHOOD CRYPTO LLC"]
[null,null,null,null,null,38,"85 WILLOW ROAD"]
[null,null,null,null,null,38,"MENLO PARK, CA 94025-0000"]
[null,null,null,null,null,38]
[null,null,null,null,null,38,"Recipient:"]
[null,null,null,null,null,38,"Recipient's Identification Number: 646-04-1329"]
[null,null,null,null,null,38,"NATHAN TUN"]
[null,null,null,null,null,38,"1416 MICHIGAN ST C2"]
[null,null,null,null,null,38,"STORM LAKE, IA 50588-0000"]
[null,null,null,null,null,38]
[null,null,null,null,null,38]
[null,null,null,null,null,38,"Submission Type:","Original document"]
[null,null,null,null,null,38,"Account Number (Optional):",188180208]
[null,null,null,null,null,38,"Date Sold or Disposed:","2021-05-05"]
[null,null,null,null,null,38,"CUSIP Number:","DOGEUSD"]
[null,null,null,null,null,38,"Gross Proceeds:","Net Proceeds"]
[null,null,null,null,null,38,"Bartering:",0]
[null,null,null,null,null,38,"Federal Income Tax Withheld:",0]
[null,null,null,null,null,39,"Proceeds:",221]
[null,null,null,null,null,39,"Aggregate Profit or (Loss):",0]
[null,null,null,null,null,39,"Realized Profit or (Loss):",0]
[null,null,null,null,null,39,"Unrealized Profit or (Loss) 12/31 Prior Year:",0]
[null,null,null,null,null,39,"Unrealized Profit or (Loss) 12/31 Current Year:",0]
[null,null,null,null,null,39,"Cost or Basis:",0]
[null,null,null,null,null,39,"Wash Sale Loss Disallowed:",0]
[null,null,null,null,null,39,"Accrued Market Discount Amount:",0]
[null,null,null,null,null,39,"Description:","336 DOGECOIN TO US DOLLAR"]
[null,null,null,null,null,39,"Second Notice Indicator:","No Second Notice"]
[null,null,null,null,null,39,"Date Acquired:","00-00-0000"]
[null,null,null,null,null,39,"Noncovered Security Indicator:","Noncovered Security Basis not reported to IRS"]
[null,null,null,null,null,39,"Type of Gain or Loss Code:","Short-term"]
[null,null,null,null,null,39,"Applicable Check Box on Form 8949:","Short term transaction for which the cost or other basis is not being reported to the IRS"]
[null,null,null,null,null,39,"Loss Not Allowed Indicator:"]
[null,null,null,null,null,39,"FATCA Filing Requirement:","Box not checked no Filing Requirement"]
[null,null,null,null,null,39,"Proceeds from:","Box not checked"]
[null,null,null,null,null,39]
[null,null,null,null,null,39,"Form 1099-B Proceeds From Broker and Barter Exchange Transactions"]
[null,null,null,null,null,39]
[null,null,null,null,null,39]
[null,null,null,null,null,39,"Payer:"]
[null,null,null,null,null,39,"Payer's Federal Identification Number (FIN):464364776"]
[null,null,null,null,null,{"$f":"IF(OR(G1609=\"Proceeds:\",G1609=\"Interest:\"),1+F1608,F1608)","v":39},"ROBINHOOD CRYPTO LLC"]
[null,null,null,null,null,39,"85 WILLOW ROAD"]
[null,null,null,null,null,39,"MENLO PARK, CA 94025-0000"]
[null,null,null,null,null,39]
[null,null,null,null,null,39,"Recipient:"]
[null,null,null,null,null,39,"Recipient's Identification Number: 646-04-1329"]
[null,null,null,null,null,39,"NATHAN TUN"]
[null,null,null,null,null,39,"1416 MICHIGAN ST C2"]
[null,null,null,null,null,39,"STORM LAKE, IA 50588-0000"]
[null,null,null,null,null,39]
[null,null,null,null,null,39]
[null,null,null,null,null,39,"Submission Type:","Original document"]
[null,null,null,null,null,39,"Account Number (Optional):",188180209]
[null,null,null,null,null,39,"Date Sold or Disposed:","2021-05-05"]
[null,null,null,null,null,39,"CUSIP Number:","DOGEUSD"]
[null,null,null,null,null,39,"Gross Proceeds:","Net Proceeds"]
[null,null,null,null,null,39,"Bartering:",0]
[null,null,null,null,null,39,"Federal Income Tax Withheld:",0]
[null,null,null,null,null,40,"Proceeds:",163]
[null,null,null,null,null,40,"Aggregate Profit or (Loss):",0]
[null,null,null,null,null,40,"Realized Profit or (Loss):",0]
[null,null,null,null,null,40,"Unrealized Profit or (Loss) 12/31 Prior Year:",0]
[null,null,null,null,null,40,"Unrealized Profit or (Loss) 12/31 Current Year:",0]
[null,null,null,null,null,40,"Cost or Basis:",0]
[null,null,null,null,null,40,"Wash Sale Loss Disallowed:",0]
[null,null,null,null,null,40,"Accrued Market Discount Amount:",0]
[null,null,null,null,null,40,"Description:","241 DOGECOIN TO US DOLLAR"]
[null,null,null,null,null,40,"Second Notice Indicator:","No Second Notice"]
[null,null,null,null,null,40,"Date Acquired:","00-00-0000"]
[null,null,null,null,null,40,"Noncovered Security Indicator:","Noncovered Security Basis not reported to IRS"]
[null,null,null,null,null,40,"Type of Gain or Loss Code:","Short-term"]
[null,null,null,null,null,40,"Applicable Check Box on Form 8949:","Short term transaction for which the cost or other basis is not being reported to the IRS"]
[null,null,null,null,null,40,"Loss Not Allowed Indicator:"]
[null,null,null,null,null,40,"FATCA Filing Requirement:","Box not checked no Filing Requirement"]
[null,null,null,null,null,40,"Proceeds from:","Box not checked"]
[null,null,null,null,null,40]
[null,null,null,null,null,40,"Form 1099-B Proceeds From Broker and Barter Exchange Transactions"]
[null,null,null,null,null,40]
[null,null,null,null,null,40]
[null,null,null,null,null,40,"Payer:"]
[null,null,null,null,null,40,"Payer's Federal Identification Number (FIN):464364776"]
[null,null,null,null,null,40,"ROBINHOOD CRYPTO LLC"]
[null,null,null,null,null,40,"85 WILLOW ROAD"]
[null,null,null,null,null,40,"MENLO PARK, CA 94025-0000"]
[null,null,null,null,null,40]
[null,null,null,null,null,40,"Recipient:"]
[null,null,null,null,null,40,"Recipient's Identification Number: 646-04-1329"]
[null,null,null,null,null,40,"NATHAN TUN"]
[null,null,null,null,null,40,"1416 MICHIGAN ST C2"]
[null,null,null,null,null,40,"STORM LAKE, IA 50588-0000"]
[null,null,null,null,null,40]
[null,null,null,null,null,40]
[null,null,null,null,null,40,"Submission Type:","Original document"]
[null,null,null,null,null,40,"Account Number (Optional):",188180210]
[null,null,null,null,null,40,"Date Sold or Disposed:","2021-05-05"]
[null,null,null,null,null,40,"CUSIP Number:","DOGEUSD"]
[null,null,null,null,null,40,"Gross Proceeds:","Net Proceeds"]
[null,null,null,null,null,40,"Bartering:",0]
[null,null,null,null,null,40,"Federal Income Tax Withheld:",0]
[null,null,null,null,null,41,"Proceeds:",293]
[null,null,null,null,null,41,"Aggregate Profit or (Loss):",0]
[null,null,null,null,null,41,"Realized Profit or (Loss):",0]
[null,null,null,null,null,41,"Unrealized Profit or (Loss) 12/31 Prior Year:",0]
[null,null,null,null,null,41,"Unrealized Profit or (Loss) 12/31 Current Year:",0]
[null,null,null,null,null,{"$f":"IF(OR(G1673=\"Proceeds:\",G1673=\"Interest:\"),1+F1672,F1672)","v":41},"Cost or Basis:",0]
[null,null,null,null,null,41,"Wash Sale Loss Disallowed:",0]
[null,null,null,null,null,41,"Accrued Market Discount Amount:",0]
[null,null,null,null,null,41,"Description:","433 DOGECOIN TO US DOLLAR"]
[null,null,null,null,null,41,"Second Notice Indicator:","No Second Notice"]
[null,null,null,null,null,41,"Date Acquired:","00-00-0000"]
[null,null,null,null,null,41,"Noncovered Security Indicator:","Noncovered Security Basis not reported to IRS"]
[null,null,null,null,null,41,"Type of Gain or Loss Code:","Short-term"]
[null,null,null,null,null,41,"Applicable Check Box on Form 8949:","Short term transaction for which the cost or other basis is not being reported to the IRS"]
[null,null,null,null,null,41,"Loss Not Allowed Indicator:"]
[null,null,null,null,null,41,"FATCA Filing Requirement:","Box not checked no Filing Requirement"]
[null,null,null,null,null,41,"Proceeds from:","Box not checked"]
[null,null,null,null,null,41]
[null,null,null,null,null,41,"Form 1099-B Proceeds From Broker and Barter Exchange Transactions"]
[null,null,null,null,null,41]
[null,null,null,null,null,41]
[null,null,null,null,null,41,"Payer:"]
[null,null,null,null,null,41,"Payer's Federal Identification Number (FIN):464364776"]
[null,null,null,null,null,41,"ROBINHOOD CRYPTO LLC"]
[null,null,null,null,null,41,"85 WILLOW ROAD"]
[null,null,null,null,null,41,"MENLO PARK, CA 94025-0000"]
[null,null,null,null,null,41]
[null,null,null,null,null,41,"Recipient:"]
[null,null,null,null,null,41,"Recipient's Identification Number: 646-04-1329"]
[null,null,null,null,null,41,"NATHAN TUN"]
[null,null,null,null,null,41,"1416 MICHIGAN ST C2"]
[null,null,null,null,null,41,"STORM LAKE, IA 50588-0000"]
[null,null,null,null,null,41]
[null,null,null,null,null,41]
[null,null,null,null,null,41,"Submission Type:","Original document"]
[null,null,null,null,null,41,"Account Number (Optional):",188180211]
[null,null,null,null,null,41,"Date Sold or Disposed:","2021-05-05"]
[null,null,null,null,null,41,"CUSIP Number:","DOGEUSD"]
[null,null,null,null,null,41,"Gross Proceeds:","Net Proceeds"]
[null,null,null,null,null,41,"Bartering:",0]
[null,null,null,null,null,41,"Federal Income Tax Withheld:",0]
[null,null,null,null,null,42,"Proceeds:",367]
[null,null,null,null,null,42,"Aggregate Profit or (Loss):",0]
[null,null,null,null,null,42,"Realized Profit or (Loss):",0]
[null,null,null,null,null,42,"Unrealized Profit or (Loss) 12/31 Prior Year:",0]
[null,null,null,null,null,42,"Unrealized Profit or (Loss) 12/31 Current Year:",0]
[null,null,null,null,null,42,"Cost or Basis:",0]
[null,null,null,null,null,42,"Wash Sale Loss Disallowed:",0]
[null,null,null,null,null,42,"Accrued Market Discount Amount:",0]
[null,null,null,null,null,42,"Description:","624 DOGECOIN TO US DOLLAR"]
[null,null,null,null,null,42,"Second Notice Indicator:","No Second Notice"]
[null,null,null,null,null,42,"Date Acquired:","00-00-0000"]
[null,null,null,null,null,42,"Noncovered Security Indicator:","Noncovered Security Basis not reported to IRS"]
[null,null,null,null,null,42,"Type of Gain or Loss Code:","Short-term"]
[null,null,null,null,null,42,"Applicable Check Box on Form 8949:","Short term transaction for which the cost or other basis is not being reported to the IRS"]
[null,null,null,null,null,42,"Loss Not Allowed Indicator:"]
[null,null,null,null,null,42,"FATCA Filing Requirement:","Box not checked no Filing Requirement"]
[null,null,null,null,null,42,"Proceeds from:","Box not checked"]
[null,null,null,null,null,42]
[null,null,null,null,null,42,"Form 1099-B Proceeds From Broker and Barter Exchange Transactions"]
[null,null,null,null,null,42]
[null,null,null,null,null,42]
[null,null,null,null,null,42,"Payer:"]
[null,null,null,null,null,42,"Payer's Federal Identification Number (FIN):464364776"]
[null,null,null,null,null,42,"ROBINHOOD CRYPTO LLC"]
[null,null,null,null,null,42,"85 WILLOW ROAD"]
[null,null,null,null,null,42,"MENLO PARK, CA 94025-0000"]
[null,null,null,null,null,42]
[null,null,null,null,null,42,"Recipient:"]
[null,null,null,null,null,{"$f":"IF(OR(G1737=\"Proceeds:\",G1737=\"Interest:\"),1+F1736,F1736)","v":42},"Recipient's Identification Number: 646-04-1329"]
[null,null,null,null,null,42,"NATHAN TUN"]
[null,null,null,null,null,42,"1416 MICHIGAN ST C2"]
[null,null,null,null,null,42,"STORM LAKE, IA 50588-0000"]
[null,null,null,null,null,42]
[null,null,null,null,null,42]
[null,null,null,null,null,42,"Submission Type:","Original document"]
[null,null,null,null,null,42,"Account Number (Optional):",188180212]
[null,null,null,null,null,42,"Date Sold or Disposed:","2021-05-18"]
[null,null,null,null,null,42,"CUSIP Number:","DOGEUSD"]
[null,null,null,null,null,42,"Gross Proceeds:","Net Proceeds"]
[null,null,null,null,null,42,"Bartering:",0]
[null,null,null,null,null,42,"Federal Income Tax Withheld:",0]
[null,null,null,null,null,43,"Proceeds:",384]
[null,null,null,null,null,43,"Aggregate Profit or (Loss):",0]
[null,null,null,null,null,43,"Realized Profit or (Loss):",0]
[null,null,null,null,null,43,"Unrealized Profit or (Loss) 12/31 Prior Year:",0]
[null,null,null,null,null,43,"Unrealized Profit or (Loss) 12/31 Current Year:",0]
[null,null,null,null,null,43,"Cost or Basis:",0]
[null,null,null,null,null,43,"Wash Sale Loss Disallowed:",0]
[null,null,null,null,null,43,"Accrued Market Discount Amount:",0]
[null,null,null,null,null,43,"Description:","802 DOGECOIN TO US DOLLAR"]
[null,null,null,null,null,43,"Second Notice Indicator:","No Second Notice"]
[null,null,null,null,null,43,"Date Acquired:","00-00-0000"]
[null,null,null,null,null,43,"Noncovered Security Indicator:","Noncovered Security Basis not reported to IRS"]
[null,null,null,null,null,43,"Type of Gain or Loss Code:","Short-term"]
[null,null,null,null,null,43,"Applicable Check Box on Form 8949:","Short term transaction for which the cost or other basis is not being reported to the IRS"]
[null,null,null,null,null,43,"Loss Not Allowed Indicator:"]
[null,null,null,null,null,43,"FATCA Filing Requirement:","Box not checked no Filing Requirement"]
[null,null,null,null,null,43,"Proceeds from:","Box not checked"]
[null,null,null,null,null,43]
[null,null,null,null,null,43,"Form 1099-B Proceeds From Broker and Barter Exchange Transactions"]
[null,null,null,null,null,43]
[null,null,null,null,null,43]
[null,null,null,null,null,43,"Payer:"]
[null,null,null,null,null,43,"Payer's Federal Identification Number (FIN):464364776"]
[null,null,null,null,null,43,"ROBINHOOD CRYPTO LLC"]
[null,null,null,null,null,43,"85 WILLOW ROAD"]
[null,null,null,null,null,43,"MENLO PARK, CA 94025-0000"]
[null,null,null,null,null,43]
[null,null,null,null,null,43,"Recipient:"]
[null,null,null,null,null,43,"Recipient's Identification Number: 646-04-1329"]
[null,null,null,null,null,43,"NATHAN TUN"]
[null,null,null,null,null,43,"1416 MICHIGAN ST C2"]
[null,null,null,null,null,43,"STORM LAKE, IA 50588-0000"]
[null,null,null,null,null,43]
[null,null,null,null,null,43]
[null,null,null,null,null,43,"Submission Type:","Original document"]
[null,null,null,null,null,43,"Account Number (Optional):",188180213]
[null,null,null,null,null,43,"Date Sold or Disposed:","2021-05-18"]
[null,null,null,null,null,43,"CUSIP Number:","DOGEUSD"]
[null,null,null,null,null,43,"Gross Proceeds:","Net Proceeds"]
[null,null,null,null,null,43,"Bartering:",0]
[null,null,null,null,null,43,"Federal Income Tax Withheld:",0]
[null,null,null,null,null,44,"Proceeds:",141]
[null,null,null,null,null,44,"Aggregate Profit or (Loss):",0]
[null,null,null,null,null,44,"Realized Profit or (Loss):",0]
[null,null,null,null,null,44,"Unrealized Profit or (Loss) 12/31 Prior Year:",0]
[null,null,null,null,null,44,"Unrealized Profit or (Loss) 12/31 Current Year:",0]
[null,null,null,null,null,44,"Cost or Basis:",0]
[null,null,null,null,null,44,"Wash Sale Loss Disallowed:",0]
[null,null,null,null,null,44,"Accrued Market Discount Amount:",0]
[null,null,null,null,null,44,"Description:","294.56 DOGECOIN TO US DOLLAR"]
[null,null,null,null,null,44,"Second Notice Indicator:","No Second Notice"]
[null,null,null,null,null,{"$f":"IF(OR(G1801=\"Proceeds:\",G1801=\"Interest:\"),1+F1800,F1800)","v":44},"Date Acquired:","00-00-0000"]
[null,null,null,null,null,44,"Noncovered Security Indicator:","Noncovered Security Basis not reported to IRS"]
[null,null,null,null,null,44,"Type of Gain or Loss Code:","Short-term"]
[null,null,null,null,null,44,"Applicable Check Box on Form 8949:","Short term transaction for which the cost or other basis is not being reported to the IRS"]
[null,null,null,null,null,44,"Loss Not Allowed Indicator:"]
[null,null,null,null,null,44,"FATCA Filing Requirement:","Box not checked no Filing Requirement"]
[null,null,null,null,null,44,"Proceeds from:","Box not checked"]
[null,null,null,null,null,44]
[null,null,null,null,null,44,"Form 1099-B Proceeds From Broker and Barter Exchange Transactions"]
[null,null,null,null,null,44]
[null,null,null,null,null,44]
[null,null,null,null,null,44,"Payer:"]
[null,null,null,null,null,44,"Payer's Federal Identification Number (FIN):464364776"]
[null,null,null,null,null,44,"ROBINHOOD CRYPTO LLC"]
[null,null,null,null,null,44,"85 WILLOW ROAD"]
[null,null,null,null,null,44,"MENLO PARK, CA 94025-0000"]
[null,null,null,null,null,44]
[null,null,null,null,null,44,"Recipient:"]
[null,null,null,null,null,44,"Recipient's Identification Number: 646-04-1329"]
[null,null,null,null,null,44,"NATHAN TUN"]
[null,null,null,null,null,44,"1416 MICHIGAN ST C2"]
[null,null,null,null,null,44,"STORM LAKE, IA 50588-0000"]
[null,null,null,null,null,44]
[null,null,null,null,null,44]
[null,null,null,null,null,44,"Submission Type:","Original document"]
[null,null,null,null,null,44,"Account Number (Optional):",188180214]
[null,null,null,null,null,44,"Date Sold or Disposed:","2021-05-18"]
[null,null,null,null,null,44,"CUSIP Number:","DOGEUSD"]
[null,null,null,null,null,44,"Gross Proceeds:","Net Proceeds"]
[null,null,null,null,null,44,"Bartering:",0]
[null,null,null,null,null,44,"Federal Income Tax Withheld:",0]
[null,null,null,null,null,45,"Proceeds:",231]
[null,null,null,null,null,45,"Aggregate Profit or (Loss):",0]
[null,null,null,null,null,45,"Realized Profit or (Loss):",0]
[null,null,null,null,null,45,"Unrealized Profit or (Loss) 12/31 Prior Year:",0]
[null,null,null,null,null,45,"Unrealized Profit or (Loss) 12/31 Current Year:",0]
[null,null,null,null,null,45,"Cost or Basis:",0]
[null,null,null,null,null,45,"Wash Sale Loss Disallowed:",0]
[null,null,null,null,null,45,"Accrued Market Discount Amount:",0]
[null,null,null,null,null,45,"Description:","484.27 DOGECOIN TO US DOLLAR"]
[null,null,null,null,null,45,"Second Notice Indicator:","No Second Notice"]
[null,null,null,null,null,45,"Date Acquired:","00-00-0000"]
[null,null,null,null,null,45,"Noncovered Security Indicator:","Noncovered Security Basis not reported to IRS"]
[null,null,null,null,null,45,"Type of Gain or Loss Code:","Short-term"]
[null,null,null,null,null,45,"Applicable Check Box on Form 8949:","Short term transaction for which the cost or other basis is not being reported to the IRS"]
[null,null,null,null,null,45,"Loss Not Allowed Indicator:"]
[null,null,null,null,null,45,"FATCA Filing Requirement:","Box not checked no Filing Requirement"]
[null,null,null,null,null,45,"Proceeds from:","Box not checked"]
[null,null,null,null,null,45]
[null,null,null,null,null,45,"Form 1099-B Proceeds From Broker and Barter Exchange Transactions"]
[null,null,null,null,null,45]
[null,null,null,null,null,45]
[null,null,null,null,null,45,"Payer:"]
[null,null,null,null,null,45,"Payer's Federal Identification Number (FIN):464364776"]
[null,null,null,null,null,45,"ROBINHOOD CRYPTO LLC"]
[null,null,null,null,null,45,"85 WILLOW ROAD"]
[null,null,null,null,null,45,"MENLO PARK, CA 94025-0000"]
[null,null,null,null,null,45]
[null,null,null,null,null,45,"Recipient:"]
[null,null,null,null,null,45,"Recipient's Identification Number: 646-04-1329"]
[null,null,null,null,null,45,"NATHAN TUN"]
[null,null,null,null,null,45,"1416 MICHIGAN ST C2"]
[null,null,null,null,null,45,"STORM LAKE, IA 50588-0000"]
[null,null,null,null,null,45]
[null,null,null,null,null,{"$f":"IF(OR(G1865=\"Proceeds:\",G1865=\"Interest:\"),1+F1864,F1864)","v":45}]
[null,null,null,null,null,45,"Submission Type:","Original document"]
[null,null,null,null,null,45,"Account Number (Optional):",188180215]
[null,null,null,null,null,45,"Date Sold or Disposed:","2021-06-09"]
[null,null,null,null,null,45,"CUSIP Number:","DOGEUSD"]
[null,null,null,null,null,45,"Gross Proceeds:","Net Proceeds"]
[null,null,null,null,null,45,"Bartering:",0]
[null,null,null,null,null,45,"Federal Income Tax Withheld:",0]
[null,null,null,null,null,46,"Proceeds:",37]
[null,null,null,null,null,46,"Aggregate Profit or (Loss):",0]
[null,null,null,null,null,46,"Realized Profit or (Loss):",0]
[null,null,null,null,null,46,"Unrealized Profit or (Loss) 12/31 Prior Year:",0]
[null,null,null,null,null,46,"Unrealized Profit or (Loss) 12/31 Current Year:",0]
[null,null,null,null,null,46,"Cost or Basis:",0]
[null,null,null,null,null,46,"Wash Sale Loss Disallowed:",0]
[null,null,null,null,null,46,"Accrued Market Discount Amount:",0]
[null,null,null,null,null,46,"Description:","115.35 DOGECOIN TO US DOLLAR"]
[null,null,null,null,null,46,"Second Notice Indicator:","No Second Notice"]
[null,null,null,null,null,46,"Date Acquired:","00-00-0000"]
[null,null,null,null,null,46,"Noncovered Security Indicator:","Noncovered Security Basis not reported to IRS"]
[null,null,null,null,null,46,"Type of Gain or Loss Code:","Short-term"]
[null,null,null,null,null,46,"Applicable Check Box on Form 8949:","Short term transaction for which the cost or other basis is not being reported to the IRS"]
[null,null,null,null,null,46,"Loss Not Allowed Indicator:"]
[null,null,null,null,null,46,"FATCA Filing Requirement:","Box not checked no Filing Requirement"]
[null,null,null,null,null,46,"Proceeds from:","Box not checked"]
[null,null,null,null,null,46]
[null,null,null,null,null,46,"Form 1099-B Proceeds From Broker and Barter Exchange Transactions"]
[null,null,null,null,null,46]
[null,null,null,null,null,46]
[null,null,null,null,null,46,"Payer:"]
[null,null,null,null,null,46,"Payer's Federal Identification Number (FIN):464364776"]
[null,null,null,null,null,46,"ROBINHOOD CRYPTO LLC"]
[null,null,null,null,null,46,"85 WILLOW ROAD"]
[null,null,null,null,null,46,"MENLO PARK, CA 94025-0000"]
[null,null,null,null,null,46]
[null,null,null,null,null,46,"Recipient:"]
[null,null,null,null,null,46,"Recipient's Identification Number: 646-04-1329"]
[null,null,null,null,null,46,"NATHAN TUN"]
[null,null,null,null,null,46,"1416 MICHIGAN ST C2"]
[null,null,null,null,null,46,"STORM LAKE, IA 50588-0000"]
[null,null,null,null,null,46]
[null,null,null,null,null,46]
[null,null,null,null,null,46,"Submission Type:","Original document"]
[null,null,null,null,null,46,"Account Number (Optional):",188180216]
[null,null,null,null,null,46,"Date Sold or Disposed:","2021-05-03"]
[null,null,null,null,null,46,"CUSIP Number:","ETCUSD"]
[null,null,null,null,null,46,"Gross Proceeds:","Net Proceeds"]
[null,null,null,null,null,46,"Bartering:",0]
[null,null,null,null,null,46,"Federal Income Tax Withheld:",0]
[null,null,null,null,null,47,"Proceeds:",5]
[null,null,null,null,null,47,"Aggregate Profit or (Loss):",0]
[null,null,null,null,null,47,"Realized Profit or (Loss):",0]
[null,null,null,null,null,47,"Unrealized Profit or (Loss) 12/31 Prior Year:",0]
[null,null,null,null,null,47,"Unrealized Profit or (Loss) 12/31 Current Year:",0]
[null,null,null,null,null,47,"Cost or Basis:",0]
[null,null,null,null,null,47,"Wash Sale Loss Disallowed:",0]
[null,null,null,null,null,47,"Accrued Market Discount Amount:",0]
[null,null,null,null,null,47,"Description:","0.098217 ETHEREUM CLASSIC TO US DOLLAR"]
[null,null,null,null,null,47,"Second Notice Indicator:","No Second Notice"]
[null,null,null,null,null,47,"Date Acquired:","00-00-0000"]
[null,null,null,null,null,47,"Noncovered Security Indicator:","Noncovered Security Basis not reported to IRS"]
[null,null,null,null,null,47,"Type of Gain or Loss Code:","Short-term"]
[null,null,null,null,null,47,"Applicable Check Box on Form 8949:","Short term transaction for which the cost or other basis is not being reported to the IRS"]
[null,null,null,null,null,47,"Loss Not Allowed Indicator:"]
[null,null,null,null,null,{"$f":"IF(OR(G1929=\"Proceeds:\",G1929=\"Interest:\"),1+F1928,F1928)","v":47},"FATCA Filing Requirement:","Box not checked no Filing Requirement"]
[null,null,null,null,null,47,"Proceeds from:","Box not checked"]
[null,null,null,null,null,47]
[null,null,null,null,null,47,"Form 1099-B Proceeds From Broker and Barter Exchange Transactions"]
[null,null,null,null,null,47]
[null,null,null,null,null,47]
[null,null,null,null,null,47,"Payer:"]
[null,null,null,null,null,47,"Payer's Federal Identification Number (FIN):464364776"]
[null,null,null,null,null,47,"ROBINHOOD CRYPTO LLC"]
[null,null,null,null,null,47,"85 WILLOW ROAD"]
[null,null,null,null,null,47,"MENLO PARK, CA 94025-0000"]
[null,null,null,null,null,47]
[null,null,null,null,null,47,"Recipient:"]
[null,null,null,null,null,47,"Recipient's Identification Number: 646-04-1329"]
[null,null,null,null,null,47,"NATHAN TUN"]
[null,null,null,null,null,47,"1416 MICHIGAN ST C2"]
[null,null,null,null,null,47,"STORM LAKE, IA 50588-0000"]
[null,null,null,null,null,47]
[null,null,null,null,null,47]
[null,null,null,null,null,47,"Submission Type:","Original document"]
[null,null,null,null,null,47,"Account Number (Optional):",188180217]
[null,null,null,null,null,47,"Date Sold or Disposed:","2021-05-03"]
[null,null,null,null,null,47,"CUSIP Number:","ETCUSD"]
[null,null,null,null,null,47,"Gross Proceeds:","Net Proceeds"]
[null,null,null,null,null,47,"Bartering:",0]
[null,null,null,null,null,47,"Federal Income Tax Withheld:",0]
[null,null,null,null,null,48,"Proceeds:",275]
[null,null,null,null,null,48,"Aggregate Profit or (Loss):",0]
[null,null,null,null,null,48,"Realized Profit or (Loss):",0]
[null,null,null,null,null,48,"Unrealized Profit or (Loss) 12/31 Prior Year:",0]
[null,null,null,null,null,48,"Unrealized Profit or (Loss) 12/31 Current Year:",0]
[null,null,null,null,null,48,"Cost or Basis:",0]
[null,null,null,null,null,48,"Wash Sale Loss Disallowed:",0]
[null,null,null,null,null,48,"Accrued Market Discount Amount:",0]
[null,null,null,null,null,48,"Description:","5.150000 ETHEREUM CLASSIC TO US DOLLAR"]
[null,null,null,null,null,48,"Second Notice Indicator:","No Second Notice"]
[null,null,null,null,null,48,"Date Acquired:","00-00-0000"]
[null,null,null,null,null,48,"Noncovered Security Indicator:","Noncovered Security Basis not reported to IRS"]
[null,null,null,null,null,48,"Type of Gain or Loss Code:","Short-term"]
[null,null,null,null,null,48,"Applicable Check Box on Form 8949:","Short term transaction for which the cost or other basis is not being reported to the IRS"]
[null,null,null,null,null,48,"Loss Not Allowed Indicator:"]
[null,null,null,null,null,48,"FATCA Filing Requirement:","Box not checked no Filing Requirement"]
[null,null,null,null,null,48,"Proceeds from:","Box not checked"]
[null,null,null,null,null,48]
[null,null,null,null,null,48,"Form 1099-B Proceeds From Broker and Barter Exchange Transactions"]
[null,null,null,null,null,48]
[null,null,null,null,null,48]
[null,null,null,null,null,48,"Payer:"]
[null,null,null,null,null,48,"Payer's Federal Identification Number (FIN):464364776"]
[null,null,null,null,null,48,"ROBINHOOD CRYPTO LLC"]
[null,null,null,null,null,48,"85 WILLOW ROAD"]
[null,null,null,null,null,48,"MENLO PARK, CA 94025-0000"]
[null,null,null,null,null,48]
[null,null,null,null,null,48,"Recipient:"]
[null,null,null,null,null,48,"Recipient's Identification Number: 646-04-1329"]
[null,null,null,null,null,48,"NATHAN TUN"]
[null,null,null,null,null,48,"1416 MICHIGAN ST C2"]
[null,null,null,null,null,48,"STORM LAKE, IA 50588-0000"]
[null,null,null,null,null,48]
[null,null,null,null,null,48]
[null,null,null,null,null,48,"Submission Type:","Original document"]
[null,null,null,null,null,48,"Account Number (Optional):",188180218]
[null,null,null,null,null,48,"Date Sold or Disposed:","2021-05-04"]
[null,null,null,null,null,48,"CUSIP Number:","ETCUSD"]
[null,null,null,null,null,{"$f":"IF(OR(G1993=\"Proceeds:\",G1993=\"Interest:\"),1+F1992,F1992)","v":48},"Gross Proceeds:","Net Proceeds"]
[null,null,null,null,null,48,"Bartering:",0]
[null,null,null,null,null,48,"Federal Income Tax Withheld:",0]
[null,null,null,null,null,49,"Proceeds:",86]
[null,null,null,null,null,49,"Aggregate Profit or (Loss):",0]
[null,null,null,null,null,49,"Realized Profit or (Loss):",0]
[null,null,null,null,null,49,"Unrealized Profit or (Loss) 12/31 Prior Year:",0]
[null,null,null,null,null,49,"Unrealized Profit or (Loss) 12/31 Current Year:",0]
[null,null,null,null,null,49,"Cost or Basis:",0]
[null,null,null,null,null,49,"Wash Sale Loss Disallowed:",0]
[null,null,null,null,null,49,"Accrued Market Discount Amount:",0]
[null,null,null,null,null,49,"Description:","1.202132 ETHEREUM CLASSIC TO US DOLLAR"]
[null,null,null,null,null,49,"Second Notice Indicator:","No Second Notice"]
[null,null,null,null,null,49,"Date Acquired:","00-00-0000"]
[null,null,null,null,null,49,"Noncovered Security Indicator:","Noncovered Security Basis not reported to IRS"]
[null,null,null,null,null,49,"Type of Gain or Loss Code:","Short-term"]
[null,null,null,null,null,49,"Applicable Check Box on Form 8949:","Short term transaction for which the cost or other basis is not being reported to the IRS"]
[null,null,null,null,null,49,"Loss Not Allowed Indicator:"]
[null,null,null,null,null,49,"FATCA Filing Requirement:","Box not checked no Filing Requirement"]
[null,null,null,null,null,49,"Proceeds from:","Box not checked"]
[null,null,null,null,null,49]
[null,null,null,null,null,49,"Form 1099-B Proceeds From Broker and Barter Exchange Transactions"]
[null,null,null,null,null,49]
[null,null,null,null,null,49]
[null,null,null,null,null,49,"Payer:"]
[null,null,null,null,null,49,"Payer's Federal Identification Number (FIN):464364776"]
[null,null,null,null,null,49,"ROBINHOOD CRYPTO LLC"]
[null,null,null,null,null,49,"85 WILLOW ROAD"]
[null,null,null,null,null,49,"MENLO PARK, CA 94025-0000"]
[null,null,null,null,null,49]
[null,null,null,null,null,49,"Recipient:"]
[null,null,null,null,null,49,"Recipient's Identification Number: 646-04-1329"]
[null,null,null,null,null,49,"NATHAN TUN"]
[null,null,null,null,null,49,"1416 MICHIGAN ST C2"]
[null,null,null,null,null,49,"STORM LAKE, IA 50588-0000"]
[null,null,null,null,null,49]
[null,null,null,null,null,49]
[null,null,null,null,null,49,"Submission Type:","Original document"]
[null,null,null,null,null,49,"Account Number (Optional):",188180219]
[null,null,null,null,null,49,"Date Sold or Disposed:","2021-05-04"]
[null,null,null,null,null,49,"CUSIP Number:","ETCUSD"]
[null,null,null,null,null,49,"Gross Proceeds:","Net Proceeds"]
[null,null,null,null,null,49,"Bartering:",0]
[null,null,null,null,null,49,"Federal Income Tax Withheld:",0]
[null,null,null,null,null,50,"Proceeds:",249]
[null,null,null,null,null,50,"Aggregate Profit or (Loss):",0]
[null,null,null,null,null,50,"Realized Profit or (Loss):",0]
[null,null,null,null,null,50,"Unrealized Profit or (Loss) 12/31 Prior Year:",0]
[null,null,null,null,null,50,"Unrealized Profit or (Loss) 12/31 Current Year:",0]
[null,null,null,null,null,50,"Cost or Basis:",0]
[null,null,null,null,null,50,"Wash Sale Loss Disallowed:",0]
[null,null,null,null,null,50,"Accrued Market Discount Amount:",0]
[null,null,null,null,null,50,"Description:","3.998088 ETHEREUM CLASSIC TO US DOLLAR"]
[null,null,null,null,null,50,"Second Notice Indicator:","No Second Notice"]
[null,null,null,null,null,50,"Date Acquired:","00-00-0000"]
[null,null,null,null,null,50,"Noncovered Security Indicator:","Noncovered Security Basis not reported to IRS"]
[null,null,null,null,null,50,"Type of Gain or Loss Code:","Short-term"]
[null,null,null,null,null,50,"Applicable Check Box on Form 8949:","Short term transaction for which the cost or other basis is not being reported to the IRS"]
[null,null,null,null,null,50,"Loss Not Allowed Indicator:"]
[null,null,null,null,null,50,"FATCA Filing Requirement:","Box not checked no Filing Requirement"]
[null,null,null,null,null,50,"Proceeds from:","Box not checked"]
[null,null,null,null,null,50]
[null,null,null,null,null,50,"Form 1099-B Proceeds From Broker and Barter Exchange Transactions"]
[null,null,null,null,null,50]
[null,null,null,null,null,{"$f":"IF(OR(G2057=\"Proceeds:\",G2057=\"Interest:\"),1+F2056,F2056)","v":50}]
[null,null,null,null,null,50,"Payer:"]
[null,null,null,null,null,50,"Payer's Federal Identification Number (FIN):464364776"]
[null,null,null,null,null,50,"ROBINHOOD CRYPTO LLC"]
[null,null,null,null,null,50,"85 WILLOW ROAD"]
[null,null,null,null,null,50,"MENLO PARK, CA 94025-0000"]
[null,null,null,null,null,50]
[null,null,null,null,null,50,"Recipient:"]
[null,null,null,null,null,50,"Recipient's Identification Number: 646-04-1329"]
[null,null,null,null,null,50,"NATHAN TUN"]
[null,null,null,null,null,50,"1416 MICHIGAN ST C2"]
[null,null,null,null,null,50,"STORM LAKE, IA 50588-0000"]
[null,null,null,null,null,50]
[null,null,null,null,null,50]
[null,null,null,null,null,50,"Submission Type:","Original document"]
[null,null,null,null,null,50,"Account Number (Optional):",188180220]
[null,null,null,null,null,50,"Date Sold or Disposed:","2021-05-05"]
[null,null,null,null,null,50,"CUSIP Number:","ETCUSD"]
[null,null,null,null,null,50,"Gross Proceeds:","Net Proceeds"]
[null,null,null,null,null,50,"Bartering:",0]
[null,null,null,null,null,50,"Federal Income Tax Withheld:",0]
[null,null,null,null,null,51,"Proceeds:",427]
[null,null,null,null,null,51,"Aggregate Profit or (Loss):",0]
[null,null,null,null,null,51,"Realized Profit or (Loss):",0]
[null,null,null,null,null,51,"Unrealized Profit or (Loss) 12/31 Prior Year:",0]
[null,null,null,null,null,51,"Unrealized Profit or (Loss) 12/31 Current Year:",0]
[null,null,null,null,null,51,"Cost or Basis:",0]
[null,null,null,null,null,51,"Wash Sale Loss Disallowed:",0]
[null,null,null,null,null,51,"Accrued Market Discount Amount:",0]
[null,null,null,null,null,51,"Description:","5.000000 ETHEREUM CLASSIC TO US DOLLAR"]
[null,null,null,null,null,51,"Second Notice Indicator:","No Second Notice"]
[null,null,null,null,null,51,"Date Acquired:","00-00-0000"]
[null,null,null,null,null,51,"Noncovered Security Indicator:","Noncovered Security Basis not reported to IRS"]
[null,null,null,null,null,51,"Type of Gain or Loss Code:","Short-term"]
[null,null,null,null,null,51,"Applicable Check Box on Form 8949:","Short term transaction for which the cost or other basis is not being reported to the IRS"]
[null,null,null,null,null,51,"Loss Not Allowed Indicator:"]
[null,null,null,null,null,51,"FATCA Filing Requirement:","Box not checked no Filing Requirement"]
[null,null,null,null,null,51,"Proceeds from:","Box not checked"]
[null,null,null,null,null,51]
[null,null,null,null,null,51,"Form 1099-B Proceeds From Broker and Barter Exchange Transactions"]
[null,null,null,null,null,51]
[null,null,null,null,null,51]
[null,null,null,null,null,51,"Payer:"]
[null,null,null,null,null,51,"Payer's Federal Identification Number (FIN):464364776"]
[null,null,null,null,null,51,"ROBINHOOD CRYPTO LLC"]
[null,null,null,null,null,51,"85 WILLOW ROAD"]
[null,null,null,null,null,51,"MENLO PARK, CA 94025-0000"]
[null,null,null,null,null,51]
[null,null,null,null,null,51,"Recipient:"]
[null,null,null,null,null,51,"Recipient's Identification Number: 646-04-1329"]
[null,null,null,null,null,51,"NATHAN TUN"]
[null,null,null,null,null,51,"1416 MICHIGAN ST C2"]
[null,null,null,null,null,51,"STORM LAKE, IA 50588-0000"]
[null,null,null,null,null,51]
[null,null,null,null,null,51]
[null,null,null,null,null,51,"Submission Type:","Original document"]
[null,null,null,null,null,51,"Account Number (Optional):",188180221]
[null,null,null,null,null,51,"Date Sold or Disposed:","2021-05-05"]
[null,null,null,null,null,51,"CUSIP Number:","ETCUSD"]
[null,null,null,null,null,51,"Gross Proceeds:","Net Proceeds"]
[null,null,null,null,null,51,"Bartering:",0]
[null,null,null,null,null,51,"Federal Income Tax Withheld:",0]
[null,null,null,null,null,52,"Proceeds:",14]
[null,null,null,null,null,52,"Aggregate Profit or (Loss):",0]
[null,null,null,null,null,{"$f":"IF(OR(G2121=\"Proceeds:\",G2121=\"Interest:\"),1+F2120,F2120)","v":52},"Realized Profit or (Loss):",0]
[null,null,null,null,null,52,"Unrealized Profit or (Loss) 12/31 Prior Year:",0]
[null,null,null,null,null,52,"Unrealized Profit or (Loss) 12/31 Current Year:",0]
[null,null,null,null,null,52,"Cost or Basis:",0]
[null,null,null,null,null,52,"Wash Sale Loss Disallowed:",0]
[null,null,null,null,null,52,"Accrued Market Discount Amount:",0]
[null,null,null,null,null,52,"Description:","0.180177 ETHEREUM CLASSIC TO US DOLLAR"]
[null,null,null,null,null,52,"Second Notice Indicator:","No Second Notice"]
[null,null,null,null,null,52,"Date Acquired:","00-00-0000"]
[null,null,null,null,null,52,"Noncovered Security Indicator:","Noncovered Security Basis not reported to IRS"]
[null,null,null,null,null,52,"Type of Gain or Loss Code:","Short-term"]
[null,null,null,null,null,52,"Applicable Check Box on Form 8949:","Short term transaction for which the cost or other basis is not being reported to the IRS"]
[null,null,null,null,null,52,"Loss Not Allowed Indicator:"]
[null,null,null,null,null,52,"FATCA Filing Requirement:","Box not checked no Filing Requirement"]
[null,null,null,null,null,52,"Proceeds from:","Box not checked"]
[null,null,null,null,null,52]
[null,null,null,null,null,52,"Form 1099-B Proceeds From Broker and Barter Exchange Transactions"]
[null,null,null,null,null,52]
[null,null,null,null,null,52]
[null,null,null,null,null,52,"Payer:"]
[null,null,null,null,null,52,"Payer's Federal Identification Number (FIN):464364776"]
[null,null,null,null,null,52,"ROBINHOOD CRYPTO LLC"]
[null,null,null,null,null,52,"85 WILLOW ROAD"]
[null,null,null,null,null,52,"MENLO PARK, CA 94025-0000"]
[null,null,null,null,null,52]
[null,null,null,null,null,52,"Recipient:"]
[null,null,null,null,null,52,"Recipient's Identification Number: 646-04-1329"]
[null,null,null,null,null,52,"NATHAN TUN"]
[null,null,null,null,null,52,"1416 MICHIGAN ST C2"]
[null,null,null,null,null,52,"STORM LAKE, IA 50588-0000"]
[null,null,null,null,null,52]
[null,null,null,null,null,52]
[null,null,null,null,null,52,"Submission Type:","Original document"]
[null,null,null,null,null,52,"Account Number (Optional):",188180223]
[null,null,null,null,null,52,"Date Sold or Disposed:","2021-05-05"]
[null,null,null,null,null,52,"CUSIP Number:","ETCUSD"]
[null,null,null,null,null,52,"Gross Proceeds:","Net Proceeds"]
[null,null,null,null,null,52,"Bartering:",0]
[null,null,null,null,null,52,"Federal Income Tax Withheld:",0]
[null,null,null,null,null,53,"Proceeds:",62]
[null,null,null,null,null,53,"Aggregate Profit or (Loss):",0]
[null,null,null,null,null,53,"Realized Profit or (Loss):",0]
[null,null,null,null,null,53,"Unrealized Profit or (Loss) 12/31 Prior Year:",0]
[null,null,null,null,null,53,"Unrealized Profit or (Loss) 12/31 Current Year:",0]
[null,null,null,null,null,53,"Cost or Basis:",0]
[null,null,null,null,null,53,"Wash Sale Loss Disallowed:",0]
[null,null,null,null,null,53,"Accrued Market Discount Amount:",0]
[null,null,null,null,null,53,"Description:","0.648932 ETHEREUM CLASSIC TO US DOLLAR"]
[null,null,null,null,null,53,"Second Notice Indicator:","No Second Notice"]
[null,null,null,null,null,53,"Date Acquired:","00-00-0000"]
[null,null,null,null,null,53,"Noncovered Security Indicator:","Noncovered Security Basis not reported to IRS"]
[null,null,null,null,null,53,"Type of Gain or Loss Code:","Short-term"]
[null,null,null,null,null,53,"Applicable Check Box on Form 8949:","Short term transaction for which the cost or other basis is not being reported to the IRS"]
[null,null,null,null,null,53,"Loss Not Allowed Indicator:"]
[null,null,null,null,null,53,"FATCA Filing Requirement:","Box not checked no Filing Requirement"]
[null,null,null,null,null,53,"Proceeds from:","Box not checked"]
[null,null,null,null,null,53]
[null,null,null,null,null,53,"Form 1099-B Proceeds From Broker and Barter Exchange Transactions"]
[null,null,null,null,null,53]
[null,null,null,null,null,53]
[null,null,null,null,null,53,"Payer:"]
[null,null,null,null,null,53,"Payer's Federal Identification Number (FIN):464364776"]
[null,null,null,null,null,53,"ROBINHOOD CRYPTO LLC"]
[null,null,null,null,null,53,"85 WILLOW ROAD"]
[null,null,null,null,null,{"$f":"IF(OR(G2185=\"Proceeds:\",G2185=\"Interest:\"),1+F2184,F2184)","v":53},"MENLO PARK, CA 94025-0000"]
[null,null,null,null,null,53]
[null,null,null,null,null,53,"Recipient:"]
[null,null,null,null,null,53,"Recipient's Identification Number: 646-04-1329"]
[null,null,null,null,null,53,"NATHAN TUN"]
[null,null,null,null,null,53,"1416 MICHIGAN ST C2"]
[null,null,null,null,null,53,"STORM LAKE, IA 50588-0000"]
[null,null,null,null,null,53]
[null,null,null,null,null,53]
[null,null,null,null,null,53,"Submission Type:","Original document"]
[null,null,null,null,null,53,"Account Number (Optional):",188180224]
[null,null,null,null,null,53,"Date Sold or Disposed:","2021-05-05"]
[null,null,null,null,null,53,"CUSIP Number:","ETCUSD"]
[null,null,null,null,null,53,"Gross Proceeds:","Net Proceeds"]
[null,null,null,null,null,53,"Bartering:",0]
[null,null,null,null,null,53,"Federal Income Tax Withheld:",0]
[null,null,null,null,null,54,"Proceeds:",387]
[null,null,null,null,null,54,"Aggregate Profit or (Loss):",0]
[null,null,null,null,null,54,"Realized Profit or (Loss):",0]
[null,null,null,null,null,54,"Unrealized Profit or (Loss) 12/31 Prior Year:",0]
[null,null,null,null,null,54,"Unrealized Profit or (Loss) 12/31 Current Year:",0]
[null,null,null,null,null,54,"Cost or Basis:",0]
[null,null,null,null,null,54,"Wash Sale Loss Disallowed:",0]
[null,null,null,null,null,54,"Accrued Market Discount Amount:",0]
[null,null,null,null,null,54,"Description:","4.050316 ETHEREUM CLASSIC TO US DOLLAR"]
[null,null,null,null,null,54,"Second Notice Indicator:","No Second Notice"]
[null,null,null,null,null,54,"Date Acquired:","00-00-0000"]
[null,null,null,null,null,54,"Noncovered Security Indicator:","Noncovered Security Basis not reported to IRS"]
[null,null,null,null,null,54,"Type of Gain or Loss Code:","Short-term"]
[null,null,null,null,null,54,"Applicable Check Box on Form 8949:","Short term transaction for which the cost or other basis is not being reported to the IRS"]
[null,null,null,null,null,54,"Loss Not Allowed Indicator:"]
[null,null,null,null,null,54,"FATCA Filing Requirement:","Box not checked no Filing Requirement"]
[null,null,null,null,null,54,"Proceeds from:","Box not checked"]
[null,null,null,null,null,54]
[null,null,null,null,null,54,"Form 1099-B Proceeds From Broker and Barter Exchange Transactions"]
[null,null,null,null,null,54]
[null,null,null,null,null,54]
[null,null,null,null,null,54,"Payer:"]
[null,null,null,null,null,54,"Payer's Federal Identification Number (FIN):464364776"]
[null,null,null,null,null,54,"ROBINHOOD CRYPTO LLC"]
[null,null,null,null,null,54,"85 WILLOW ROAD"]
[null,null,null,null,null,54,"MENLO PARK, CA 94025-0000"]
[null,null,null,null,null,54]
[null,null,null,null,null,54,"Recipient:"]
[null,null,null,null,null,54,"Recipient's Identification Number: 646-04-1329"]
[null,null,null,null,null,54,"NATHAN TUN"]
[null,null,null,null,null,54,"1416 MICHIGAN ST C2"]
[null,null,null,null,null,54,"STORM LAKE, IA 50588-0000"]
[null,null,null,null,null,54]
[null,null,null,null,null,54]
[null,null,null,null,null,54,"Submission Type:","Original document"]
[null,null,null,null,null,54,"Account Number (Optional):",188180225]
[null,null,null,null,null,54,"Date Sold or Disposed:","2021-05-06"]
[null,null,null,null,null,54,"CUSIP Number:","ETCUSD"]
[null,null,null,null,null,54,"Gross Proceeds:","Net Proceeds"]
[null,null,null,null,null,54,"Bartering:",0]
[null,null,null,null,null,54,"Federal Income Tax Withheld:",0]
[null,null,null,null,null,55,"Proceeds:",399]
[null,null,null,null,null,55,"Aggregate Profit or (Loss):",0]
[null,null,null,null,null,55,"Realized Profit or (Loss):",0]
[null,null,null,null,null,55,"Unrealized Profit or (Loss) 12/31 Prior Year:",0]
[null,null,null,null,null,55,"Unrealized Profit or (Loss) 12/31 Current Year:",0]
[null,null,null,null,null,55,"Cost or Basis:",0]
[null,null,null,null,null,55,"Wash Sale Loss Disallowed:",0]
[null,null,null,null,null,{"$f":"IF(OR(G2249=\"Proceeds:\",G2249=\"Interest:\"),1+F2248,F2248)","v":55},"Accrued Market Discount Amount:",0]
[null,null,null,null,null,55,"Description:","4.072565 ETHEREUM CLASSIC TO US DOLLAR"]
[null,null,null,null,null,55,"Second Notice Indicator:","No Second Notice"]
[null,null,null,null,null,55,"Date Acquired:","00-00-0000"]
[null,null,null,null,null,55,"Noncovered Security Indicator:","Noncovered Security Basis not reported to IRS"]
[null,null,null,null,null,55,"Type of Gain or Loss Code:","Short-term"]
[null,null,null,null,null,55,"Applicable Check Box on Form 8949:","Short term transaction for which the cost or other basis is not being reported to the IRS"]
[null,null,null,null,null,55,"Loss Not Allowed Indicator:"]
[null,null,null,null,null,55,"FATCA Filing Requirement:","Box not checked no Filing Requirement"]
[null,null,null,null,null,55,"Proceeds from:","Box not checked"]
[null,null,null,null,null,55]
[null,null,null,null,null,55,"Form 1099-B Proceeds From Broker and Barter Exchange Transactions"]
[null,null,null,null,null,55]
[null,null,null,null,null,55]
[null,null,null,null,null,55,"Payer:"]
[null,null,null,null,null,55,"Payer's Federal Identification Number (FIN):464364776"]
[null,null,null,null,null,55,"ROBINHOOD CRYPTO LLC"]
[null,null,null,null,null,55,"85 WILLOW ROAD"]
[null,null,null,null,null,55,"MENLO PARK, CA 94025-0000"]
[null,null,null,null,null,55]
[null,null,null,null,null,55,"Recipient:"]
[null,null,null,null,null,55,"Recipient's Identification Number: 646-04-1329"]
[null,null,null,null,null,55,"NATHAN TUN"]
[null,null,null,null,null,55,"1416 MICHIGAN ST C2"]
[null,null,null,null,null,55,"STORM LAKE, IA 50588-0000"]
[null,null,null,null,null,55]
[null,null,null,null,null,55]
[null,null,null,null,null,55,"Submission Type:","Original document"]
[null,null,null,null,null,55,"Account Number (Optional):",188180227]
[null,null,null,null,null,55,"Date Sold or Disposed:","2021-05-06"]
[null,null,null,null,null,55,"CUSIP Number:","ETCUSD"]
[null,null,null,null,null,55,"Gross Proceeds:","Net Proceeds"]
[null,null,null,null,null,55,"Bartering:",0]
[null,null,null,null,null,55,"Federal Income Tax Withheld:",0]
[null,null,null,null,null,56,"Proceeds:",490]
[null,null,null,null,null,56,"Aggregate Profit or (Loss):",0]
[null,null,null,null,null,56,"Realized Profit or (Loss):",0]
[null,null,null,null,null,56,"Unrealized Profit or (Loss) 12/31 Prior Year:",0]
[null,null,null,null,null,56,"Unrealized Profit or (Loss) 12/31 Current Year:",0]
[null,null,null,null,null,56,"Cost or Basis:",0]
[null,null,null,null,null,56,"Wash Sale Loss Disallowed:",0]
[null,null,null,null,null,56,"Accrued Market Discount Amount:",0]
[null,null,null,null,null,56,"Description:","3.999394 ETHEREUM CLASSIC TO US DOLLAR"]
[null,null,null,null,null,56,"Second Notice Indicator:","No Second Notice"]
[null,null,null,null,null,56,"Date Acquired:","00-00-0000"]
[null,null,null,null,null,56,"Noncovered Security Indicator:","Noncovered Security Basis not reported to IRS"]
[null,null,null,null,null,56,"Type of Gain or Loss Code:","Short-term"]
[null,null,null,null,null,56,"Applicable Check Box on Form 8949:","Short term transaction for which the cost or other basis is not being reported to the IRS"]
[null,null,null,null,null,56,"Loss Not Allowed Indicator:"]
[null,null,null,null,null,56,"FATCA Filing Requirement:","Box not checked no Filing Requirement"]
[null,null,null,null,null,56,"Proceeds from:","Box not checked"]
[null,null,null,null,null,56]
[null,null,null,null,null,56,"Form 1099-B Proceeds From Broker and Barter Exchange Transactions"]
[null,null,null,null,null,56]
[null,null,null,null,null,56]
[null,null,null,null,null,56,"Payer:"]
[null,null,null,null,null,56,"Payer's Federal Identification Number (FIN):464364776"]
[null,null,null,null,null,56,"ROBINHOOD CRYPTO LLC"]
[null,null,null,null,null,56,"85 WILLOW ROAD"]
[null,null,null,null,null,56,"MENLO PARK, CA 94025-0000"]
[null,null,null,null,null,56]
[null,null,null,null,null,56,"Recipient:"]
[null,null,null,null,null,56,"Recipient's Identification Number: 646-04-1329"]
[null,null,null,null,null,56,"NATHAN TUN"]
[null,null,null,null,null,{"$f":"IF(OR(G2313=\"Proceeds:\",G2313=\"Interest:\"),1+F2312,F2312)","v":56},"1416 MICHIGAN ST C2"]
[null,null,null,null,null,56,"STORM LAKE, IA 50588-0000"]
[null,null,null,null,null,56]
[null,null,null,null,null,56]
[null,null,null,null,null,56,"Submission Type:","Original document"]
[null,null,null,null,null,56,"Account Number (Optional):",188180228]
[null,null,null,null,null,56,"Date Sold or Disposed:","2021-05-06"]
[null,null,null,null,null,56,"CUSIP Number:","ETCUSD"]
[null,null,null,null,null,56,"Gross Proceeds:","Net Proceeds"]
[null,null,null,null,null,56,"Bartering:",0]
[null,null,null,null,null,56,"Federal Income Tax Withheld:",0]
[null,null,null,null,null,57,"Proceeds:",493]
[null,null,null,null,null,57,"Aggregate Profit or (Loss):",0]
[null,null,null,null,null,57,"Realized Profit or (Loss):",0]
[null,null,null,null,null,57,"Unrealized Profit or (Loss) 12/31 Prior Year:",0]
[null,null,null,null,null,57,"Unrealized Profit or (Loss) 12/31 Current Year:",0]
[null,null,null,null,null,57,"Cost or Basis:",0]
[null,null,null,null,null,57,"Wash Sale Loss Disallowed:",0]
[null,null,null,null,null,57,"Accrued Market Discount Amount:",0]
[null,null,null,null,null,57,"Description:","2.74299 ETHEREUM CLASSIC TO US DOLLAR"]
[null,null,null,null,null,57,"Second Notice Indicator:","No Second Notice"]
[null,null,null,null,null,57,"Date Acquired:","00-00-0000"]
[null,null,null,null,null,57,"Noncovered Security Indicator:","Noncovered Security Basis not reported to IRS"]
[null,null,null,null,null,57,"Type of Gain or Loss Code:","Short-term"]
[null,null,null,null,null,57,"Applicable Check Box on Form 8949:","Short term transaction for which the cost or other basis is not being reported to the IRS"]
[null,null,null,null,null,57,"Loss Not Allowed Indicator:"]
[null,null,null,null,null,57,"FATCA Filing Requirement:","Box not checked no Filing Requirement"]
[null,null,null,null,null,57,"Proceeds from:","Box not checked"]
[null,null,null,null,null,57]
[null,null,null,null,null,57,"Form 1099-B Proceeds From Broker and Barter Exchange Transactions"]
[null,null,null,null,null,57]
[null,null,null,null,null,57]
[null,null,null,null,null,57,"Payer:"]
[null,null,null,null,null,57,"Payer's Federal Identification Number (FIN):464364776"]
[null,null,null,null,null,57,"ROBINHOOD CRYPTO LLC"]
[null,null,null,null,null,57,"85 WILLOW ROAD"]
[null,null,null,null,null,57,"MENLO PARK, CA 94025-0000"]
[null,null,null,null,null,57]
[null,null,null,null,null,57,"Recipient:"]
[null,null,null,null,null,57,"Recipient's Identification Number: 646-04-1329"]
[null,null,null,null,null,57,"NATHAN TUN"]
[null,null,null,null,null,57,"1416 MICHIGAN ST C2"]
[null,null,null,null,null,57,"STORM LAKE, IA 50588-0000"]
[null,null,null,null,null,57]
[null,null,null,null,null,57]
[null,null,null,null,null,57,"Submission Type:","Original document"]
[null,null,null,null,null,57,"Account Number (Optional):",188180229]
[null,null,null,null,null,57,"Date Sold or Disposed:","2021-05-06"]
[null,null,null,null,null,57,"CUSIP Number:","ETCUSD"]
[null,null,null,null,null,57,"Gross Proceeds:","Net Proceeds"]
[null,null,null,null,null,57,"Bartering:",0]
[null,null,null,null,null,57,"Federal Income Tax Withheld:",0]
[null,null,null,null,null,58,"Proceeds:",267]
[null,null,null,null,null,58,"Aggregate Profit or (Loss):",0]
[null,null,null,null,null,58,"Realized Profit or (Loss):",0]
[null,null,null,null,null,58,"Unrealized Profit or (Loss) 12/31 Prior Year:",0]
[null,null,null,null,null,58,"Unrealized Profit or (Loss) 12/31 Current Year:",0]
[null,null,null,null,null,58,"Cost or Basis:",0]
[null,null,null,null,null,58,"Wash Sale Loss Disallowed:",0]
[null,null,null,null,null,58,"Accrued Market Discount Amount:",0]
[null,null,null,null,null,58,"Description:","1.482858 ETHEREUM CLASSIC TO US DOLLAR"]
[null,null,null,null,null,58,"Second Notice Indicator:","No Second Notice"]
[null,null,null,null,null,58,"Date Acquired:","00-00-0000"]
[null,null,null,null,null,58,"Noncovered Security Indicator:","Noncovered Security Basis not reported to IRS"]
[null,null,null,null,null,{"$f":"IF(OR(G2377=\"Proceeds:\",G2377=\"Interest:\"),1+F2376,F2376)","v":58},"Type of Gain or Loss Code:","Short-term"]
[null,null,null,null,null,58,"Applicable Check Box on Form 8949:","Short term transaction for which the cost or other basis is not being reported to the IRS"]
[null,null,null,null,null,58,"Loss Not Allowed Indicator:"]
[null,null,null,null,null,58,"FATCA Filing Requirement:","Box not checked no Filing Requirement"]
[null,null,null,null,null,58,"Proceeds from:","Box not checked"]
[null,null,null,null,null,58]
[null,null,null,null,null,58,"Form 1099-B Proceeds From Broker and Barter Exchange Transactions"]
[null,null,null,null,null,58]
[null,null,null,null,null,58]
[null,null,null,null,null,58,"Payer:"]
[null,null,null,null,null,58,"Payer's Federal Identification Number (FIN):464364776"]
[null,null,null,null,null,58,"ROBINHOOD CRYPTO LLC"]
[null,null,null,null,null,58,"85 WILLOW ROAD"]
[null,null,null,null,null,58,"MENLO PARK, CA 94025-0000"]
[null,null,null,null,null,58]
[null,null,null,null,null,58,"Recipient:"]
[null,null,null,null,null,58,"Recipient's Identification Number: 646-04-1329"]
[null,null,null,null,null,58,"NATHAN TUN"]
[null,null,null,null,null,58,"1416 MICHIGAN ST C2"]
[null,null,null,null,null,58,"STORM LAKE, IA 50588-0000"]
[null,null,null,null,null,58]
[null,null,null,null,null,58]
[null,null,null,null,null,58,"Submission Type:","Original document"]
[null,null,null,null,null,58,"Account Number (Optional):",188180230]
[null,null,null,null,null,58,"Date Sold or Disposed:","2021-05-06"]
[null,null,null,null,null,58,"CUSIP Number:","ETCUSD"]
[null,null,null,null,null,58,"Gross Proceeds:","Net Proceeds"]
[null,null,null,null,null,58,"Bartering:",0]
[null,null,null,null,null,58,"Federal Income Tax Withheld:",0]
[null,null,null,null,null,59,"Proceeds:",416]
[null,null,null,null,null,59,"Aggregate Profit or (Loss):",0]
[null,null,null,null,null,59,"Realized Profit or (Loss):",0]
[null,null,null,null,null,59,"Unrealized Profit or (Loss) 12/31 Prior Year:",0]
[null,null,null,null,null,59,"Unrealized Profit or (Loss) 12/31 Current Year:",0]
[null,null,null,null,null,59,"Cost or Basis:",0]
[null,null,null,null,null,59,"Wash Sale Loss Disallowed:",0]
[null,null,null,null,null,59,"Accrued Market Discount Amount:",0]
[null,null,null,null,null,59,"Description:","2.380465 ETHEREUM CLASSIC TO US DOLLAR"]
[null,null,null,null,null,59,"Second Notice Indicator:","No Second Notice"]
[null,null,null,null,null,59,"Date Acquired:","00-00-0000"]
[null,null,null,null,null,59,"Noncovered Security Indicator:","Noncovered Security Basis not reported to IRS"]
[null,null,null,null,null,59,"Type of Gain or Loss Code:","Short-term"]
[null,null,null,null,null,59,"Applicable Check Box on Form 8949:","Short term transaction for which the cost or other basis is not being reported to the IRS"]
[null,null,null,null,null,59,"Loss Not Allowed Indicator:"]
[null,null,null,null,null,59,"FATCA Filing Requirement:","Box not checked no Filing Requirement"]
[null,null,null,null,null,59,"Proceeds from:","Box not checked"]
[null,null,null,null,null,59]
[null,null,null,null,null,59,"Form 1099-B Proceeds From Broker and Barter Exchange Transactions"]
[null,null,null,null,null,59]
[null,null,null,null,null,59]
[null,null,null,null,null,59,"Payer:"]
[null,null,null,null,null,59,"Payer's Federal Identification Number (FIN):464364776"]
[null,null,null,null,null,59,"ROBINHOOD CRYPTO LLC"]
[null,null,null,null,null,59,"85 WILLOW ROAD"]
[null,null,null,null,null,59,"MENLO PARK, CA 94025-0000"]
[null,null,null,null,null,59]
[null,null,null,null,null,59,"Recipient:"]
[null,null,null,null,null,59,"Recipient's Identification Number: 646-04-1329"]
[null,null,null,null,null,59,"NATHAN TUN"]
[null,null,null,null,null,59,"1416 MICHIGAN ST C2"]
[null,null,null,null,null,59,"STORM LAKE, IA 50588-0000"]
[null,null,null,null,null,59]
[null,null,null,null,null,59]
[null,null,null,null,null,59,"Submission Type:","Original document"]
[null,null,null,null,null,{"$f":"IF(OR(G2441=\"Proceeds:\",G2441=\"Interest:\"),1+F2440,F2440)","v":59},"Account Number (Optional):",188180231]
[null,null,null,null,null,59,"Date Sold or Disposed:","2021-05-06"]
[null,null,null,null,null,59,"CUSIP Number:","ETCUSD"]
[null,null,null,null,null,59,"Gross Proceeds:","Net Proceeds"]
[null,null,null,null,null,59,"Bartering:",0]
[null,null,null,null,null,59,"Federal Income Tax Withheld:",0]
[null,null,null,null,null,60,"Proceeds:",332]
[null,null,null,null,null,60,"Aggregate Profit or (Loss):",0]
[null,null,null,null,null,60,"Realized Profit or (Loss):",0]
[null,null,null,null,null,60,"Unrealized Profit or (Loss) 12/31 Prior Year:",0]
[null,null,null,null,null,60,"Unrealized Profit or (Loss) 12/31 Current Year:",0]
[null,null,null,null,null,60,"Cost or Basis:",0]
[null,null,null,null,null,60,"Wash Sale Loss Disallowed:",0]
[null,null,null,null,null,60,"Accrued Market Discount Amount:",0]
[null,null,null,null,null,60,"Description:","1.898000 ETHEREUM CLASSIC TO US DOLLAR"]
[null,null,null,null,null,60,"Second Notice Indicator:","No Second Notice"]
[null,null,null,null,null,60,"Date Acquired:","00-00-0000"]
[null,null,null,null,null,60,"Noncovered Security Indicator:","Noncovered Security Basis not reported to IRS"]
[null,null,null,null,null,60,"Type of Gain or Loss Code:","Short-term"]
[null,null,null,null,null,60,"Applicable Check Box on Form 8949:","Short term transaction for which the cost or other basis is not being reported to the IRS"]
[null,null,null,null,null,60,"Loss Not Allowed Indicator:"]
[null,null,null,null,null,60,"FATCA Filing Requirement:","Box not checked no Filing Requirement"]
[null,null,null,null,null,60,"Proceeds from:","Box not checked"]
[null,null,null,null,null,60]
[null,null,null,null,null,60,"Form 1099-B Proceeds From Broker and Barter Exchange Transactions"]
[null,null,null,null,null,60]
[null,null,null,null,null,60]
[null,null,null,null,null,60,"Payer:"]
[null,null,null,null,null,60,"Payer's Federal Identification Number (FIN):464364776"]
[null,null,null,null,null,60,"ROBINHOOD CRYPTO LLC"]
[null,null,null,null,null,60,"85 WILLOW ROAD"]
[null,null,null,null,null,60,"MENLO PARK, CA 94025-0000"]
[null,null,null,null,null,60]
[null,null,null,null,null,60,"Recipient:"]
[null,null,null,null,null,60,"Recipient's Identification Number: 646-04-1329"]
[null,null,null,null,null,60,"NATHAN TUN"]
[null,null,null,null,null,60,"1416 MICHIGAN ST C2"]
[null,null,null,null,null,60,"STORM LAKE, IA 50588-0000"]
[null,null,null,null,null,60]
[null,null,null,null,null,60]
[null,null,null,null,null,60,"Submission Type:","Original document"]
[null,null,null,null,null,60,"Account Number (Optional):",188180232]
[null,null,null,null,null,60,"Date Sold or Disposed:","2021-05-06"]
[null,null,null,null,null,60,"CUSIP Number:","ETCUSD"]
[null,null,null,null,null,60,"Gross Proceeds:","Net Proceeds"]
[null,null,null,null,null,60,"Bartering:",0]
[null,null,null,null,null,60,"Federal Income Tax Withheld:",0]
[null,null,null,null,null,61,"Proceeds:",428]
[null,null,null,null,null,61,"Aggregate Profit or (Loss):",0]
[null,null,null,null,null,61,"Realized Profit or (Loss):",0]
[null,null,null,null,null,61,"Unrealized Profit or (Loss) 12/31 Prior Year:",0]
[null,null,null,null,null,61,"Unrealized Profit or (Loss) 12/31 Current Year:",0]
[null,null,null,null,null,61,"Cost or Basis:",0]
[null,null,null,null,null,61,"Wash Sale Loss Disallowed:",0]
[null,null,null,null,null,61,"Accrued Market Discount Amount:",0]
[null,null,null,null,null,61,"Description:","2.386 ETHEREUM CLASSIC TO US DOLLAR"]
[null,null,null,null,null,61,"Second Notice Indicator:","No Second Notice"]
[null,null,null,null,null,61,"Date Acquired:","00-00-0000"]
[null,null,null,null,null,61,"Noncovered Security Indicator:","Noncovered Security Basis not reported to IRS"]
[null,null,null,null,null,61,"Type of Gain or Loss Code:","Short-term"]
[null,null,null,null,null,61,"Applicable Check Box on Form 8949:","Short term transaction for which the cost or other basis is not being reported to the IRS"]
[null,null,null,null,null,61,"Loss Not Allowed Indicator:"]
[null,null,null,null,null,61,"FATCA Filing Requirement:","Box not checked no Filing Requirement"]
[null,null,null,null,null,61,"Proceeds from:","Box not checked"]
[null,null,null,null,null,{"$f":"IF(OR(G2505=\"Proceeds:\",G2505=\"Interest:\"),1+F2504,F2504)","v":61}]
[null,null,null,null,null,61,"Form 1099-B Proceeds From Broker and Barter Exchange Transactions"]
[null,null,null,null,null,61]
[null,null,null,null,null,61]
[null,null,null,null,null,61,"Payer:"]
[null,null,null,null,null,61,"Payer's Federal Identification Number (FIN):464364776"]
[null,null,null,null,null,61,"ROBINHOOD CRYPTO LLC"]
[null,null,null,null,null,61,"85 WILLOW ROAD"]
[null,null,null,null,null,61,"MENLO PARK, CA 94025-0000"]
[null,null,null,null,null,61]
[null,null,null,null,null,61,"Recipient:"]
[null,null,null,null,null,61,"Recipient's Identification Number: 646-04-1329"]
[null,null,null,null,null,61,"NATHAN TUN"]
[null,null,null,null,null,61,"1416 MICHIGAN ST C2"]
[null,null,null,null,null,61,"STORM LAKE, IA 50588-0000"]
[null,null,null,null,null,61]
[null,null,null,null,null,61]
[null,null,null,null,null,61,"Submission Type:","Original document"]
[null,null,null,null,null,61,"Account Number (Optional):",188180233]
[null,null,null,null,null,61,"Date Sold or Disposed:","2021-05-06"]
[null,null,null,null,null,61,"CUSIP Number:","ETCUSD"]
[null,null,null,null,null,61,"Gross Proceeds:","Net Proceeds"]
[null,null,null,null,null,61,"Bartering:",0]
[null,null,null,null,null,61,"Federal Income Tax Withheld:",0]
[null,null,null,null,null,62,"Proceeds:",290]
[null,null,null,null,null,62,"Aggregate Profit or (Loss):",0]
[null,null,null,null,null,62,"Realized Profit or (Loss):",0]
[null,null,null,null,null,62,"Unrealized Profit or (Loss) 12/31 Prior Year:",0]
[null,null,null,null,null,62,"Unrealized Profit or (Loss) 12/31 Current Year:",0]
[null,null,null,null,null,62,"Cost or Basis:",0]
[null,null,null,null,null,62,"Wash Sale Loss Disallowed:",0]
[null,null,null,null,null,62,"Accrued Market Discount Amount:",0]
[null,null,null,null,null,62,"Description:","1.614 ETHEREUM CLASSIC TO US DOLLAR"]
[null,null,null,null,null,62,"Second Notice Indicator:","No Second Notice"]
[null,null,null,null,null,62,"Date Acquired:","00-00-0000"]
[null,null,null,null,null,62,"Noncovered Security Indicator:","Noncovered Security Basis not reported to IRS"]
[null,null,null,null,null,62,"Type of Gain or Loss Code:","Short-term"]
[null,null,null,null,null,62,"Applicable Check Box on Form 8949:","Short term transaction for which the cost or other basis is not being reported to the IRS"]
[null,null,null,null,null,62,"Loss Not Allowed Indicator:"]
[null,null,null,null,null,62,"FATCA Filing Requirement:","Box not checked no Filing Requirement"]
[null,null,null,null,null,62,"Proceeds from:","Box not checked"]
[null,null,null,null,null,62]
[null,null,null,null,null,62,"Form 1099-B Proceeds From Broker and Barter Exchange Transactions"]
[null,null,null,null,null,62]
[null,null,null,null,null,62]
[null,null,null,null,null,62,"Payer:"]
[null,null,null,null,null,62,"Payer's Federal Identification Number (FIN):464364776"]
[null,null,null,null,null,62,"ROBINHOOD CRYPTO LLC"]
[null,null,null,null,null,62,"85 WILLOW ROAD"]
[null,null,null,null,null,62,"MENLO PARK, CA 94025-0000"]
[null,null,null,null,null,62]
[null,null,null,null,null,62,"Recipient:"]
[null,null,null,null,null,62,"Recipient's Identification Number: 646-04-1329"]
[null,null,null,null,null,62,"NATHAN TUN"]
[null,null,null,null,null,62,"1416 MICHIGAN ST C2"]
[null,null,null,null,null,62,"STORM LAKE, IA 50588-0000"]
[null,null,null,null,null,62]
[null,null,null,null,null,62]
[null,null,null,null,null,62,"Submission Type:","Original document"]
[null,null,null,null,null,62,"Account Number (Optional):",188180234]
[null,null,null,null,null,62,"Date Sold or Disposed:","2021-05-07"]
[null,null,null,null,null,62,"CUSIP Number:","ETCUSD"]
[null,null,null,null,null,62,"Gross Proceeds:","Net Proceeds"]
[null,null,null,null,null,62,"Bartering:",0]
[null,null,null,null,null,{"$f":"IF(OR(G2569=\"Proceeds:\",G2569=\"Interest:\"),1+F2568,F2568)","v":62},"Federal Income Tax Withheld:",0]
[null,null,null,null,null,63,"Proceeds:",420]
[null,null,null,null,null,63,"Aggregate Profit or (Loss):",0]
[null,null,null,null,null,63,"Realized Profit or (Loss):",0]
[null,null,null,null,null,63,"Unrealized Profit or (Loss) 12/31 Prior Year:",0]
[null,null,null,null,null,63,"Unrealized Profit or (Loss) 12/31 Current Year:",0]
[null,null,null,null,null,63,"Cost or Basis:",0]
[null,null,null,null,null,63,"Wash Sale Loss Disallowed:",0]
[null,null,null,null,null,63,"Accrued Market Discount Amount:",0]
[null,null,null,null,null,63,"Description:","3.072809 ETHEREUM CLASSIC TO US DOLLAR"]
[null,null,null,null,null,63,"Second Notice Indicator:","No Second Notice"]
[null,null,null,null,null,63,"Date Acquired:","00-00-0000"]
[null,null,null,null,null,63,"Noncovered Security Indicator:","Noncovered Security Basis not reported to IRS"]
[null,null,null,null,null,63,"Type of Gain or Loss Code:","Short-term"]
[null,null,null,null,null,63,"Applicable Check Box on Form 8949:","Short term transaction for which the cost or other basis is not being reported to the IRS"]
[null,null,null,null,null,63,"Loss Not Allowed Indicator:"]
[null,null,null,null,null,63,"FATCA Filing Requirement:","Box not checked no Filing Requirement"]
[null,null,null,null,null,63,"Proceeds from:","Box not checked"]
[null,null,null,null,null,63]
[null,null,null,null,null,63,"Form 1099-B Proceeds From Broker and Barter Exchange Transactions"]
[null,null,null,null,null,63]
[null,null,null,null,null,63]
[null,null,null,null,null,63,"Payer:"]
[null,null,null,null,null,63,"Payer's Federal Identification Number (FIN):464364776"]
[null,null,null,null,null,63,"ROBINHOOD CRYPTO LLC"]
[null,null,null,null,null,63,"85 WILLOW ROAD"]
[null,null,null,null,null,63,"MENLO PARK, CA 94025-0000"]
[null,null,null,null,null,63]
[null,null,null,null,null,63,"Recipient:"]
[null,null,null,null,null,63,"Recipient's Identification Number: 646-04-1329"]
[null,null,null,null,null,63,"NATHAN TUN"]
[null,null,null,null,null,63,"1416 MICHIGAN ST C2"]
[null,null,null,null,null,63,"STORM LAKE, IA 50588-0000"]
[null,null,null,null,null,63]
[null,null,null,null,null,63]
[null,null,null,null,null,63,"Submission Type:","Original document"]
[null,null,null,null,null,63,"Account Number (Optional):",188180235]
[null,null,null,null,null,63,"Date Sold or Disposed:","2021-05-07"]
[null,null,null,null,null,63,"CUSIP Number:","ETCUSD"]
[null,null,null,null,null,63,"Gross Proceeds:","Net Proceeds"]
[null,null,null,null,null,63,"Bartering:",0]
[null,null,null,null,null,63,"Federal Income Tax Withheld:",0]
[null,null,null,null,null,64,"Proceeds:",259]
[null,null,null,null,null,64,"Aggregate Profit or (Loss):",0]
[null,null,null,null,null,64,"Realized Profit or (Loss):",0]
[null,null,null,null,null,64,"Unrealized Profit or (Loss) 12/31 Prior Year:",0]
[null,null,null,null,null,64,"Unrealized Profit or (Loss) 12/31 Current Year:",0]
[null,null,null,null,null,64,"Cost or Basis:",0]
[null,null,null,null,null,64,"Wash Sale Loss Disallowed:",0]
[null,null,null,null,null,64,"Accrued Market Discount Amount:",0]
[null,null,null,null,null,64,"Description:","1.894000 ETHEREUM CLASSIC TO US DOLLAR"]
[null,null,null,null,null,64,"Second Notice Indicator:","No Second Notice"]
[null,null,null,null,null,64,"Date Acquired:","00-00-0000"]
[null,null,null,null,null,64,"Noncovered Security Indicator:","Noncovered Security Basis not reported to IRS"]
[null,null,null,null,null,64,"Type of Gain or Loss Code:","Short-term"]
[null,null,null,null,null,64,"Applicable Check Box on Form 8949:","Short term transaction for which the cost or other basis is not being reported to the IRS"]
[null,null,null,null,null,64,"Loss Not Allowed Indicator:"]
[null,null,null,null,null,64,"FATCA Filing Requirement:","Box not checked no Filing Requirement"]
[null,null,null,null,null,64,"Proceeds from:","Box not checked"]
[null,null,null,null,null,64]
[null,null,null,null,null,64,"Form 1099-B Proceeds From Broker and Barter Exchange Transactions"]
[null,null,null,null,null,64]
[null,null,null,null,null,64]
[null,null,null,null,null,64,"Payer:"]
[null,null,null,null,null,{"$f":"IF(OR(G2633=\"Proceeds:\",G2633=\"Interest:\"),1+F2632,F2632)","v":64},"Payer's Federal Identification Number (FIN):464364776"]
[null,null,null,null,null,64,"ROBINHOOD CRYPTO LLC"]
[null,null,null,null,null,64,"85 WILLOW ROAD"]
[null,null,null,null,null,64,"MENLO PARK, CA 94025-0000"]
[null,null,null,null,null,64]
[null,null,null,null,null,64,"Recipient:"]
[null,null,null,null,null,64,"Recipient's Identification Number: 646-04-1329"]
[null,null,null,null,null,64,"NATHAN TUN"]
[null,null,null,null,null,64,"1416 MICHIGAN ST C2"]
[null,null,null,null,null,64,"STORM LAKE, IA 50588-0000"]
[null,null,null,null,null,64]
[null,null,null,null,null,64]
[null,null,null,null,null,64,"Submission Type:","Original document"]
[null,null,null,null,null,64,"Account Number (Optional):",188180236]
[null,null,null,null,null,64,"Date Sold or Disposed:","2021-05-07"]
[null,null,null,null,null,64,"CUSIP Number:","ETCUSD"]
[null,null,null,null,null,64,"Gross Proceeds:","Net Proceeds"]
[null,null,null,null,null,64,"Bartering:",0]
[null,null,null,null,null,64,"Federal Income Tax Withheld:",0]
[null,null,null,null,null,65,"Proceeds:",277]
[null,null,null,null,null,65,"Aggregate Profit or (Loss):",0]
[null,null,null,null,null,65,"Realized Profit or (Loss):",0]
[null,null,null,null,null,65,"Unrealized Profit or (Loss) 12/31 Prior Year:",0]
[null,null,null,null,null,65,"Unrealized Profit or (Loss) 12/31 Current Year:",0]
[null,null,null,null,null,65,"Cost or Basis:",0]
[null,null,null,null,null,65,"Wash Sale Loss Disallowed:",0]
[null,null,null,null,null,65,"Accrued Market Discount Amount:",0]
[null,null,null,null,null,65,"Description:","2.1675 ETHEREUM CLASSIC TO US DOLLAR"]
[null,null,null,null,null,65,"Second Notice Indicator:","No Second Notice"]
[null,null,null,null,null,65,"Date Acquired:","00-00-0000"]
[null,null,null,null,null,65,"Noncovered Security Indicator:","Noncovered Security Basis not reported to IRS"]
[null,null,null,null,null,65,"Type of Gain or Loss Code:","Short-term"]
[null,null,null,null,null,65,"Applicable Check Box on Form 8949:","Short term transaction for which the cost or other basis is not being reported to the IRS"]
[null,null,null,null,null,65,"Loss Not Allowed Indicator:"]
[null,null,null,null,null,65,"FATCA Filing Requirement:","Box not checked no Filing Requirement"]
[null,null,null,null,null,65,"Proceeds from:","Box not checked"]
[null,null,null,null,null,65]
[null,null,null,null,null,65,"Form 1099-B Proceeds From Broker and Barter Exchange Transactions"]
[null,null,null,null,null,65]
[null,null,null,null,null,65]
[null,null,null,null,null,65,"Payer:"]
[null,null,null,null,null,65,"Payer's Federal Identification Number (FIN):464364776"]
[null,null,null,null,null,65,"ROBINHOOD CRYPTO LLC"]
[null,null,null,null,null,65,"85 WILLOW ROAD"]
[null,null,null,null,null,65,"MENLO PARK, CA 94025-0000"]
[null,null,null,null,null,65]
[null,null,null,null,null,65,"Recipient:"]
[null,null,null,null,null,65,"Recipient's Identification Number: 646-04-1329"]
[null,null,null,null,null,65,"NATHAN TUN"]
[null,null,null,null,null,65,"1416 MICHIGAN ST C2"]
[null,null,null,null,null,65,"STORM LAKE, IA 50588-0000"]
[null,null,null,null,null,65]
[null,null,null,null,null,65]
[null,null,null,null,null,65,"Submission Type:","Original document"]
[null,null,null,null,null,65,"Account Number (Optional):",188180237]
[null,null,null,null,null,65,"Date Sold or Disposed:","2021-05-07"]
[null,null,null,null,null,65,"CUSIP Number:","ETCUSD"]
[null,null,null,null,null,65,"Gross Proceeds:","Net Proceeds"]
[null,null,null,null,null,65,"Bartering:",0]
[null,null,null,null,null,65,"Federal Income Tax Withheld:",0]
[null,null,null,null,null,66,"Proceeds:",329]
[null,null,null,null,null,66,"Aggregate Profit or (Loss):",0]
[null,null,null,null,null,66,"Realized Profit or (Loss):",0]
[null,null,null,null,null,66,"Unrealized Profit or (Loss) 12/31 Prior Year:",0]
[null,null,null,null,null,{"$f":"IF(OR(G2697=\"Proceeds:\",G2697=\"Interest:\"),1+F2696,F2696)","v":66},"Unrealized Profit or (Loss) 12/31 Current Year:",0]
[null,null,null,null,null,66,"Cost or Basis:",0]
[null,null,null,null,null,66,"Wash Sale Loss Disallowed:",0]
[null,null,null,null,null,66,"Accrued Market Discount Amount:",0]
[null,null,null,null,null,66,"Description:","2.567000 ETHEREUM CLASSIC TO US DOLLAR"]
[null,null,null,null,null,66,"Second Notice Indicator:","No Second Notice"]
[null,null,null,null,null,66,"Date Acquired:","00-00-0000"]
[null,null,null,null,null,66,"Noncovered Security Indicator:","Noncovered Security Basis not reported to IRS"]
[null,null,null,null,null,66,"Type of Gain or Loss Code:","Short-term"]
[null,null,null,null,null,66,"Applicable Check Box on Form 8949:","Short term transaction for which the cost or other basis is not being reported to the IRS"]
[null,null,null,null,null,66,"Loss Not Allowed Indicator:"]
[null,null,null,null,null,66,"FATCA Filing Requirement:","Box not checked no Filing Requirement"]
[null,null,null,null,null,66,"Proceeds from:","Box not checked"]
[null,null,null,null,null,66]
[null,null,null,null,null,66,"Form 1099-B Proceeds From Broker and Barter Exchange Transactions"]
[null,null,null,null,null,66]
[null,null,null,null,null,66]
[null,null,null,null,null,66,"Payer:"]
[null,null,null,null,null,66,"Payer's Federal Identification Number (FIN):464364776"]
[null,null,null,null,null,66,"ROBINHOOD CRYPTO LLC"]
[null,null,null,null,null,66,"85 WILLOW ROAD"]
[null,null,null,null,null,66,"MENLO PARK, CA 94025-0000"]
[null,null,null,null,null,66]
[null,null,null,null,null,66,"Recipient:"]
[null,null,null,null,null,66,"Recipient's Identification Number: 646-04-1329"]
[null,null,null,null,null,66,"NATHAN TUN"]
[null,null,null,null,null,66,"1416 MICHIGAN ST C2"]
[null,null,null,null,null,66,"STORM LAKE, IA 50588-0000"]
[null,null,null,null,null,66]
[null,null,null,null,null,66]
[null,null,null,null,null,66,"Submission Type:","Original document"]
[null,null,null,null,null,66,"Account Number (Optional):",188180238]
[null,null,null,null,null,66,"Date Sold or Disposed:","2021-05-07"]
[null,null,null,null,null,66,"CUSIP Number:","ETCUSD"]
[null,null,null,null,null,66,"Gross Proceeds:","Net Proceeds"]
[null,null,null,null,null,66,"Bartering:",0]
[null,null,null,null,null,66,"Federal Income Tax Withheld:",0]
[null,null,null,null,null,67,"Proceeds:",27]
[null,null,null,null,null,67,"Aggregate Profit or (Loss):",0]
[null,null,null,null,null,67,"Realized Profit or (Loss):",0]
[null,null,null,null,null,67,"Unrealized Profit or (Loss) 12/31 Prior Year:",0]
[null,null,null,null,null,67,"Unrealized Profit or (Loss) 12/31 Current Year:",0]
[null,null,null,null,null,67,"Cost or Basis:",0]
[null,null,null,null,null,67,"Wash Sale Loss Disallowed:",0]
[null,null,null,null,null,67,"Accrued Market Discount Amount:",0]
[null,null,null,null,null,67,"Description:","0.216975 ETHEREUM CLASSIC TO US DOLLAR"]
[null,null,null,null,null,67,"Second Notice Indicator:","No Second Notice"]
[null,null,null,null,null,67,"Date Acquired:","00-00-0000"]
[null,null,null,null,null,67,"Noncovered Security Indicator:","Noncovered Security Basis not reported to IRS"]
[null,null,null,null,null,67,"Type of Gain or Loss Code:","Short-term"]
[null,null,null,null,null,67,"Applicable Check Box on Form 8949:","Short term transaction for which the cost or other basis is not being reported to the IRS"]
[null,null,null,null,null,67,"Loss Not Allowed Indicator:"]
[null,null,null,null,null,67,"FATCA Filing Requirement:","Box not checked no Filing Requirement"]
[null,null,null,null,null,67,"Proceeds from:","Box not checked"]
[null,null,null,null,null,67]
[null,null,null,null,null,67,"Form 1099-B Proceeds From Broker and Barter Exchange Transactions"]
[null,null,null,null,null,67]
[null,null,null,null,null,67]
[null,null,null,null,null,67,"Payer:"]
[null,null,null,null,null,67,"Payer's Federal Identification Number (FIN):464364776"]
[null,null,null,null,null,67,"ROBINHOOD CRYPTO LLC"]
[null,null,null,null,null,67,"85 WILLOW ROAD"]
[null,null,null,null,null,67,"MENLO PARK, CA 94025-0000"]
[null,null,null,null,null,67]
[null,null,null,null,null,{"$f":"IF(OR(G2761=\"Proceeds:\",G2761=\"Interest:\"),1+F2760,F2760)","v":67},"Recipient:"]
[null,null,null,null,null,67,"Recipient's Identification Number: 646-04-1329"]
[null,null,null,null,null,67,"NATHAN TUN"]
[null,null,null,null,null,67,"1416 MICHIGAN ST C2"]
[null,null,null,null,null,67,"STORM LAKE, IA 50588-0000"]
[null,null,null,null,null,67]
[null,null,null,null,null,67]
[null,null,null,null,null,67,"Submission Type:","Original document"]
[null,null,null,null,null,67,"Account Number (Optional):",188180239]
[null,null,null,null,null,67,"Date Sold or Disposed:","2021-05-07"]
[null,null,null,null,null,67,"CUSIP Number:","ETCUSD"]
[null,null,null,null,null,67,"Gross Proceeds:","Net Proceeds"]
[null,null,null,null,null,67,"Bartering:",0]
[null,null,null,null,null,67,"Federal Income Tax Withheld:",0]
[null,null,null,null,null,68,"Proceeds:",55]
[null,null,null,null,null,68,"Aggregate Profit or (Loss):",0]
[null,null,null,null,null,68,"Realized Profit or (Loss):",0]
[null,null,null,null,null,68,"Unrealized Profit or (Loss) 12/31 Prior Year:",0]
[null,null,null,null,null,68,"Unrealized Profit or (Loss) 12/31 Current Year:",0]
[null,null,null,null,null,68,"Cost or Basis:",0]
[null,null,null,null,null,68,"Wash Sale Loss Disallowed:",0]
[null,null,null,null,null,68,"Accrued Market Discount Amount:",0]
[null,null,null,null,null,68,"Description:","0.365967 ETHEREUM CLASSIC TO US DOLLAR"]
[null,null,null,null,null,68,"Second Notice Indicator:","No Second Notice"]
[null,null,null,null,null,68,"Date Acquired:","00-00-0000"]
[null,null,null,null,null,68,"Noncovered Security Indicator:","Noncovered Security Basis not reported to IRS"]
[null,null,null,null,null,68,"Type of Gain or Loss Code:","Short-term"]
[null,null,null,null,null,68,"Applicable Check Box on Form 8949:","Short term transaction for which the cost or other basis is not being reported to the IRS"]
[null,null,null,null,null,68,"Loss Not Allowed Indicator:"]
[null,null,null,null,null,68,"FATCA Filing Requirement:","Box not checked no Filing Requirement"]
[null,null,null,null,null,68,"Proceeds from:","Box not checked"]
[null,null,null,null,null,68]
[null,null,null,null,null,68,"Form 1099-B Proceeds From Broker and Barter Exchange Transactions"]
[null,null,null,null,null,68]
[null,null,null,null,null,68]
[null,null,null,null,null,68,"Payer:"]
[null,null,null,null,null,68,"Payer's Federal Identification Number (FIN):464364776"]
[null,null,null,null,null,68,"ROBINHOOD CRYPTO LLC"]
[null,null,null,null,null,68,"85 WILLOW ROAD"]
[null,null,null,null,null,68,"MENLO PARK, CA 94025-0000"]
[null,null,null,null,null,68]
[null,null,null,null,null,68,"Recipient:"]
[null,null,null,null,null,68,"Recipient's Identification Number: 646-04-1329"]
[null,null,null,null,null,68,"NATHAN TUN"]
[null,null,null,null,null,68,"1416 MICHIGAN ST C2"]
[null,null,null,null,null,68,"STORM LAKE, IA 50588-0000"]
[null,null,null,null,null,68]
[null,null,null,null,null,68]
[null,null,null,null,null,68,"Submission Type:","Original document"]
[null,null,null,null,null,68,"Account Number (Optional):",188180240]
[null,null,null,null,null,68,"Date Sold or Disposed:","2021-05-07"]
[null,null,null,null,null,68,"CUSIP Number:","ETCUSD"]
[null,null,null,null,null,68,"Gross Proceeds:","Net Proceeds"]
[null,null,null,null,null,68,"Bartering:",0]
[null,null,null,null,null,68,"Federal Income Tax Withheld:",0]
[null,null,null,null,null,69,"Proceeds:",402]
[null,null,null,null,null,69,"Aggregate Profit or (Loss):",0]
[null,null,null,null,null,69,"Realized Profit or (Loss):",0]
[null,null,null,null,null,69,"Unrealized Profit or (Loss) 12/31 Prior Year:",0]
[null,null,null,null,null,69,"Unrealized Profit or (Loss) 12/31 Current Year:",0]
[null,null,null,null,null,69,"Cost or Basis:",0]
[null,null,null,null,null,69,"Wash Sale Loss Disallowed:",0]
[null,null,null,null,null,69,"Accrued Market Discount Amount:",0]
[null,null,null,null,null,69,"Description:","2.669000 ETHEREUM CLASSIC TO US DOLLAR"]
[null,null,null,null,null,{"$f":"IF(OR(G2825=\"Proceeds:\",G2825=\"Interest:\"),1+F2824,F2824)","v":69},"Second Notice Indicator:","No Second Notice"]
[null,null,null,null,null,69,"Date Acquired:","00-00-0000"]
[null,null,null,null,null,69,"Noncovered Security Indicator:","Noncovered Security Basis not reported to IRS"]
[null,null,null,null,null,69,"Type of Gain or Loss Code:","Short-term"]
[null,null,null,null,null,69,"Applicable Check Box on Form 8949:","Short term transaction for which the cost or other basis is not being reported to the IRS"]
[null,null,null,null,null,69,"Loss Not Allowed Indicator:"]
[null,null,null,null,null,69,"FATCA Filing Requirement:","Box not checked no Filing Requirement"]
[null,null,null,null,null,69,"Proceeds from:","Box not checked"]
[null,null,null,null,null,69]
[null,null,null,null,null,69,"Form 1099-B Proceeds From Broker and Barter Exchange Transactions"]
[null,null,null,null,null,69]
[null,null,null,null,null,69]
[null,null,null,null,null,69,"Payer:"]
[null,null,null,null,null,69,"Payer's Federal Identification Number (FIN):464364776"]
[null,null,null,null,null,69,"ROBINHOOD CRYPTO LLC"]
[null,null,null,null,null,69,"85 WILLOW ROAD"]
[null,null,null,null,null,69,"MENLO PARK, CA 94025-0000"]
[null,null,null,null,null,69]
[null,null,null,null,null,69,"Recipient:"]
[null,null,null,null,null,69,"Recipient's Identification Number: 646-04-1329"]
[null,null,null,null,null,69,"NATHAN TUN"]
[null,null,null,null,null,69,"1416 MICHIGAN ST C2"]
[null,null,null,null,null,69,"STORM LAKE, IA 50588-0000"]
[null,null,null,null,null,69]
[null,null,null,null,null,69]
[null,null,null,null,null,69,"Submission Type:","Original document"]
[null,null,null,null,null,69,"Account Number (Optional):",188180241]
[null,null,null,null,null,69,"Date Sold or Disposed:","2021-05-07"]
[null,null,null,null,null,69,"CUSIP Number:","ETCUSD"]
[null,null,null,null,null,69,"Gross Proceeds:","Net Proceeds"]
[null,null,null,null,null,69,"Bartering:",0]
[null,null,null,null,null,69,"Federal Income Tax Withheld:",0]
[null,null,null,null,null,70,"Proceeds:",87]
[null,null,null,null,null,70,"Aggregate Profit or (Loss):",0]
[null,null,null,null,null,70,"Realized Profit or (Loss):",0]
[null,null,null,null,null,70,"Unrealized Profit or (Loss) 12/31 Prior Year:",0]
[null,null,null,null,null,70,"Unrealized Profit or (Loss) 12/31 Current Year:",0]
[null,null,null,null,null,70,"Cost or Basis:",0]
[null,null,null,null,null,70,"Wash Sale Loss Disallowed:",0]
[null,null,null,null,null,70,"Accrued Market Discount Amount:",0]
[null,null,null,null,null,70,"Description:","0.577685 ETHEREUM CLASSIC TO US DOLLAR"]
[null,null,null,null,null,70,"Second Notice Indicator:","No Second Notice"]
[null,null,null,null,null,70,"Date Acquired:","00-00-0000"]
[null,null,null,null,null,70,"Noncovered Security Indicator:","Noncovered Security Basis not reported to IRS"]
[null,null,null,null,null,70,"Type of Gain or Loss Code:","Short-term"]
[null,null,null,null,null,70,"Applicable Check Box on Form 8949:","Short term transaction for which the cost or other basis is not being reported to the IRS"]
[null,null,null,null,null,70,"Loss Not Allowed Indicator:"]
[null,null,null,null,null,70,"FATCA Filing Requirement:","Box not checked no Filing Requirement"]
[null,null,null,null,null,70,"Proceeds from:","Box not checked"]
[null,null,null,null,null,70]
[null,null,null,null,null,70,"Form 1099-B Proceeds From Broker and Barter Exchange Transactions"]
[null,null,null,null,null,70]
[null,null,null,null,null,70]
[null,null,null,null,null,70,"Payer:"]
[null,null,null,null,null,70,"Payer's Federal Identification Number (FIN):464364776"]
[null,null,null,null,null,70,"ROBINHOOD CRYPTO LLC"]
[null,null,null,null,null,70,"85 WILLOW ROAD"]
[null,null,null,null,null,70,"MENLO PARK, CA 94025-0000"]
[null,null,null,null,null,70]
[null,null,null,null,null,70,"Recipient:"]
[null,null,null,null,null,70,"Recipient's Identification Number: 646-04-1329"]
[null,null,null,null,null,70,"NATHAN TUN"]
[null,null,null,null,null,70,"1416 MICHIGAN ST C2"]
[null,null,null,null,null,70,"STORM LAKE, IA 50588-0000"]
[null,null,null,null,null,{"$f":"IF(OR(G2889=\"Proceeds:\",G2889=\"Interest:\"),1+F2888,F2888)","v":70}]
[null,null,null,null,null,70]
[null,null,null,null,null,70,"Submission Type:","Original document"]
[null,null,null,null,null,70,"Account Number (Optional):",188180242]
[null,null,null,null,null,70,"Date Sold or Disposed:","2021-05-07"]
[null,null,null,null,null,70,"CUSIP Number:","ETCUSD"]
[null,null,null,null,null,70,"Gross Proceeds:","Net Proceeds"]
[null,null,null,null,null,70,"Bartering:",0]
[null,null,null,null,null,70,"Federal Income Tax Withheld:",0]
[null,null,null,null,null,71,"Proceeds:",116]
[null,null,null,null,null,71,"Aggregate Profit or (Loss):",0]
[null,null,null,null,null,71,"Realized Profit or (Loss):",0]
[null,null,null,null,null,71,"Unrealized Profit or (Loss) 12/31 Prior Year:",0]
[null,null,null,null,null,71,"Unrealized Profit or (Loss) 12/31 Current Year:",0]
[null,null,null,null,null,71,"Cost or Basis:",0]
[null,null,null,null,null,71,"Wash Sale Loss Disallowed:",0]
[null,null,null,null,null,71,"Accrued Market Discount Amount:",0]
[null,null,null,null,null,71,"Description:","0.774444 ETHEREUM CLASSIC TO US DOLLAR"]
[null,null,null,null,null,71,"Second Notice Indicator:","No Second Notice"]
[null,null,null,null,null,71,"Date Acquired:","00-00-0000"]
[null,null,null,null,null,71,"Noncovered Security Indicator:","Noncovered Security Basis not reported to IRS"]
[null,null,null,null,null,71,"Type of Gain or Loss Code:","Short-term"]
[null,null,null,null,null,71,"Applicable Check Box on Form 8949:","Short term transaction for which the cost or other basis is not being reported to the IRS"]
[null,null,null,null,null,71,"Loss Not Allowed Indicator:"]
[null,null,null,null,null,71,"FATCA Filing Requirement:","Box not checked no Filing Requirement"]
[null,null,null,null,null,71,"Proceeds from:","Box not checked"]
[null,null,null,null,null,71]
[null,null,null,null,null,71,"Form 1099-B Proceeds From Broker and Barter Exchange Transactions"]
[null,null,null,null,null,71]
[null,null,null,null,null,71]
[null,null,null,null,null,71,"Payer:"]
[null,null,null,null,null,71,"Payer's Federal Identification Number (FIN):464364776"]
[null,null,null,null,null,71,"ROBINHOOD CRYPTO LLC"]
[null,null,null,null,null,71,"85 WILLOW ROAD"]
[null,null,null,null,null,71,"MENLO PARK, CA 94025-0000"]
[null,null,null,null,null,71]
[null,null,null,null,null,71,"Recipient:"]
[null,null,null,null,null,71,"Recipient's Identification Number: 646-04-1329"]
[null,null,null,null,null,71,"NATHAN TUN"]
[null,null,null,null,null,71,"1416 MICHIGAN ST C2"]
[null,null,null,null,null,71,"STORM LAKE, IA 50588-0000"]
[null,null,null,null,null,71]
[null,null,null,null,null,71]
[null,null,null,null,null,71,"Submission Type:","Original document"]
[null,null,null,null,null,71,"Account Number (Optional):",188180243]
[null,null,null,null,null,71,"Date Sold or Disposed:","2021-05-10"]
[null,null,null,null,null,71,"CUSIP Number:","ETCUSD"]
[null,null,null,null,null,71,"Gross Proceeds:","Net Proceeds"]
[null,null,null,null,null,71,"Bartering:",0]
[null,null,null,null,null,71,"Federal Income Tax Withheld:",0]
[null,null,null,null,null,72,"Proceeds:",178]
[null,null,null,null,null,72,"Aggregate Profit or (Loss):",0]
[null,null,null,null,null,72,"Realized Profit or (Loss):",0]
[null,null,null,null,null,72,"Unrealized Profit or (Loss) 12/31 Prior Year:",0]
[null,null,null,null,null,72,"Unrealized Profit or (Loss) 12/31 Current Year:",0]
[null,null,null,null,null,72,"Cost or Basis:",0]
[null,null,null,null,null,72,"Wash Sale Loss Disallowed:",0]
[null,null,null,null,null,72,"Accrued Market Discount Amount:",0]
[null,null,null,null,null,72,"Description:","1.38416 ETHEREUM CLASSIC TO US DOLLAR"]
[null,null,null,null,null,72,"Second Notice Indicator:","No Second Notice"]
[null,null,null,null,null,72,"Date Acquired:","00-00-0000"]
[null,null,null,null,null,72,"Noncovered Security Indicator:","Noncovered Security Basis not reported to IRS"]
[null,null,null,null,null,72,"Type of Gain or Loss Code:","Short-term"]
[null,null,null,null,null,72,"Applicable Check Box on Form 8949:","Short term transaction for which the cost or other basis is not being reported to the IRS"]
[null,null,null,null,null,{"$f":"IF(OR(G2953=\"Proceeds:\",G2953=\"Interest:\"),1+F2952,F2952)","v":72},"Loss Not Allowed Indicator:"]
[null,null,null,null,null,72,"FATCA Filing Requirement:","Box not checked no Filing Requirement"]
[null,null,null,null,null,72,"Proceeds from:","Box not checked"]
[null,null,null,null,null,72]
[null,null,null,null,null,72,"Form 1099-B Proceeds From Broker and Barter Exchange Transactions"]
[null,null,null,null,null,72]
[null,null,null,null,null,72]
[null,null,null,null,null,72,"Payer:"]
[null,null,null,null,null,72,"Payer's Federal Identification Number (FIN):464364776"]
[null,null,null,null,null,72,"ROBINHOOD CRYPTO LLC"]
[null,null,null,null,null,72,"85 WILLOW ROAD"]
[null,null,null,null,null,72,"MENLO PARK, CA 94025-0000"]
[null,null,null,null,null,72]
[null,null,null,null,null,72,"Recipient:"]
[null,null,null,null,null,72,"Recipient's Identification Number: 646-04-1329"]
[null,null,null,null,null,72,"NATHAN TUN"]
[null,null,null,null,null,72,"1416 MICHIGAN ST C2"]
[null,null,null,null,null,72,"STORM LAKE, IA 50588-0000"]
[null,null,null,null,null,72]
[null,null,null,null,null,72]
[null,null,null,null,null,72,"Submission Type:","Original document"]
[null,null,null,null,null,72,"Account Number (Optional):",188180244]
[null,null,null,null,null,72,"Date Sold or Disposed:","2021-05-09"]
[null,null,null,null,null,72,"CUSIP Number:","ETCUSD"]
[null,null,null,null,null,72,"Gross Proceeds:","Net Proceeds"]
[null,null,null,null,null,72,"Bartering:",0]
[null,null,null,null,null,72,"Federal Income Tax Withheld:",0]
[null,null,null,null,null,73,"Proceeds:",95]
[null,null,null,null,null,73,"Aggregate Profit or (Loss):",0]
[null,null,null,null,null,73,"Realized Profit or (Loss):",0]
[null,null,null,null,null,73,"Unrealized Profit or (Loss) 12/31 Prior Year:",0]
[null,null,null,null,null,73,"Unrealized Profit or (Loss) 12/31 Current Year:",0]
[null,null,null,null,null,73,"Cost or Basis:",0]
[null,null,null,null,null,73,"Wash Sale Loss Disallowed:",0]
[null,null,null,null,null,73,"Accrued Market Discount Amount:",0]
[null,null,null,null,null,73,"Description:","0.645375 ETHEREUM CLASSIC TO US DOLLAR"]
[null,null,null,null,null,73,"Second Notice Indicator:","No Second Notice"]
[null,null,null,null,null,73,"Date Acquired:","00-00-0000"]
[null,null,null,null,null,73,"Noncovered Security Indicator:","Noncovered Security Basis not reported to IRS"]
[null,null,null,null,null,73,"Type of Gain or Loss Code:","Short-term"]
[null,null,null,null,null,73,"Applicable Check Box on Form 8949:","Short term transaction for which the cost or other basis is not being reported to the IRS"]
[null,null,null,null,null,73,"Loss Not Allowed Indicator:"]
[null,null,null,null,null,73,"FATCA Filing Requirement:","Box not checked no Filing Requirement"]
[null,null,null,null,null,73,"Proceeds from:","Box not checked"]
[null,null,null,null,null,73]
[null,null,null,null,null,73,"Form 1099-B Proceeds From Broker and Barter Exchange Transactions"]
[null,null,null,null,null,73]
[null,null,null,null,null,73]
[null,null,null,null,null,73,"Payer:"]
[null,null,null,null,null,73,"Payer's Federal Identification Number (FIN):464364776"]
[null,null,null,null,null,73,"ROBINHOOD CRYPTO LLC"]
[null,null,null,null,null,73,"85 WILLOW ROAD"]
[null,null,null,null,null,73,"MENLO PARK, CA 94025-0000"]
[null,null,null,null,null,73]
[null,null,null,null,null,73,"Recipient:"]
[null,null,null,null,null,73,"Recipient's Identification Number: 646-04-1329"]
[null,null,null,null,null,73,"NATHAN TUN"]
[null,null,null,null,null,73,"1416 MICHIGAN ST C2"]
[null,null,null,null,null,73,"STORM LAKE, IA 50588-0000"]
[null,null,null,null,null,73]
[null,null,null,null,null,73]
[null,null,null,null,null,73,"Submission Type:","Original document"]
[null,null,null,null,null,73,"Account Number (Optional):",188180245]
[null,null,null,null,null,73,"Date Sold or Disposed:","2021-05-09"]
[null,null,null,null,null,{"$f":"IF(OR(G3017=\"Proceeds:\",G3017=\"Interest:\"),1+F3016,F3016)","v":73},"CUSIP Number:","ETCUSD"]
[null,null,null,null,null,73,"Gross Proceeds:","Net Proceeds"]
[null,null,null,null,null,73,"Bartering:",0]
[null,null,null,null,null,73,"Federal Income Tax Withheld:",0]
[null,null,null,null,null,74,"Proceeds:",364]
[null,null,null,null,null,74,"Aggregate Profit or (Loss):",0]
[null,null,null,null,null,74,"Realized Profit or (Loss):",0]
[null,null,null,null,null,74,"Unrealized Profit or (Loss) 12/31 Prior Year:",0]
[null,null,null,null,null,74,"Unrealized Profit or (Loss) 12/31 Current Year:",0]
[null,null,null,null,null,74,"Cost or Basis:",0]
[null,null,null,null,null,74,"Wash Sale Loss Disallowed:",0]
[null,null,null,null,null,74,"Accrued Market Discount Amount:",0]
[null,null,null,null,null,74,"Description:","2.465 ETHEREUM CLASSIC TO US DOLLAR"]
[null,null,null,null,null,74,"Second Notice Indicator:","No Second Notice"]
[null,null,null,null,null,74,"Date Acquired:","00-00-0000"]
[null,null,null,null,null,74,"Noncovered Security Indicator:","Noncovered Security Basis not reported to IRS"]
[null,null,null,null,null,74,"Type of Gain or Loss Code:","Short-term"]
[null,null,null,null,null,74,"Applicable Check Box on Form 8949:","Short term transaction for which the cost or other basis is not being reported to the IRS"]
[null,null,null,null,null,74,"Loss Not Allowed Indicator:"]
[null,null,null,null,null,74,"FATCA Filing Requirement:","Box not checked no Filing Requirement"]
[null,null,null,null,null,74,"Proceeds from:","Box not checked"]
[null,null,null,null,null,74]
[null,null,null,null,null,74,"Form 1099-B Proceeds From Broker and Barter Exchange Transactions"]
[null,null,null,null,null,74]
[null,null,null,null,null,74]
[null,null,null,null,null,74,"Payer:"]
[null,null,null,null,null,74,"Payer's Federal Identification Number (FIN):464364776"]
[null,null,null,null,null,74,"ROBINHOOD CRYPTO LLC"]
[null,null,null,null,null,74,"85 WILLOW ROAD"]
[null,null,null,null,null,74,"MENLO PARK, CA 94025-0000"]
[null,null,null,null,null,74]
[null,null,null,null,null,74,"Recipient:"]
[null,null,null,null,null,74,"Recipient's Identification Number: 646-04-1329"]
[null,null,null,null,null,74,"NATHAN TUN"]
[null,null,null,null,null,74,"1416 MICHIGAN ST C2"]
[null,null,null,null,null,74,"STORM LAKE, IA 50588-0000"]
[null,null,null,null,null,74]
[null,null,null,null,null,74]
[null,null,null,null,null,74,"Submission Type:","Original document"]
[null,null,null,null,null,74,"Account Number (Optional):",188180246]
[null,null,null,null,null,74,"Date Sold or Disposed:","2021-05-09"]
[null,null,null,null,null,74,"CUSIP Number:","ETCUSD"]
[null,null,null,null,null,74,"Gross Proceeds:","Net Proceeds"]
[null,null,null,null,null,74,"Bartering:",0]
[null,null,null,null,null,74,"Federal Income Tax Withheld:",0]
[null,null,null,null,null,75,"Proceeds:",229]
[null,null,null,null,null,75,"Aggregate Profit or (Loss):",0]
[null,null,null,null,null,75,"Realized Profit or (Loss):",0]
[null,null,null,null,null,75,"Unrealized Profit or (Loss) 12/31 Prior Year:",0]
[null,null,null,null,null,75,"Unrealized Profit or (Loss) 12/31 Current Year:",0]
[null,null,null,null,null,75,"Cost or Basis:",0]
[null,null,null,null,null,75,"Wash Sale Loss Disallowed:",0]
[null,null,null,null,null,75,"Accrued Market Discount Amount:",0]
[null,null,null,null,null,75,"Description:","1.555 ETHEREUM CLASSIC TO US DOLLAR"]
[null,null,null,null,null,75,"Second Notice Indicator:","No Second Notice"]
[null,null,null,null,null,75,"Date Acquired:","00-00-0000"]
[null,null,null,null,null,75,"Noncovered Security Indicator:","Noncovered Security Basis not reported to IRS"]
[null,null,null,null,null,75,"Type of Gain or Loss Code:","Short-term"]
[null,null,null,null,null,75,"Applicable Check Box on Form 8949:","Short term transaction for which the cost or other basis is not being reported to the IRS"]
[null,null,null,null,null,75,"Loss Not Allowed Indicator:"]
[null,null,null,null,null,75,"FATCA Filing Requirement:","Box not checked no Filing Requirement"]
[null,null,null,null,null,75,"Proceeds from:","Box not checked"]
[null,null,null,null,null,75]
[null,null,null,null,null,75,"Form 1099-B Proceeds From Broker and Barter Exchange Transactions"]
[null,null,null,null,null,{"$f":"IF(OR(G3081=\"Proceeds:\",G3081=\"Interest:\"),1+F3080,F3080)","v":75}]
[null,null,null,null,null,75]
[null,null,null,null,null,75,"Payer:"]
[null,null,null,null,null,75,"Payer's Federal Identification Number (FIN):464364776"]
[null,null,null,null,null,75,"ROBINHOOD CRYPTO LLC"]
[null,null,null,null,null,75,"85 WILLOW ROAD"]
[null,null,null,null,null,75,"MENLO PARK, CA 94025-0000"]
[null,null,null,null,null,75]
[null,null,null,null,null,75,"Recipient:"]
[null,null,null,null,null,75,"Recipient's Identification Number: 646-04-1329"]
[null,null,null,null,null,75,"NATHAN TUN"]
[null,null,null,null,null,75,"1416 MICHIGAN ST C2"]
[null,null,null,null,null,75,"STORM LAKE, IA 50588-0000"]
[null,null,null,null,null,75]
[null,null,null,null,null,75]
[null,null,null,null,null,75,"Submission Type:","Original document"]
[null,null,null,null,null,75,"Account Number (Optional):",188180247]
[null,null,null,null,null,75,"Date Sold or Disposed:","2021-05-08"]
[null,null,null,null,null,75,"CUSIP Number:","ETCUSD"]
[null,null,null,null,null,75,"Gross Proceeds:","Net Proceeds"]
[null,null,null,null,null,75,"Bartering:",0]
[null,null,null,null,null,75,"Federal Income Tax Withheld:",0]
[null,null,null,null,null,76,"Proceeds:",426]
[null,null,null,null,null,76,"Aggregate Profit or (Loss):",0]
[null,null,null,null,null,76,"Realized Profit or (Loss):",0]
[null,null,null,null,null,76,"Unrealized Profit or (Loss) 12/31 Prior Year:",0]
[null,null,null,null,null,76,"Unrealized Profit or (Loss) 12/31 Current Year:",0]
[null,null,null,null,null,76,"Cost or Basis:",0]
[null,null,null,null,null,76,"Wash Sale Loss Disallowed:",0]
[null,null,null,null,null,76,"Accrued Market Discount Amount:",0]
[null,null,null,null,null,76,"Description:","3.333333 ETHEREUM CLASSIC TO US DOLLAR"]
[null,null,null,null,null,76,"Second Notice Indicator:","No Second Notice"]
[null,null,null,null,null,76,"Date Acquired:","00-00-0000"]
[null,null,null,null,null,76,"Noncovered Security Indicator:","Noncovered Security Basis not reported to IRS"]
[null,null,null,null,null,76,"Type of Gain or Loss Code:","Short-term"]
[null,null,null,null,null,76,"Applicable Check Box on Form 8949:","Short term transaction for which the cost or other basis is not being reported to the IRS"]
[null,null,null,null,null,76,"Loss Not Allowed Indicator:"]
[null,null,null,null,null,76,"FATCA Filing Requirement:","Box not checked no Filing Requirement"]
[null,null,null,null,null,76,"Proceeds from:","Box not checked"]
[null,null,null,null,null,76]
[null,null,null,null,null,76,"Form 1099-B Proceeds From Broker and Barter Exchange Transactions"]
[null,null,null,null,null,76]
[null,null,null,null,null,76]
[null,null,null,null,null,76,"Payer:"]
[null,null,null,null,null,76,"Payer's Federal Identification Number (FIN):464364776"]
[null,null,null,null,null,76,"ROBINHOOD CRYPTO LLC"]
[null,null,null,null,null,76,"85 WILLOW ROAD"]
[null,null,null,null,null,76,"MENLO PARK, CA 94025-0000"]
[null,null,null,null,null,76]
[null,null,null,null,null,76,"Recipient:"]
[null,null,null,null,null,76,"Recipient's Identification Number: 646-04-1329"]
[null,null,null,null,null,76,"NATHAN TUN"]
[null,null,null,null,null,76,"1416 MICHIGAN ST C2"]
[null,null,null,null,null,76,"STORM LAKE, IA 50588-0000"]
[null,null,null,null,null,76]
[null,null,null,null,null,76]
[null,null,null,null,null,76,"Submission Type:","Original document"]
[null,null,null,null,null,76,"Account Number (Optional):",188180248]
[null,null,null,null,null,76,"Date Sold or Disposed:","2021-05-14"]
[null,null,null,null,null,76,"CUSIP Number:","ETCUSD"]
[null,null,null,null,null,76,"Gross Proceeds:","Net Proceeds"]
[null,null,null,null,null,76,"Bartering:",0]
[null,null,null,null,null,76,"Federal Income Tax Withheld:",0]
[null,null,null,null,null,77,"Proceeds:",253]
[null,null,null,null,null,{"$f":"IF(OR(G3145=\"Proceeds:\",G3145=\"Interest:\"),1+F3144,F3144)","v":77},"Aggregate Profit or (Loss):",0]
[null,null,null,null,null,77,"Realized Profit or (Loss):",0]
[null,null,null,null,null,77,"Unrealized Profit or (Loss) 12/31 Prior Year:",0]
[null,null,null,null,null,77,"Unrealized Profit or (Loss) 12/31 Current Year:",0]
[null,null,null,null,null,77,"Cost or Basis:",0]
[null,null,null,null,null,77,"Wash Sale Loss Disallowed:",0]
[null,null,null,null,null,77,"Accrued Market Discount Amount:",0]
[null,null,null,null,null,77,"Description:","2.300017 ETHEREUM CLASSIC TO US DOLLAR"]
[null,null,null,null,null,77,"Second Notice Indicator:","No Second Notice"]
[null,null,null,null,null,77,"Date Acquired:","00-00-0000"]
[null,null,null,null,null,77,"Noncovered Security Indicator:","Noncovered Security Basis not reported to IRS"]
[null,null,null,null,null,77,"Type of Gain or Loss Code:","Short-term"]
[null,null,null,null,null,77,"Applicable Check Box on Form 8949:","Short term transaction for which the cost or other basis is not being reported to the IRS"]
[null,null,null,null,null,77,"Loss Not Allowed Indicator:"]
[null,null,null,null,null,77,"FATCA Filing Requirement:","Box not checked no Filing Requirement"]
[null,null,null,null,null,77,"Proceeds from:","Box not checked"]
[null,null,null,null,null,77]
[null,null,null,null,null,77,"Form 1099-B Proceeds From Broker and Barter Exchange Transactions"]
[null,null,null,null,null,77]
[null,null,null,null,null,77]
[null,null,null,null,null,77,"Payer:"]
[null,null,null,null,null,77,"Payer's Federal Identification Number (FIN):464364776"]
[null,null,null,null,null,77,"ROBINHOOD CRYPTO LLC"]
[null,null,null,null,null,77,"85 WILLOW ROAD"]
[null,null,null,null,null,77,"MENLO PARK, CA 94025-0000"]
[null,null,null,null,null,77]
[null,null,null,null,null,77,"Recipient:"]
[null,null,null,null,null,77,"Recipient's Identification Number: 646-04-1329"]
[null,null,null,null,null,77,"NATHAN TUN"]
[null,null,null,null,null,77,"1416 MICHIGAN ST C2"]
[null,null,null,null,null,77,"STORM LAKE, IA 50588-0000"]
[null,null,null,null,null,77]
[null,null,null,null,null,77]
[null,null,null,null,null,77,"Submission Type:","Original document"]
[null,null,null,null,null,77,"Account Number (Optional):",188180249]
[null,null,null,null,null,77,"Date Sold or Disposed:","2021-05-14"]
[null,null,null,null,null,77,"CUSIP Number:","ETCUSD"]
[null,null,null,null,null,77,"Gross Proceeds:","Net Proceeds"]
[null,null,null,null,null,77,"Bartering:",0]
[null,null,null,null,null,77,"Federal Income Tax Withheld:",0]
[null,null,null,null,null,78,"Proceeds:",361]
[null,null,null,null,null,78,"Aggregate Profit or (Loss):",0]
[null,null,null,null,null,78,"Realized Profit or (Loss):",0]
[null,null,null,null,null,78,"Unrealized Profit or (Loss) 12/31 Prior Year:",0]
[null,null,null,null,null,78,"Unrealized Profit or (Loss) 12/31 Current Year:",0]
[null,null,null,null,null,78,"Cost or Basis:",0]
[null,null,null,null,null,78,"Wash Sale Loss Disallowed:",0]
[null,null,null,null,null,78,"Accrued Market Discount Amount:",0]
[null,null,null,null,null,78,"Description:","3.283645 ETHEREUM CLASSIC TO US DOLLAR"]
[null,null,null,null,null,78,"Second Notice Indicator:","No Second Notice"]
[null,null,null,null,null,78,"Date Acquired:","00-00-0000"]
[null,null,null,null,null,78,"Noncovered Security Indicator:","Noncovered Security Basis not reported to IRS"]
[null,null,null,null,null,78,"Type of Gain or Loss Code:","Short-term"]
[null,null,null,null,null,78,"Applicable Check Box on Form 8949:","Short term transaction for which the cost or other basis is not being reported to the IRS"]
[null,null,null,null,null,78,"Loss Not Allowed Indicator:"]
[null,null,null,null,null,78,"FATCA Filing Requirement:","Box not checked no Filing Requirement"]
[null,null,null,null,null,78,"Proceeds from:","Box not checked"]
[null,null,null,null,null,78]
[null,null,null,null,null,78,"Form 1099-B Proceeds From Broker and Barter Exchange Transactions"]
[null,null,null,null,null,78]
[null,null,null,null,null,78]
[null,null,null,null,null,78,"Payer:"]
[null,null,null,null,null,78,"Payer's Federal Identification Number (FIN):464364776"]
[null,null,null,null,null,78,"ROBINHOOD CRYPTO LLC"]
[null,null,null,null,null,{"$f":"IF(OR(G3209=\"Proceeds:\",G3209=\"Interest:\"),1+F3208,F3208)","v":78},"85 WILLOW ROAD"]
[null,null,null,null,null,78,"MENLO PARK, CA 94025-0000"]
[null,null,null,null,null,78]
[null,null,null,null,null,78,"Recipient:"]
[null,null,null,null,null,78,"Recipient's Identification Number: 646-04-1329"]
[null,null,null,null,null,78,"NATHAN TUN"]
[null,null,null,null,null,78,"1416 MICHIGAN ST C2"]
[null,null,null,null,null,78,"STORM LAKE, IA 50588-0000"]
[null,null,null,null,null,78]
[null,null,null,null,null,78]
[null,null,null,null,null,78,"Submission Type:","Original document"]
[null,null,null,null,null,78,"Account Number (Optional):",188180250]
[null,null,null,null,null,78,"Date Sold or Disposed:","2021-05-14"]
[null,null,null,null,null,78,"CUSIP Number:","ETCUSD"]
[null,null,null,null,null,78,"Gross Proceeds:","Net Proceeds"]
[null,null,null,null,null,78,"Bartering:",0]
[null,null,null,null,null,78,"Federal Income Tax Withheld:",0]
[null,null,null,null,null,79,"Proceeds:",244]
[null,null,null,null,null,79,"Aggregate Profit or (Loss):",0]
[null,null,null,null,null,79,"Realized Profit or (Loss):",0]
[null,null,null,null,null,79,"Unrealized Profit or (Loss) 12/31 Prior Year:",0]
[null,null,null,null,null,79,"Unrealized Profit or (Loss) 12/31 Current Year:",0]
[null,null,null,null,null,79,"Cost or Basis:",0]
[null,null,null,null,null,79,"Wash Sale Loss Disallowed:",0]
[null,null,null,null,null,79,"Accrued Market Discount Amount:",0]
[null,null,null,null,null,79,"Description:","2.22 ETHEREUM CLASSIC TO US DOLLAR"]
[null,null,null,null,null,79,"Second Notice Indicator:","No Second Notice"]
[null,null,null,null,null,79,"Date Acquired:","00-00-0000"]
[null,null,null,null,null,79,"Noncovered Security Indicator:","Noncovered Security Basis not reported to IRS"]
[null,null,null,null,null,79,"Type of Gain or Loss Code:","Short-term"]
[null,null,null,null,null,79,"Applicable Check Box on Form 8949:","Short term transaction for which the cost or other basis is not being reported to the IRS"]
[null,null,null,null,null,79,"Loss Not Allowed Indicator:"]
[null,null,null,null,null,79,"FATCA Filing Requirement:","Box not checked no Filing Requirement"]
[null,null,null,null,null,79,"Proceeds from:","Box not checked"]
[null,null,null,null,null,79]
[null,null,null,null,null,79,"Form 1099-B Proceeds From Broker and Barter Exchange Transactions"]
[null,null,null,null,null,79]
[null,null,null,null,null,79]
[null,null,null,null,null,79,"Payer:"]
[null,null,null,null,null,79,"Payer's Federal Identification Number (FIN):464364776"]
[null,null,null,null,null,79,"ROBINHOOD CRYPTO LLC"]
[null,null,null,null,null,79,"85 WILLOW ROAD"]
[null,null,null,null,null,79,"MENLO PARK, CA 94025-0000"]
[null,null,null,null,null,79]
[null,null,null,null,null,79,"Recipient:"]
[null,null,null,null,null,79,"Recipient's Identification Number: 646-04-1329"]
[null,null,null,null,null,79,"NATHAN TUN"]
[null,null,null,null,null,79,"1416 MICHIGAN ST C2"]
[null,null,null,null,null,79,"STORM LAKE, IA 50588-0000"]
[null,null,null,null,null,79]
[null,null,null,null,null,79]
[null,null,null,null,null,79,"Submission Type:","Original document"]
[null,null,null,null,null,79,"Account Number (Optional):",188180251]
[null,null,null,null,null,79,"Date Sold or Disposed:","2021-05-14"]
[null,null,null,null,null,79,"CUSIP Number:","ETCUSD"]
[null,null,null,null,null,79,"Gross Proceeds:","Net Proceeds"]
[null,null,null,null,null,79,"Bartering:",0]
[null,null,null,null,null,79,"Federal Income Tax Withheld:",0]
[null,null,null,null,null,80,"Proceeds:",331]
[null,null,null,null,null,80,"Aggregate Profit or (Loss):",0]
[null,null,null,null,null,80,"Realized Profit or (Loss):",0]
[null,null,null,null,null,80,"Unrealized Profit or (Loss) 12/31 Prior Year:",0]
[null,null,null,null,null,80,"Unrealized Profit or (Loss) 12/31 Current Year:",0]
[null,null,null,null,null,80,"Cost or Basis:",0]
[null,null,null,null,null,{"$f":"IF(OR(G3273=\"Proceeds:\",G3273=\"Interest:\"),1+F3272,F3272)","v":80},"Wash Sale Loss Disallowed:",0]
[null,null,null,null,null,80,"Accrued Market Discount Amount:",0]
[null,null,null,null,null,80,"Description:","3.007888 ETHEREUM CLASSIC TO US DOLLAR"]
[null,null,null,null,null,80,"Second Notice Indicator:","No Second Notice"]
[null,null,null,null,null,80,"Date Acquired:","00-00-0000"]
[null,null,null,null,null,80,"Noncovered Security Indicator:","Noncovered Security Basis not reported to IRS"]
[null,null,null,null,null,80,"Type of Gain or Loss Code:","Short-term"]
[null,null,null,null,null,80,"Applicable Check Box on Form 8949:","Short term transaction for which the cost or other basis is not being reported to the IRS"]
[null,null,null,null,null,80,"Loss Not Allowed Indicator:"]
[null,null,null,null,null,80,"FATCA Filing Requirement:","Box not checked no Filing Requirement"]
[null,null,null,null,null,80,"Proceeds from:","Box not checked"]
[null,null,null,null,null,80]
[null,null,null,null,null,80,"Form 1099-B Proceeds From Broker and Barter Exchange Transactions"]
[null,null,null,null,null,80]
[null,null,null,null,null,80]
[null,null,null,null,null,80,"Payer:"]
[null,null,null,null,null,80,"Payer's Federal Identification Number (FIN):464364776"]
[null,null,null,null,null,80,"ROBINHOOD CRYPTO LLC"]
[null,null,null,null,null,80,"85 WILLOW ROAD"]
[null,null,null,null,null,80,"MENLO PARK, CA 94025-0000"]
[null,null,null,null,null,80]
[null,null,null,null,null,80,"Recipient:"]
[null,null,null,null,null,80,"Recipient's Identification Number: 646-04-1329"]
[null,null,null,null,null,80,"NATHAN TUN"]
[null,null,null,null,null,80,"1416 MICHIGAN ST C2"]
[null,null,null,null,null,80,"STORM LAKE, IA 50588-0000"]
[null,null,null,null,null,80]
[null,null,null,null,null,80]
[null,null,null,null,null,80,"Submission Type:","Original document"]
[null,null,null,null,null,80,"Account Number (Optional):",188180252]
[null,null,null,null,null,80,"Date Sold or Disposed:","2021-06-02"]
[null,null,null,null,null,80,"CUSIP Number:","ETCUSD"]
[null,null,null,null,null,80,"Gross Proceeds:","Net Proceeds"]
[null,null,null,null,null,80,"Bartering:",0]
[null,null,null,null,null,80,"Federal Income Tax Withheld:",0]
[null,null,null,null,null,81,"Proceeds:",529]
[null,null,null,null,null,81,"Aggregate Profit or (Loss):",0]
[null,null,null,null,null,81,"Realized Profit or (Loss):",0]
[null,null,null,null,null,81,"Unrealized Profit or (Loss) 12/31 Prior Year:",0]
[null,null,null,null,null,81,"Unrealized Profit or (Loss) 12/31 Current Year:",0]
[null,null,null,null,null,81,"Cost or Basis:",0]
[null,null,null,null,null,81,"Wash Sale Loss Disallowed:",0]
[null,null,null,null,null,81,"Accrued Market Discount Amount:",0]
[null,null,null,null,null,81,"Description:","7.702071 ETHEREUM CLASSIC TO US DOLLAR"]
[null,null,null,null,null,81,"Second Notice Indicator:","No Second Notice"]
[null,null,null,null,null,81,"Date Acquired:","00-00-0000"]
[null,null,null,null,null,81,"Noncovered Security Indicator:","Noncovered Security Basis not reported to IRS"]
[null,null,null,null,null,81,"Type of Gain or Loss Code:","Short-term"]
[null,null,null,null,null,81,"Applicable Check Box on Form 8949:","Short term transaction for which the cost or other basis is not being reported to the IRS"]
[null,null,null,null,null,81,"Loss Not Allowed Indicator:"]
[null,null,null,null,null,81,"FATCA Filing Requirement:","Box not checked no Filing Requirement"]
[null,null,null,null,null,81,"Proceeds from:","Box not checked"]
[null,null,null,null,null,81]
[null,null,null,null,null,81,"Form 1099-B Proceeds From Broker and Barter Exchange Transactions"]
[null,null,null,null,null,81]
[null,null,null,null,null,81]
[null,null,null,null,null,81,"Payer:"]
[null,null,null,null,null,81,"Payer's Federal Identification Number (FIN):464364776"]
[null,null,null,null,null,81,"ROBINHOOD CRYPTO LLC"]
[null,null,null,null,null,81,"85 WILLOW ROAD"]
[null,null,null,null,null,81,"MENLO PARK, CA 94025-0000"]
[null,null,null,null,null,81]
[null,null,null,null,null,81,"Recipient:"]
[null,null,null,null,null,81,"Recipient's Identification Number: 646-04-1329"]
[null,null,null,null,null,{"$f":"IF(OR(G3337=\"Proceeds:\",G3337=\"Interest:\"),1+F3336,F3336)","v":81},"NATHAN TUN"]
[null,null,null,null,null,81,"1416 MICHIGAN ST C2"]
[null,null,null,null,null,81,"STORM LAKE, IA 50588-0000"]
[null,null,null,null,null,81]
[null,null,null,null,null,81]
[null,null,null,null,null,81,"Submission Type:","Original document"]
[null,null,null,null,null,81,"Account Number (Optional):",188180253]
[null,null,null,null,null,81,"Date Sold or Disposed:","2021-06-09"]
[null,null,null,null,null,81,"CUSIP Number:","ETCUSD"]
[null,null,null,null,null,81,"Gross Proceeds:","Net Proceeds"]
[null,null,null,null,null,81,"Bartering:",0]
[null,null,null,null,null,81,"Federal Income Tax Withheld:",0]
[null,null,null,null,null,82,"Proceeds:",571]
[null,null,null,null,null,82,"Aggregate Profit or (Loss):",0]
[null,null,null,null,null,82,"Realized Profit or (Loss):",0]
[null,null,null,null,null,82,"Unrealized Profit or (Loss) 12/31 Prior Year:",0]
[null,null,null,null,null,82,"Unrealized Profit or (Loss) 12/31 Current Year:",0]
[null,null,null,null,null,82,"Cost or Basis:",0]
[null,null,null,null,null,82,"Wash Sale Loss Disallowed:",0]
[null,null,null,null,null,82,"Accrued Market Discount Amount:",0]
[null,null,null,null,null,82,"Description:","9.546732 ETHEREUM CLASSIC TO US DOLLAR"]
[null,null,null,null,null,82,"Second Notice Indicator:","No Second Notice"]
[null,null,null,null,null,82,"Date Acquired:","00-00-0000"]
[null,null,null,null,null,82,"Noncovered Security Indicator:","Noncovered Security Basis not reported to IRS"]
[null,null,null,null,null,82,"Type of Gain or Loss Code:","Short-term"]
[null,null,null,null,null,82,"Applicable Check Box on Form 8949:","Short term transaction for which the cost or other basis is not being reported to the IRS"]
[null,null,null,null,null,82,"Loss Not Allowed Indicator:"]
[null,null,null,null,null,82,"FATCA Filing Requirement:","Box not checked no Filing Requirement"]
[null,null,null,null,null,82,"Proceeds from:","Box not checked"]
[null,null,null,null,null,82]
[null,null,null,null,null,82,"Form 1099-B Proceeds From Broker and Barter Exchange Transactions"]
[null,null,null,null,null,82]
[null,null,null,null,null,82]
[null,null,null,null,null,82,"Payer:"]
[null,null,null,null,null,82,"Payer's Federal Identification Number (FIN):464364776"]
[null,null,null,null,null,82,"ROBINHOOD CRYPTO LLC"]
[null,null,null,null,null,82,"85 WILLOW ROAD"]
[null,null,null,null,null,82,"MENLO PARK, CA 94025-0000"]
[null,null,null,null,null,82]
[null,null,null,null,null,82,"Recipient:"]
[null,null,null,null,null,82,"Recipient's Identification Number: 646-04-1329"]
[null,null,null,null,null,82,"NATHAN TUN"]
[null,null,null,null,null,82,"1416 MICHIGAN ST C2"]
[null,null,null,null,null,82,"STORM LAKE, IA 50588-0000"]
[null,null,null,null,null,82]
[null,null,null,null,null,82]
[null,null,null,null,null,82,"Submission Type:","Original document"]
[null,null,null,null,null,82,"Account Number (Optional):",188180254]
[null,null,null,null,null,82,"Date Sold or Disposed:","2021-06-30"]
[null,null,null,null,null,82,"CUSIP Number:","ETCUSD"]
[null,null,null,null,null,82,"Gross Proceeds:","Net Proceeds"]
[null,null,null,null,null,82,"Bartering:",0]
[null,null,null,null,null,82,"Federal Income Tax Withheld:",0]
[null,null,null,null,null,83,"Proceeds:",601]
[null,null,null,null,null,83,"Aggregate Profit or (Loss):",0]
[null,null,null,null,null,83,"Realized Profit or (Loss):",0]
[null,null,null,null,null,83,"Unrealized Profit or (Loss) 12/31 Prior Year:",0]
[null,null,null,null,null,83,"Unrealized Profit or (Loss) 12/31 Current Year:",0]
[null,null,null,null,null,83,"Cost or Basis:",0]
[null,null,null,null,null,83,"Wash Sale Loss Disallowed:",0]
[null,null,null,null,null,83,"Accrued Market Discount Amount:",0]
[null,null,null,null,null,83,"Description:","10.68947 ETHEREUM CLASSIC TO US DOLLAR"]
[null,null,null,null,null,83,"Second Notice Indicator:","No Second Notice"]
[null,null,null,null,null,83,"Date Acquired:","00-00-0000"]
[null,null,null,null,null,{"$f":"IF(OR(G3401=\"Proceeds:\",G3401=\"Interest:\"),1+F3400,F3400)","v":83},"Noncovered Security Indicator:","Noncovered Security Basis not reported to IRS"]
[null,null,null,null,null,83,"Type of Gain or Loss Code:","Short-term"]
[null,null,null,null,null,83,"Applicable Check Box on Form 8949:","Short term transaction for which the cost or other basis is not being reported to the IRS"]
[null,null,null,null,null,83,"Loss Not Allowed Indicator:"]
[null,null,null,null,null,83,"FATCA Filing Requirement:","Box not checked no Filing Requirement"]
[null,null,null,null,null,83,"Proceeds from:","Box not checked"]
[null,null,null,null,null,83]
[null,null,null,null,null,83,"Form 1099-B Proceeds From Broker and Barter Exchange Transactions"]
[null,null,null,null,null,83]
[null,null,null,null,null,83]
[null,null,null,null,null,83,"Payer:"]
[null,null,null,null,null,83,"Payer's Federal Identification Number (FIN):464364776"]
[null,null,null,null,null,83,"ROBINHOOD CRYPTO LLC"]
[null,null,null,null,null,83,"85 WILLOW ROAD"]
[null,null,null,null,null,83,"MENLO PARK, CA 94025-0000"]
[null,null,null,null,null,83]
[null,null,null,null,null,83,"Recipient:"]
[null,null,null,null,null,83,"Recipient's Identification Number: 646-04-1329"]
[null,null,null,null,null,83,"NATHAN TUN"]
[null,null,null,null,null,83,"1416 MICHIGAN ST C2"]
[null,null,null,null,null,83,"STORM LAKE, IA 50588-0000"]
[null,null,null,null,null,83]
[null,null,null,null,null,83]
[null,null,null,null,null,83,"Submission Type:","Original document"]
[null,null,null,null,null,83,"Account Number (Optional):",188180255]
[null,null,null,null,null,83,"Date Sold or Disposed:","2021-07-02"]
[null,null,null,null,null,83,"CUSIP Number:","ETCUSD"]
[null,null,null,null,null,83,"Gross Proceeds:","Net Proceeds"]
[null,null,null,null,null,83,"Bartering:",0]
[null,null,null,null,null,83,"Federal Income Tax Withheld:",0]
[null,null,null,null,null,84,"Proceeds:",564]
[null,null,null,null,null,84,"Aggregate Profit or (Loss):",0]
[null,null,null,null,null,84,"Realized Profit or (Loss):",0]
[null,null,null,null,null,84,"Unrealized Profit or (Loss) 12/31 Prior Year:",0]
[null,null,null,null,null,84,"Unrealized Profit or (Loss) 12/31 Current Year:",0]
[null,null,null,null,null,84,"Cost or Basis:",0]
[null,null,null,null,null,84,"Wash Sale Loss Disallowed:",0]
[null,null,null,null,null,84,"Accrued Market Discount Amount:",0]
[null,null,null,null,null,84,"Description:","10.636312 ETHEREUM CLASSIC TO US DOLLAR"]
[null,null,null,null,null,84,"Second Notice Indicator:","No Second Notice"]
[null,null,null,null,null,84,"Date Acquired:","00-00-0000"]
[null,null,null,null,null,84,"Noncovered Security Indicator:","Noncovered Security Basis not reported to IRS"]
[null,null,null,null,null,84,"Type of Gain or Loss Code:","Short-term"]
[null,null,null,null,null,84,"Applicable Check Box on Form 8949:","Short term transaction for which the cost or other basis is not being reported to the IRS"]
[null,null,null,null,null,84,"Loss Not Allowed Indicator:"]
[null,null,null,null,null,84,"FATCA Filing Requirement:","Box not checked no Filing Requirement"]
[null,null,null,null,null,84,"Proceeds from:","Box not checked"]
[null,null,null,null,null,84]
[null,null,null,null,null,84,"Form 1099-B Proceeds From Broker and Barter Exchange Transactions"]
[null,null,null,null,null,84]
[null,null,null,null,null,84]
[null,null,null,null,null,84,"Payer:"]
[null,null,null,null,null,84,"Payer's Federal Identification Number (FIN):464364776"]
[null,null,null,null,null,84,"ROBINHOOD CRYPTO LLC"]
[null,null,null,null,null,84,"85 WILLOW ROAD"]
[null,null,null,null,null,84,"MENLO PARK, CA 94025-0000"]
[null,null,null,null,null,84]
[null,null,null,null,null,84,"Recipient:"]
[null,null,null,null,null,84,"Recipient's Identification Number: 646-04-1329"]
[null,null,null,null,null,84,"NATHAN TUN"]
[null,null,null,null,null,84,"1416 MICHIGAN ST C2"]
[null,null,null,null,null,84,"STORM LAKE, IA 50588-0000"]
[null,null,null,null,null,84]
[null,null,null,null,null,84]
[null,null,null,null,null,{"$f":"IF(OR(G3465=\"Proceeds:\",G3465=\"Interest:\"),1+F3464,F3464)","v":84},"Submission Type:","Original document"]
[null,null,null,null,null,84,"Account Number (Optional):",188180256]
[null,null,null,null,null,84,"Date Sold or Disposed:","2021-08-21"]
[null,null,null,null,null,84,"CUSIP Number:","ETCUSD"]
[null,null,null,null,null,84,"Gross Proceeds:","Net Proceeds"]
[null,null,null,null,null,84,"Bartering:",0]
[null,null,null,null,null,84,"Federal Income Tax Withheld:",0]
[null,null,null,null,null,85,"Proceeds:",443]
[null,null,null,null,null,85,"Aggregate Profit or (Loss):",0]
[null,null,null,null,null,85,"Realized Profit or (Loss):",0]
[null,null,null,null,null,85,"Unrealized Profit or (Loss) 12/31 Prior Year:",0]
[null,null,null,null,null,85,"Unrealized Profit or (Loss) 12/31 Current Year:",0]
[null,null,null,null,null,85,"Cost or Basis:",0]
[null,null,null,null,null,85,"Wash Sale Loss Disallowed:",0]
[null,null,null,null,null,85,"Accrued Market Discount Amount:",0]
[null,null,null,null,null,85,"Description:","6.549127 ETHEREUM CLASSIC TO US DOLLAR"]
[null,null,null,null,null,85,"Second Notice Indicator:","No Second Notice"]
[null,null,null,null,null,85,"Date Acquired:","00-00-0000"]
[null,null,null,null,null,85,"Noncovered Security Indicator:","Noncovered Security Basis not reported to IRS"]
[null,null,null,null,null,85,"Type of Gain or Loss Code:","Short-term"]
[null,null,null,null,null,85,"Applicable Check Box on Form 8949:","Short term transaction for which the cost or other basis is not being reported to the IRS"]
[null,null,null,null,null,85,"Loss Not Allowed Indicator:"]
[null,null,null,null,null,85,"FATCA Filing Requirement:","Box not checked no Filing Requirement"]
[null,null,null,null,null,85,"Proceeds from:","Box not checked"]
[null,null,null,null,null,85]
[null,null,null,null,null,85,"Form 1099-B Proceeds From Broker and Barter Exchange Transactions"]
[null,null,null,null,null,85]
[null,null,null,null,null,85]
[null,null,null,null,null,85,"Payer:"]
[null,null,null,null,null,85,"Payer's Federal Identification Number (FIN):464364776"]
[null,null,null,null,null,85,"ROBINHOOD CRYPTO LLC"]
[null,null,null,null,null,85,"85 WILLOW ROAD"]
[null,null,null,null,null,85,"MENLO PARK, CA 94025-0000"]
[null,null,null,null,null,85]
[null,null,null,null,null,85,"Recipient:"]
[null,null,null,null,null,85,"Recipient's Identification Number: 646-04-1329"]
[null,null,null,null,null,85,"NATHAN TUN"]
[null,null,null,null,null,85,"1416 MICHIGAN ST C2"]
[null,null,null,null,null,85,"STORM LAKE, IA 50588-0000"]
[null,null,null,null,null,85]
[null,null,null,null,null,85]
[null,null,null,null,null,85,"Submission Type:","Original document"]
[null,null,null,null,null,85,"Account Number (Optional):",188180257]
[null,null,null,null,null,85,"Date Sold or Disposed:","2021-05-04"]
[null,null,null,null,null,85,"CUSIP Number:","LTCUSD"]
[null,null,null,null,null,85,"Gross Proceeds:","Net Proceeds"]
[null,null,null,null,null,85,"Bartering:",0]
[null,null,null,null,null,85,"Federal Income Tax Withheld:",0]
[null,null,null,null,null,86,"Proceeds:",306]
[null,null,null,null,null,86,"Aggregate Profit or (Loss):",0]
[null,null,null,null,null,86,"Realized Profit or (Loss):",0]
[null,null,null,null,null,86,"Unrealized Profit or (Loss) 12/31 Prior Year:",0]
[null,null,null,null,null,86,"Unrealized Profit or (Loss) 12/31 Current Year:",0]
[null,null,null,null,null,86,"Cost or Basis:",0]
[null,null,null,null,null,86,"Wash Sale Loss Disallowed:",0]
[null,null,null,null,null,86,"Accrued Market Discount Amount:",0]
[null,null,null,null,null,86,"Description:","0.97619486 LITECOIN TO US DOLLAR"]
[null,null,null,null,null,86,"Second Notice Indicator:","No Second Notice"]
[null,null,null,null,null,86,"Date Acquired:","00-00-0000"]
[null,null,null,null,null,86,"Noncovered Security Indicator:","Noncovered Security Basis not reported to IRS"]
[null,null,null,null,null,86,"Type of Gain or Loss Code:","Short-term"]
[null,null,null,null,null,86,"Applicable Check Box on Form 8949:","Short term transaction for which the cost or other basis is not being reported to the IRS"]
[null,null,null,null,null,86,"Loss Not Allowed Indicator:"]
[null,null,null,null,null,86,"FATCA Filing Requirement:","Box not checked no Filing Requirement"]
[null,null,null,null,null,{"$f":"IF(OR(G3529=\"Proceeds:\",G3529=\"Interest:\"),1+F3528,F3528)","v":86},"Proceeds from:","Box not checked"]
[null,null,null,null,null,86]
[null,null,null,null,null,86,"Form 1099-B Proceeds From Broker and Barter Exchange Transactions"]
[null,null,null,null,null,86]
[null,null,null,null,null,86]
[null,null,null,null,null,86,"Payer:"]
[null,null,null,null,null,86,"Payer's Federal Identification Number (FIN):464364776"]
[null,null,null,null,null,86,"ROBINHOOD CRYPTO LLC"]
[null,null,null,null,null,86,"85 WILLOW ROAD"]
[null,null,null,null,null,86,"MENLO PARK, CA 94025-0000"]
[null,null,null,null,null,86]
[null,null,null,null,null,86,"Recipient:"]
[null,null,null,null,null,86,"Recipient's Identification Number: 646-04-1329"]
[null,null,null,null,null,86,"NATHAN TUN"]
[null,null,null,null,null,86,"1416 MICHIGAN ST C2"]
[null,null,null,null,null,86,"STORM LAKE, IA 50588-0000"]
[null,null,null,null,null,86]
[null,null,null,null,null,86]
[null,null,null,null,null,86,"Submission Type:","Original document"]
[null,null,null,null,null,86,"Account Number (Optional):",188180258]
[null,null,null,null,null,86,"Date Sold or Disposed:","2021-05-04"]
[null,null,null,null,null,86,"CUSIP Number:","LTCUSD"]
[null,null,null,null,null,86,"Gross Proceeds:","Net Proceeds"]
[null,null,null,null,null,86,"Bartering:",0]
[null,null,null,null,null,86,"Federal Income Tax Withheld:",0]
[null,null,null,null,null,87,"Proceeds:",40]
[null,null,null,null,null,87,"Aggregate Profit or (Loss):",0]
[null,null,null,null,null,87,"Realized Profit or (Loss):",0]
[null,null,null,null,null,87,"Unrealized Profit or (Loss) 12/31 Prior Year:",0]
[null,null,null,null,null,87,"Unrealized Profit or (Loss) 12/31 Current Year:",0]
[null,null,null,null,null,87,"Cost or Basis:",0]
[null,null,null,null,null,87,"Wash Sale Loss Disallowed:",0]
[null,null,null,null,null,87,"Accrued Market Discount Amount:",0]
[null,null,null,null,null,87,"Description:","0.14312294 LITECOIN TO US DOLLAR"]
[null,null,null,null,null,87,"Second Notice Indicator:","No Second Notice"]
[null,null,null,null,null,87,"Date Acquired:","00-00-0000"]
[null,null,null,null,null,87,"Noncovered Security Indicator:","Noncovered Security Basis not reported to IRS"]
[null,null,null,null,null,87,"Type of Gain or Loss Code:","Short-term"]
[null,null,null,null,null,87,"Applicable Check Box on Form 8949:","Short term transaction for which the cost or other basis is not being reported to the IRS"]
[null,null,null,null,null,87,"Loss Not Allowed Indicator:"]
[null,null,null,null,null,87,"FATCA Filing Requirement:","Box not checked no Filing Requirement"]
[null,null,null,null,null,87,"Proceeds from:","Box not checked"]
[null,null,null,null,null,87]
[null,null,null,null,null,87,"Form 1099-B Proceeds From Broker and Barter Exchange Transactions"]
[null,null,null,null,null,87]
[null,null,null,null,null,87]
[null,null,null,null,null,87,"Payer:"]
[null,null,null,null,null,87,"Payer's Federal Identification Number (FIN):464364776"]
[null,null,null,null,null,87,"ROBINHOOD CRYPTO LLC"]
[null,null,null,null,null,87,"85 WILLOW ROAD"]
[null,null,null,null,null,87,"MENLO PARK, CA 94025-0000"]
[null,null,null,null,null,87]
[null,null,null,null,null,87,"Recipient:"]
[null,null,null,null,null,87,"Recipient's Identification Number: 646-04-1329"]
[null,null,null,null,null,87,"NATHAN TUN"]
[null,null,null,null,null,87,"1416 MICHIGAN ST C2"]
[null,null,null,null,null,87,"STORM LAKE, IA 50588-0000"]
[null,null,null,null,null,87]
[null,null,null,null,null,87]
[null,null,null,null,null,87,"Submission Type:","Original document"]
[null,null,null,null,null,87,"Account Number (Optional):",188180259]
[null,null,null,null,null,87,"Date Sold or Disposed:","2021-05-05"]
[null,null,null,null,null,87,"CUSIP Number:","LTCUSD"]
[null,null,null,null,null,87,"Gross Proceeds:","Net Proceeds"]
[null,null,null,null,null,{"$f":"IF(OR(G3593=\"Proceeds:\",G3593=\"Interest:\"),1+F3592,F3592)","v":87},"Bartering:",0]
[null,null,null,null,null,87,"Federal Income Tax Withheld:",0]
[null,null,null,null,null,88,"Proceeds:",5]
[null,null,null,null,null,88,"Aggregate Profit or (Loss):",0]
[null,null,null,null,null,88,"Realized Profit or (Loss):",0]
[null,null,null,null,null,88,"Unrealized Profit or (Loss) 12/31 Prior Year:",0]
[null,null,null,null,null,88,"Unrealized Profit or (Loss) 12/31 Current Year:",0]
[null,null,null,null,null,88,"Cost or Basis:",0]
[null,null,null,null,null,88,"Wash Sale Loss Disallowed:",0]
[null,null,null,null,null,88,"Accrued Market Discount Amount:",0]
[null,null,null,null,null,88,"Description:","0.01530315 LITECOIN TO US DOLLAR"]
[null,null,null,null,null,88,"Second Notice Indicator:","No Second Notice"]
[null,null,null,null,null,88,"Date Acquired:","00-00-0000"]
[null,null,null,null,null,88,"Noncovered Security Indicator:","Noncovered Security Basis not reported to IRS"]
[null,null,null,null,null,88,"Type of Gain or Loss Code:","Short-term"]
[null,null,null,null,null,88,"Applicable Check Box on Form 8949:","Short term transaction for which the cost or other basis is not being reported to the IRS"]
[null,null,null,null,null,88,"Loss Not Allowed Indicator:"]
[null,null,null,null,null,88,"FATCA Filing Requirement:","Box not checked no Filing Requirement"]
[null,null,null,null,null,88,"Proceeds from:","Box not checked"]
[null,null,null,null,null,88]
[null,null,null,null,null,88,"Form 1099-B Proceeds From Broker and Barter Exchange Transactions"]
[null,null,null,null,null,88]
[null,null,null,null,null,88]
[null,null,null,null,null,88,"Payer:"]
[null,null,null,null,null,88,"Payer's Federal Identification Number (FIN):464364776"]
[null,null,null,null,null,88,"ROBINHOOD CRYPTO LLC"]
[null,null,null,null,null,88,"85 WILLOW ROAD"]
[null,null,null,null,null,88,"MENLO PARK, CA 94025-0000"]
[null,null,null,null,null,88]
[null,null,null,null,null,88,"Recipient:"]
[null,null,null,null,null,88,"Recipient's Identification Number: 646-04-1329"]
[null,null,null,null,null,88,"NATHAN TUN"]
[null,null,null,null,null,88,"1416 MICHIGAN ST C2"]
[null,null,null,null,null,88,"STORM LAKE, IA 50588-0000"]
[null,null,null,null,null,88]
[null,null,null,null,null,88]
[null,null,null,null,null,88,"Submission Type:","Original document"]
[null,null,null,null,null,88,"Account Number (Optional):",188180260]
[null,null,null,null,null,88,"Date Sold or Disposed:","2021-05-06"]
[null,null,null,null,null,88,"CUSIP Number:","LTCUSD"]
[null,null,null,null,null,88,"Gross Proceeds:","Net Proceeds"]
[null,null,null,null,null,88,"Bartering:",0]
[null,null,null,null,null,88,"Federal Income Tax Withheld:",0]
[null,null,null,null,null,89,"Proceeds:",394]
[null,null,null,null,null,89,"Aggregate Profit or (Loss):",0]
[null,null,null,null,null,89,"Realized Profit or (Loss):",0]
[null,null,null,null,null,89,"Unrealized Profit or (Loss) 12/31 Prior Year:",0]
[null,null,null,null,null,89,"Unrealized Profit or (Loss) 12/31 Current Year:",0]
[null,null,null,null,null,89,"Cost or Basis:",0]
[null,null,null,null,null,89,"Wash Sale Loss Disallowed:",0]
[null,null,null,null,null,89,"Accrued Market Discount Amount:",0]
[null,null,null,null,null,89,"Description:","1.15516793 LITECOIN TO US DOLLAR"]
[null,null,null,null,null,89,"Second Notice Indicator:","No Second Notice"]
[null,null,null,null,null,89,"Date Acquired:","00-00-0000"]
[null,null,null,null,null,89,"Noncovered Security Indicator:","Noncovered Security Basis not reported to IRS"]
[null,null,null,null,null,89,"Type of Gain or Loss Code:","Short-term"]
[null,null,null,null,null,89,"Applicable Check Box on Form 8949:","Short term transaction for which the cost or other basis is not being reported to the IRS"]
[null,null,null,null,null,89,"Loss Not Allowed Indicator:"]
[null,null,null,null,null,89,"FATCA Filing Requirement:","Box not checked no Filing Requirement"]
[null,null,null,null,null,89,"Proceeds from:","Box not checked"]
[null,null,null,null,null,89]
[null,null,null,null,null,89,"Form 1099-B Proceeds From Broker and Barter Exchange Transactions"]
[null,null,null,null,null,89]
[null,null,null,null,null,89]
[null,null,null,null,null,{"$f":"IF(OR(G3657=\"Proceeds:\",G3657=\"Interest:\"),1+F3656,F3656)","v":89},"Payer:"]
[null,null,null,null,null,89,"Payer's Federal Identification Number (FIN):710225165"]
[null,null,null,null,null,89,"TYSON FOODS, INC. STOCK PURCHASE PLAN"]
[null,null,null,null,null,89,"P O BOX 2020"]
[null,null,null,null,null,89,"SPRINGDALE, AR 72765-2020"]
[null,null,null,null,null,89]
[null,null,null,null,null,89,"Recipient:"]
[null,null,null,null,null,89,"Recipient's Identification Number: 646-04-1329"]
[null,null,null,null,null,89,"TUN, NATHAN"]
[null,null,null,null,null,89,"28 RENSHAW DR"]
[null,null,null,null,null,89,"STORM LAKE, IA 50588-0000"]
[null,null,null,null,null,89]
[null,null,null,null,null,89]
[null,null,null,null,null,89,"Submission Type:","Original document"]
[null,null,null,null,null,89,"Account Number (Optional):",2.0220301481999999E+19]
[null,null,null,null,null,89,"Date Sold or Disposed:","00-00-0000"]
[null,null,null,null,null,89,"CUSIP Number:"]
[null,null,null,null,null,89,"Gross Proceeds:","Net Proceeds"]
[null,null,null,null,null,89,"Bartering:",0]
[null,null,null,null,null,89,"Federal Income Tax Withheld:",0]
[null,null,null,null,null,90,"Proceeds:",1811]
[null,null,null,null,null,90,"Aggregate Profit or (Loss):",0]
[null,null,null,null,null,90,"Realized Profit or (Loss):",0]
[null,null,null,null,null,90,"Unrealized Profit or (Loss) 12/31 Prior Year:",0]
[null,null,null,null,null,90,"Unrealized Profit or (Loss) 12/31 Current Year:",0]
[null,null,null,null,null,90,"Cost or Basis:",1619]
[null,null,null,null,null,90,"Wash Sale Loss Disallowed:",0]
[null,null,null,null,null,90,"Accrued Market Discount Amount:",0]
[null,null,null,null,null,90,"Description:","STOCK DISTRIBUTION / SALE"]
[null,null,null,null,null,90,"Second Notice Indicator:","No Second Notice"]
[null,null,null,null,null,90,"Date Acquired:","00-00-0000"]
[null,null,null,null,null,90,"Noncovered Security Indicator:","Nothing checked"]
[null,null,null,null,null,90,"Type of Gain or Loss Code:","Short-term"]
[null,null,null,null,null,90,"Applicable Check Box on Form 8949:","Short term transaction for which the cost or other basis is being reported to the IRS"]
[null,null,null,null,null,90,"Loss Not Allowed Indicator:"]
[null,null,null,null,null,90,"FATCA Filing Requirement:","Box not checked no Filing Requirement"]
[null,null,null,null,null,90,"Proceeds from:","Box not checked"]